Workbook

Sheet 2008
A1: Atvinnugrein | B1: Velta 14% | C1: Velta 7% | D1: Velta 24,5% | E1: Skattsk.velta | F1: Undanþegin velta | G1: Heildarvelta | H1: Áætluð velta | I1: Útskattur | J1: Innskattur | K1: Álagning | L1: Fjöldi
A2: 01110 Kornrækt (að undanskildum hrísgrjónum), ræktun belgjurta og olíufræja | B2: 0 | C2: 10 | D2: 13041941 | E2: 13051593 | F2: 724 | G2: 13775773 | H2: 0 | I2: 3195993 | J2: 8608293 | K2: -5412300 | L2: 13
A3: 01131 Ræktun á aldingrænmeti og papriku | B3: 0 | C3: 576416444 | D3: 261295706 | E3: 837712150 | F3: 82224564 | G3: 919936714 | H3: 0 | I3: 104366334 | J3: 134600125 | K3: -30233791 | L3: 25
A4: 01132 Ræktun á kartöflum | B4: 0 | C4: 394055460 | D4: 106772082 | E4: 500827542 | F4: 26059029 | G4: 526886571 | H4: 1500000 | I4: 54110615 | J4: 83609660 | K4: -29499045 | L4: 52
A5: 01139 Ræktun á öðru ótöldu grænmeti, rótum og hnýði | B5: 0 | C5: 963757705 | D5: 47287885 | E5: 1011045590 | F5: 24797429 | G5: 1035843019 | H5: 0 | I5: 79208292 | J5: 122281690 | K5: -43073398 | L5: 50
A6: 01191 Blómarækt | B6: 0 | C6: 69918966 | D6: 665210065 | E6: 735129031 | F6: 16235240 | G6: 751364271 | H6: 1500000 | I6: 168238089 | J6: 108424041 | K6: 59814048 | L6: 30
A7: 01199 Önnur ótalin ræktun nytjajurta sem ekki eru fjölærar | L7: 3
A8: 01250 Ræktun annarra ávaxta og hnetna af trjám og runnum | L8: 1
A9: 01280 Ræktun krydd- , ilm- og lyfjajurta | L9: 3
A10: 01290 Ræktun annarra fjölærra nytjajurta | L10: 6
A11: 01300 Plöntufjölgun | B11: 0 | C11: 1191655 | D11: 254036641 | E11: 255228296 | F11: 500 | G11: 255728566 | H11: 0 | I11: 62322446 | J11: 44973045 | K11: 17349401 | L11: 17
A12: 01410 Ræktun mjólkurkúa | B12: 0 | C12: 147820363 | D12: 9157065706 | E12: 9304886069 | F12: 4217474647 | G12: 13522360716 | H12: 15615942 | I12: 2257652877 | J12: 2186389551 | K12: 71263326 | L12: 722
A13: 01420 Önnur nautgriparækt | B13: 0 | C13: 51389330 | D13: 610448942 | E13: 661838272 | F13: 218452895 | G13: 880291167 | H13: 0 | I13: 153157324 | J13: 200299182 | K13: -47141858 | L13: 103
A14: 01430 Hrossarækt og ræktun annarra dýra af hrossaætt | B14: 0 | C14: 29989340 | D14: 772790962 | E14: 802780302 | F14: 549936501 | G14: 1352716803 | H14: 19125087 | I14: 196113439 | J14: 464815247 | K14: -268701808 | L14: 396
A15: 01440 Úlfaldarækt og ræktun dýra af úlfaldaætt | B15: 0 | C15: 0 | D15: 0 | E15: 0 | F15: 0 | G15: 0 | H15: 0 | I15: 0 | J15: 0 | K15: 0
A16: 01450 Sauðfjár- og geitarækt | B16: 0 | C16: 315981958 | D16: 4826816207 | E16: 5142798165 | F16: 2467456475 | G16: 7610254640 | H16: 8293391 | I16: 1206614527 | J16: 1227149701 | K16: -20535174 | L16: 1569
A17: 01460 Svínarækt | B17: 0 | C17: 1355706109 | D17: 1075720747 | E17: 2431426856 | F17: 10759966 | G17: 2442186822 | H17: 1790400 | I17: 358889680 | J17: 398417158 | K17: -39527478 | L17: 25
A18: 01471 Alifuglarækt | B18: -777 | C18: 2316888654 | D18: 227336385 | E18: 2543448110 | F18: 12598850 | G18: 2556046960 | H18: 0 | I18: 217770868 | J18: 430344522 | K18: -212573654 | L18: 29
A19: 01472 Eggjaframleiðsla | B19: 0 | C19: 827129475 | D19: 30586784 | E19: 857716259 | F19: 114 | G19: 857830259 | H19: 0 | I19: 65393011 | J19: 149542830 | K19: -84149819 | L19: 10
A20: 01491 Loðdýrabú | B20: 0 | C20: 799 | D20: 67954987 | E20: 68753588 | F20: 579488318 | G20: 648241906 | H20: 1500000 | I20: 17072371 | J20: 80868473 | K20: -63796102 | L20: 34
A21: 01492 Æðarrækt og æðardúnstekja | B21: 0 | C21: 3113430 | D21: 49103545 | E21: 52216975 | F21: 14376936 | G21: 66593911 | H21: 7000000 | I21: 13963293 | J21: 10886641 | K21: 3076652 | L21: 80
A22: 01499 Ræktun annarra ótalinna dýra | L22: 8
A23: 01500 Blandaður búskapur | B23: 0 | C23: 161416821 | D23: 678697776 | E23: 840114597 | F23: 197887400 | G23: 1038001997 | H23: 0 | I23: 177580130 | J23: 176492014 | K23: 1088116 | L23: 117
A24: 01610 Þjónustustarfsemi við ræktun nytjajurta | B24: 0 | C24: 1520650 | D24: 139652616 | E24: 141173266 | F24: 726 | G24: 141899743 | H24: 42000000 | I24: 44611354 | J24: 41364268 | K24: 3247086 | L24: 38
A25: 01620 Þjónustustarfsemi við búfjárrækt | B25: -106 | C25: 681 | D25: 461519013 | E25: 462094525 | F25: 241426632 | G25: 703521157 | H25: 10521811 | I25: 115683021 | J25: 147052382 | K25: -31369361 | L25: 129
A26: 01630 Starfsemi að lokinni uppskeru | L26: 4
A27: 01700 Veiðar og tengd þjónustustarfsemi | B27: 0 | C27: 2291808 | D27: 44106655 | E27: 46398463 | F27: 50 | G27: 46448463 | H27: 0 | I27: 10966575 | J27: 4338301 | K27: 6628274 | L27: 36
A28: 02101 Rekstur gróðrastöðva fyrir skógartré | B28: 0 | C28: 1374217 | D28: 111455275 | E28: 112829492 | F28: 6929220 | G28: 119758712 | H28: 0 | I28: 27402826 | J28: 28056669 | K28: -654 | L28: 10
A29: 02109 Skógrækt og önnur ótalin starfsemi tengd henni | B29: 0 | C29: 296 | D29: 19245845 | E29: 19542005 | F29: 14830581 | G29: 34372586 | H29: 1500000 | I29: 5103505 | J29: 65679130 | K29: -60575625 | L29: 397
A30: 02200 Skógarhögg | L30: 1
A31: 02400 Þjónustustarfsemi við skógrækt | B31: 0 | C31: 0 | D31: 113100279 | E31: 113100279 | F31: 0 | G31: 113100279 | H31: 3000000 | I31: 28444577 | J31: 15931882 | K31: 12512695 | L31: 20
A32: Landbúnaður og skógrækt | B32: -883 | C32: 7259386283 | D32: 19807326131 | E32: 27068760806 | F32: 8690797283 | G32: 35761991163 | H32: 113346631 | I32: 5388264350 | J32: 6158875373 | K32: -767441309 | L32: 3928
A33: 03111 Útgerð smábáta | B33: 0 | C33: 10468311217 | D33: 584332758 | E33: 11052643975 | F33: 6578501398 | G33: 17631145373 | H33: 296260529 | I33: 903419101 | J33: 862796737 | K33: 40622364 | L33: 948
A34: 03112 Útgerð fiskiskipa | B34: -1826353 | C34: 26710162010 | D34: 1992163890 | E34: 28700499547 | F34: 41230702681 | G34: 69931202228 | H34: 76720857 | I34: 2372968769 | J34: 3985671341 | K34: -1612702572 | L34: 209
A35: 03113 Hvalveiðar | L35: 2
A36: 03210 Eldi og ræktun í sjó | B36: 0 | C36: 132411354 | D36: 123209223 | E36: 255620577 | F36: 188228971 | G36: 443849548 | H36: 0 | I36: 39455054 | J36: 60488460 | K36: -21033406 | L36: 27
A37: 03220 Eldi og ræktun í ferskvatni | B37: -603 | C37: 1222327574 | D37: 236368865 | E37: 1458093332 | F37: 838122464 | G37: 2296215796 | H37: 0 | I37: 143388881 | J37: 384803604 | K37: -241414723 | L37: 30
A38: Fiskveiðar | B38: -1826956 | C38: 38534356688 | D38: 2936074736 | E38: 41468001964 | F38: 48835555514 | G38: 90303557478 | H38: 372981386 | I38: 3459231885 | J38: 5293760267 | K38: -1834528382 | L38: 1216
A39: 08110 Grjótnám til skrautsteinagerðar og til bygginga, kalksteins-, gifs-, krítar- og flögubergsnám | L39: 1
A40: 08120 Malar-, sand- og leirnám | B40: 0 | C40: 45 | D40: 3172603530 | E40: 3172648454 | F40: 137613859 | G40: 3310262313 | H40: 1000000 | I40: 777535997 | J40: 577651141 | K40: 199884856 | L40: 29
A41: 08930 Saltnám | L41: 1
A42: 08990 Nám og vinnsla annarra ótalinna hráefna úr jörðu | L42: 1
A43: 09900 Þjónustustarfsemi fyrir vinnslu annarra hráefna úr jörðu | L43: 4
A44: Námugröftur og vinnsla hráefna úr jörðu | B44: 0 | C44: 45 | D44: 3205046877 | E44: 3205091801 | F44: 417753639 | G44: 3622845440 | H44: 2000000 | I44: 785011637 | J44: 622679596 | K44: 163050026 | L44: 36
A45: 10110 Slátrun og vinnsla á kjöti, þó ekki alifuglakjöti | B45: -641 | C45: 6281402932 | D45: 299835688 | E45: 6580597552 | F45: 525460880 | G45: 7106058432 | H45: 0 | I45: 513068360 | J45: 911827290 | K45: -398758930 | L45: 12
A46: 10120 Slátrun og vinnsla á alifuglakjöti | L46: 3
A47: 10130 Framleiðsla á kjötafurðum | B47: -14547343 | C47: 11002124133 | D47: 1440879802 | E47: 12428456592 | F47: 549988200 | G47: 12978444792 | H47: 1747678 | I47: 1121250121 | J47: 1512370516 | K47: -391120395 | L47: 24
A48: 10201 Frysting fiskafurða, krabbadýra og lindýra | B48: -93 | C48: 18401307696 | D48: 3867599309 | E48: 22268813887 | F48: 96478513142 | G48: 118747327029 | H48: 75265701 | I48: 2251583810 | J48: 7984846428 | K48: -5733262618 | L48: 130
A49: 10202 Söltun, þurrkun og hersla fiskafurða, krabbadýra og lindýra | B49: 0 | C49: 3306749735 | D49: 776297399 | E49: 4083047134 | F49: 17726037567 | G49: 21809084701 | H49: 17078974 | I49: 425849637 | J49: 1075109141 | K49: -649259504 | L49: 99
A50: 10203 Mjöl- og lýsisvinnsla | L50: 9
A51: 10204 Framleiðsla lagmetis úr fiskafurðum, krabbadýrum og lindýrum | L51: 8
A52: 10209 Önnur ótalin vinnsla fiskafurða, krabbadýra og lindýra | B52: 0 | C52: 1082211513 | D52: 382348802 | E52: 1464560315 | F52: 34640059379 | G52: 36104619694 | H52: 31996567 | I52: 175142901 | J52: 478329059 | K52: -303186158 | L52: 60
A53: 10310 Vinnsla á kartöflum | L53: 3
A54: 10390 Önnur ótalin vinnsla ávaxta og grænmetis | L54: 6
A55: 10410 Framleiðsla á olíu og feiti | L55: 3
A56: 10420 Framleiðsla á smjörlíki og svipaðri feiti til manneldis | L56: 1
A57: 10510 Mjólkurbú og ostagerð | L57: 9
A58: 10520 Ísgerð | L58: 2
A59: 10610 Framleiðsla á kornvöru | L59: 6
A60: 10710 Framleiðsla á brauði, nýju sætabrauði og kökum | B60: -2557286 | C60: 7015625358 | D60: 116997012 | E60: 7130065084 | F60: 2693666 | G60: 7132758750 | H60: 77471186 | I60: 525552056 | J60: 512547937 | K60: 13004119 | L60: 89
A61: 10720 Framleiðsla á tvíbökum og kexi, framleiðsla á geymsluþolnu sætabrauði og kökum | L61: 1
A62: 10730 Framleiðsla á pastavörum og svipuðum vörum | L62: 1
A63: 10820 Framleiðsla á súkkulaði og sælgæti; kakói | L63: 7
A64: 10830 Te- og kaffivinnsla | L64: 3
A65: 10840 Framleiðsla á bragðefnum og kryddi | L65: 9
A66: 10850 Framleiðsla á tilbúnum máltíðum og réttum | L66: 8
A67: 10860 Framleiðsla á jafnblönduðum matvælum og sérfæði | L67: 1
A68: 10890 Önnur ótalin framleiðsla á matvælum | B68: -785 | C68: 4083891288 | D68: 224214626 | E68: 4307320835 | F68: 76222665 | G68: 4383543500 | H68: 56389943 | I68: 348054817 | J68: 373379599 | K68: -25324782 | L68: 39
A69: 10910 Framleiðsla húsdýrafóðurs | B69: 0 | C69: 7328156 | D69: 8498700875 | E69: 8506029031 | F69: 878886436 | G69: 9384915467 | H69: 0 | I69: 2082694482 | J69: 2242262971 | K69: -159568489 | L69: 15
A70: 10920 Framleiðsla gæludýrafóðurs | L70: 5
A71: 11010 Eiming, hreinsun og blöndun áfengra drykkja | L71: 2
A72: 11020 Framleiðsla á víni úr þrúgum | L72: 2
A73: 11050 Bjórgerð | L73: 4
A74: 11070 Framleiðsla á gosdrykkjum, ölkelduvatni og öðru átöppuðu vatni | L74: 8
A75: Matvælaframleiðsla | B75: -18379385 | C75: 89276052273 | D75: 34624600560 | E75: 123880445705 | F75: 161370635648 | G75: 285252000919 | H75: 269391200 | I75: 14769480303 | J75: 25131423539 | K75: -10362799545 | L75: 569
A76: 13100 Forvinnsla og spuni á textíltrefjum | L76: 4
A77: 13200 Textílvefnaður | L77: 5
A78: 13910 Framleiðsla á hekluðum og prjónuðum dúk | L78: 7
A79: 13920 Framleiðsla á tilbúinni spunavöru annarri en fatnaði | B79: 0 | C79: 62 | D79: 793829348 | E79: 793891287 | F79: 1282604 | G79: 795173891 | H79: 2356367 | I79: 195069875 | J79: 161034585 | K79: 34035290 | L79: 26
A80: 13940 Framleiðsla á köðlum, seglgarni og netum | B80: 0 | C80: 0 | D80: 1687446342 | E80: 1687446342 | F80: 2040487455 | G80: 3727933797 | H80: 12408310 | I80: 416464371 | J80: 536958887 | K80: -120494516 | L80: 18
A81: 13990 Framleiðsla á annarri ótalinni textílvöru | L81: 7
A82: 14110 Framleiðsla á leðurfatnaði | L82: 2
A83: 14120 Vinnufatagerð | L83: 2
A84: 14130 Framleiðsla á öðrum yfirfatnaði | B84: 0 | C84: 105 | D84: 134165523 | E84: 134270935 | F84: 610 | G84: 134880735 | H84: 0 | I84: 32877910 | J84: 19004413 | K84: 13873497 | L84: 24
A85: 14190 Framleiðsla á öðrum fatnaði og fylgihlutum | B85: 0 | C85: 9784945 | D85: 197867918 | E85: 207652863 | F85: 1663594 | G85: 209316457 | H85: 10184850 | I85: 51657922 | J85: 22264700 | K85: 29393222 | L85: 27
A86: 14200 Framleiðsla á vörum úr loðskinnum | L86: 1
A87: 14310 Framleiðsla á sokkum og sokkavörum | L87: 1
A88: 14390 Framleiðsla á öðrum prjónuðum og hekluðum fatnaði | L88: 7
A89: 15110 Sútun leðurs; sútun og litun á loðskinni | L89: 6
A90: 15120 Framleiðsla á ferðatöskum, handtöskum og áþekkum vörum; reiðtygjum og skyldum vörum | L90: 7
A91: 15200 Framleiðsla á skófatnaði | L91: 5
A92: Textíl-, fata og leðuriðnaður | B92: 0 | C92: 25324964 | D92: 5345667126 | E92: 5372981637 | F92: 3369316491 | G92: 8741386781 | H92: 24949527 | I92: 1316840569 | J92: 1350819164 | K92: -34049096 | L92: 149
A93: 16100 Sögun, heflun og fúavörn á viði | L93: 7
A94: 16220 Framleiðsla á samsettum parketgólfum | L94: 1
A95: 16230 Framleiðsla á öðrum trésmíðavörum til bygginga | B95: 0 | C95: 3276972 | D95: 3518308165 | E95: 3521585137 | F95: 2649152 | G95: 3524234289 | H95: 23366604 | I95: 867939616 | J95: 470870874 | K95: 397068742 | L95: 110
A96: 16240 Framleiðsla á umbúðum úr viði | L96: 6
A97: 16290 Framleiðsla á annarri viðarvöru; framleiðsla á vörum úr korki, hálmi og fléttiefnum | B97: 0 | C97: 384 | D97: 413396705 | E97: 413781075 | F97: 14706507 | G97: 428487582 | H97: 3000000 | I97: 102044385 | J97: 53489434 | K97: 48554951 | L97: 48
A98: 17120 Framleiðsla á pappír og pappa | L98: 1
A99: 17210 Framleiðsla á bylgjupappír og -pappa og umbúðum úr pappír og pappa | L99: 1
A100: 17220 Framleiðsla á heimilis- og hreinlætisvörum úr pappír og pappa | L100: 2
A101: 17230 Framleiðsla á skrifpappír og skrifstofuvörum úr pappír og pappa | L101: 1
A102: 17290 Framleiðsla á annarri pappírs- og pappavöru | L102: 3
A103: 18110 Prentun dagblaða | L103: 1
A104: 18120 Önnur prentun | B104: 0 | C104: 84752316 | D104: 6325686985 | E104: 6410439301 | F104: 96235407 | G104: 6506674708 | H104: 38707039 | I104: 1565209579 | J104: 1029300913 | K104: 535908666 | L104: 111
A105: 18130 Undirbúningur fyrir prentun | B105: 0 | C105: 6842842 | D105: 2031210714 | E105: 2038053556 | F105: 21023734 | G105: 2059077290 | H105: 0 | I105: 498126118 | J105: 253044268 | K105: 245081850 | L105: 46
A106: 18140 Bókband og tengd þjónusta | B106: 0 | C106: 150 | D106: 160487708 | E106: 160637789 | F106: 1253804 | G106: 161891593 | H106: 0 | I106: 39330031 | J106: 15555608 | K106: 23774423 | L106: 17
A107: 18200 Fjölföldun upptekins efnis | L107: 6
A108: Trjá- og pappírsiðnaður, prentun | B108: 0 | C108: 122195548 | D108: 13316451190 | E108: 13439180655 | F108: 149153734 | G108: 13588884029 | H108: 65073643 | I108: 3286206850 | J108: 1995566864 | K108: 1292501423 | L108: 361
A109: 20110 Framleiðsla á iðnaðargasi | L109: 3
A110: 20140 Framleiðsla á öðrum lífrænum grunnefnum til efnaiðnaðar | L110: 5
A111: 20150 Framleiðsla á tilbúnum áburði og köfnunarefnissamböndum | L111: 5
A112: 20160 Framleiðsla á plasthráefnum | L112: 4
A113: 20300 Framleiðsla á málningu, lökkum og svipuðum þekjuefnum, prentbleki og fylli- og þéttiefnum | L113: 4
A114: 20410 Framleiðsla á sápu, hreinsi- og þvottaefnum, hreingerningar- og fægiefnum | L114: 8
A115: 20420 Framleiðsla á ilmvatni og snyrtivörum | B115: 0 | C115: 53 | D115: 375756233 | E115: 375809438 | F115: 167084765 | G115: 542894203 | H115: 0 | I115: 92064015 | J115: 89968172 | K115: 2095843 | L115: 14
A116: 20590 Framleiðsla á annarri ótalinni efnavöru | L116: 7
A117: 20600 Framleiðsla gerviþráðar | L117: 1
A118: 21100 Framleiðsla á efnum til lyfjagerðar | L118: 1
A119: 21200 Lyfjaframleiðsla | L119: 4
A120: Framleiðsla á efnum og efnavörum, lyfjaframleiðsla | B120: 0 | C120: 3864282 | D120: 5776589794 | E120: 5780713496 | F120: 1491403552 | G120: 7272859468 | H120: 4357708 | I120: 1416606751 | J120: 1117528858 | K120: 298996894 | L120: 56
A121: 22110 Framleiðsla á gúmmíhjólbörðum og hjólbarðaslöngum, sólun notaðra gúmmíhjólbarða | L121: 5
A122: 22190 Framleiðsla á öðrum gúmmívörum | L122: 5
A123: 22210 Framleiðsla á plötum, þynnum, slöngum og prófílum úr plasti | L123: 2
A124: 22221 Framleiðsla á plastvörum til nota í sjávarútvegi | B124: 0 | C124: 410 | D124: 633791182 | E124: 634200909 | F124: 630031643 | G124: 1264232552 | H124: 0 | I124: 155307516 | J124: 199422114 | K124: -44114598 | L124: 11
A125: 22229 Framleiðsla á öðru umbúðaplasti | B125: 0 | C125: 5447635 | D125: 2278396783 | E125: 2283844418 | F125: 130557451 | G125: 2414401869 | H125: 0 | I125: 558589354 | J125: 453616444 | K125: 104972910 | L125: 14
A126: 22230 Framleiðsla á byggingarvörum úr plasti | L126: 9
A127: 22290 Framleiðsla á öðrum plastvörum | B127: 0 | C127: 0 | D127: 2393911070 | E127: 2393911070 | F127: 46052475 | G127: 2439963545 | H127: 1000000 | I127: 586753212 | J127: 375852792 | K127: 210900420 | L127: 25
A128: 23120 Skurður og vinnsla á flotgleri | B128: 0 | C128: 0 | D128: 884785917 | E128: 884785917 | F128: 3045899 | G128: 887831816 | H128: 0 | I128: 216772538 | J128: 142165377 | K128: 74607161 | L128: 11
A129: 23130 Framleiðsla á glerílátum | L129: 1
A130: 23190 Framleiðsla og vinnsla á öðru gleri, þ.m.t. glervara til tæknilegra nota | L130: 6
A131: 23310 Framleiðsla á flísum og hellum úr leir | L131: 1
A132: 23410 Framleiðsla á heimilisvörum og skrautmunum úr leir og postulíni | B132: 0 | C132: 0 | D132: 44131550 | E132: 44131550 | F132: 0 | G132: 44131550 | H132: 3000000 | I132: 11547343 | J132: 4785278 | K132: 6762065 | L132: 18
A133: 23490 Framleiðsla á öðrum leirvörum | B133: 0 | C133: 3255938 | D133: 30455400 | E133: 33711338 | F133: 0 | G133: 33711338 | H133: 0 | I133: 7689476 | J133: 4194602 | K133: 3494874 | L133: 10
A134: 23510 Sementsframleiðsla | L134: 1
A135: 23610 Framleiðsla á byggingarefni úr steinsteypu | B135: 0 | C135: 313 | D135: 4151688598 | E135: 4152001477 | F135: 199462416 | G135: 4351463893 | H135: 85367371 | I135: 1038101764 | J135: 611385960 | K135: 426715804 | L135: 14
A136: 23620 Framleiðsla á byggingarefni úr gifsi | B136: 0 | C136: 0 | D136: 0 | E136: 0 | F136: 0 | G136: 0 | H136: 0 | I136: 0 | J136: 468 | K136: -468
A137: 23630 Framleiðsla á tilbúinni steinsteypu | B137: 0 | C137: 2068764 | D137: 12958804674 | E137: 12960873438 | F137: 214714375 | G137: 13175587813 | H137: 356273234 | I137: 3262338899 | J137: 2333367679 | K137: 928971220 | L137: 20
A138: 23690 Framleiðsla á öðrum vörum úr steinsteypu, sementi og gifsi | L138: 2
A139: 23700 Steinsmíði | B139: 0 | C139: 0 | D139: 1787901329 | E139: 1787901329 | F139: 10726610 | G139: 1798627939 | H139: 16500000 | I139: 442076930 | J139: 255708147 | K139: 186368783 | L139: 13
A140: 23990 Framleiðsla á öðrum ótöldum vörum úr málmlausum steinefnum | L140: 8
A141: Gúmmí- og plastvöruframleiðsla, gler-, leir- og steinefnaiðnaður | B141: 0 | C141: 14705229 | D141: 38887489911 | E141: 38904098858 | F141: 1627682726 | G141: 40530811113 | H141: 580745797 | I141: 9670813028 | J141: 6945936703 | K141: 2723281024 | L141: 176
A142: 24100 Framleiðsla á járni, stáli og járnblendi | L142: 9
A143: 24200 Framleiðsla á rörum, pípum, holum prófílum og tengihlutum úr stáli | L143: 1
A144: 24420 Álframleiðsla | L144: 5
A145: 24510 Járnsteypa | L145: 3
A146: 24530 Steypa léttmálma | L146: 2
A147: 24540 Steypa annarra málma sem ekki innihalda járn | L147: 2
A148: 25110 Framleiðsla á burðarvirkjum og byggingareiningum úr málmi | B148: 0 | C148: 0 | D148: 103196830 | E148: 103196830 | F148: 17069689 | G148: 120266519 | H148: 2972393 | I148: 26011468 | J148: 12470232 | K148: 13541236 | L148: 10
A149: 25120 Framleiðsla á hurðum og gluggum úr málmi | B149: 0 | C149: 0 | D149: 1884766741 | E149: 1884766741 | F149: 0 | G149: 1884766741 | H149: 1941217 | I149: 462243469 | J149: 254282178 | K149: 207961291 | L149: 10
A150: 25210 Framleiðsla á miðstöðvarofnum og -kötlum | L150: 2
A151: 25290 Framleiðsla á öðrum geymum, kerum og ílátum úr málmi | L151: 2
A152: 25400 Vopna- og skotfæraframleiðsla | L152: 4
A153: 25500 Eldsmíði og önnur málmsmíði; sindurmótun | B153: 0 | C153: 15139550 | D153: 143175894 | E153: 158315444 | F153: 716 | G153: 159031522 | H153: 6402906 | I153: 37706569 | J153: 26556929 | K153: 11149640 | L153: 16
A154: 25610 Meðhöndlun og húðun málma | B154: 0 | C154: 0 | D154: 1859533813 | E154: 1859533813 | F154: 13012666 | G154: 1872546479 | H154: 13486939 | I154: 458770784 | J154: 369728943 | K154: 89041841 | L154: 19
A155: 25620 Vélvinnsla málma | B155: 0 | C155: 9406080 | D155: 18034995726 | E155: 18044401806 | F155: 3209880709 | G155: 21254282515 | H155: 241974859 | I155: 4478516685 | J155: 2493764268 | K155: 1984752417 | L155: 395
A156: 25720 Framleiðsla á lásum og lömum | L156: 6
A157: 25730 Framleiðsla á verkfærum, þó ekki vélknúnum | L157: 2
A158: 25910 Framleiðsla á stáltunnum og svipuðum ílátum | L158: 1
A159: 25930 Framleiðsla á keðjum, fjöðrum og vörum úr vír | L159: 2
A160: 25990 Framleiðsla á öðrum ótöldum málmvörum | B160: 0 | C160: 956 | D160: 253169649 | E160: 254125346 | F160: 48797133 | G160: 302922479 | H160: 19331143 | I160: 66829661 | J160: 25848343 | K160: 40981318 | L160: 33
A161: Framleiðsla málma og málmvara að undanskildum vélum og búnaði | B161: 0 | C161: 45431665 | D161: 23817609082 | E161: 23864032212 | F161: 182932235659 | G161: 206797342617 | H161: 291039335 | I161: 5908505347 | J161: 40377990423 | K161: -34470505660 | L161: 524
A162: 26200 Framleiðsla á tölvum og jaðarbúnaði | L162: 1
A163: 26300 Framleiðsla fjarskiptabúnaðar | L163: 2
A164: 26510 Framleiðsla á tækjum og búnaði til mælinga, prófana og leiðsögu | L164: 9
A165: 26520 Framleiðsla á úrum og klukkum | L165: 1
A166: 26600 Framleiðsla á búnaði til geislunar, raftækjabúnaði til lækninga og meðferðar | L166: 1
A167: 27110 Framleiðsla á rafhreyflum, rafölum og spennubreytum | L167: 2
A168: 27120 Framleiðsla á dreifi- og stjórnbúnaði fyrir raforku | L168: 5
A169: 27200 Framleiðsla rafhlaðna og rafgeyma | L169: 3
A170: 27310 Framleiðsla á ljósleiðaraköplum | L170: 2
A171: 27400 Framleiðsla á rafljósabúnaði | L171: 5
A172: 27510 Framleiðsla rafknúinna heimilistækja | L172: 3
A173: 27520 Framleiðsla heimilistækja, annarra en rafknúinna | L173: 1
A174: 27900 Framleiðsla á öðrum rafbúnaði | L174: 7
A175: 28110 Framleiðsla hreyfla og hverfla, þó ekki í loftför, ökutæki eða vélhjól | B175: 0 | C175: 79 | D175: 302328401 | E175: 302407608 | F175: 71888292 | G175: 374295900 | H175: 9000000 | I175: 76280987 | J175: 61102896 | K175: 15178091 | L175: 16
A176: 28130 Framleiðsla á öðrum dælum og þjöppum | L176: 1
A177: 28140 Framleiðsla á krönum og lokum | L177: 1
A178: 28150 Framleiðsla á legum, tannhjólum, drifum og drifbúnaði | L178: 1
A179: 28220 Framleiðsla á lyftitækjum og færslubúnaði | L179: 8
A180: 28230 Framleiðsla á skrifstofuvélum og -búnaði, þó ekki tölvum og jaðarbúnaði | L180: 1
A181: 28250 Framleiðsla á kæli- og loftræstibúnaði, þó ekki til heimilisnota | B181: 0 | C181: 0 | D181: 2085672855 | E181: 2085672855 | F181: 545261527 | G181: 2630934382 | H181: 7285592 | I181: 512774887 | J181: 314021789 | K181: 198753098 | L181: 31
A182: 28290 Framleiðsla á öðrum ótöldum vélum til almennra nota | B182: 0 | C182: 12 | D182: 185129629 | E182: 185141629 | F182: 36214093 | G182: 221355722 | H182: 4224661 | I182: 46392605 | J182: 23640687 | K182: 22751918 | L182: 20
A183: 28300 Framleiðsla á vélum til nota í landbúnaði og skógrækt | L183: 2
A184: 28920 Framleiðsla á vélum til mannvirkjagerðar, námugraftrar og vinnslu hráefna úr jörðu | L184: 1
A185: 28930 Framleiðsla á vélum fyrir matvæla-, drykkjarvöru- og tóbaksvinnslu | B185: 0 | C185: 0 | D185: 2011493471 | E185: 2011493471 | F185: 9927345915 | G185: 11938839386 | H185: 5309017 | I185: 494116597 | J185: 1039397334 | K185: -545280737 | L185: 33
A186: 28990 Framleiðsla á öðrum ótöldum sérhæfðum vélum | L186: 4
A187: Framleiðsla á tölvum, rafeinda og optískum vörum, rafbúnaði, vélum og tækjum | B187: 0 | C187: 126 | D187: 9030229092 | E187: 9030795041 | F187: 12058743291 | G187: 21091210715 | H187: 44832095 | I187: 2222898105 | J187: 2169963465 | K187: 51129310 | L187: 161
A188: 29200 Smíði yfirbygginga fyrir vélknúin ökutæki og framleiðsla tengivagna | B188: 0 | C188: 360 | D188: 1175669960 | E188: 1176029622 | F188: 35413929 | G188: 1211443551 | H188: 0 | I188: 288064338 | J188: 166494562 | K188: 121569776 | L188: 22
A189: 29310 Framleiðsla á raf- og rafeindabúnaði í vélknúin ökutæki og hreyfla þeirra | L189: 2
A190: 29320 Framleiðsla á öðrum íhlutum og aukabúnaði í vélknúin ökutæki og hreyfla þeirra | L190: 6
A191: 30110 Smíði skipa og annarra fljótandi mannvirkja | B191: 0 | C191: 0 | D191: 391503076 | E191: 391503076 | F191: 1227311179 | G191: 1618814255 | H191: 9200000 | I191: 98172248 | J191: 195615491 | K191: -97443243 | L191: 12
A192: 30120 Smíði skemmti- og sportbáta | L192: 3
A193: 30300 Framleiðsla á loft- og geimförum og tengdum vélbúnaði | L193: 1
A194: Framleiðsla á vélknúnum ökutækjum | B194: 0 | C194: 378 | D194: 1778821542 | E194: 1780059829 | F194: 1265082042 | G194: 3044281732 | H194: 9200000 | I194: 438091792 | J194: 403283166 | K194: 34957001 | L194: 46
A195: 31010 Framleiðsla á húsgögnum og innréttingum fyrir atvinnuhúsnæði | L195: 5
A196: 31020 Framleiðsla á húsgögnum og innréttingum í eldhús | B196: 0 | C196: 0 | D196: 2152818474 | E196: 2152818474 | F196: 101002533 | G196: 2253821007 | H196: 0 | I196: 527440567 | J196: 279140899 | K196: 248299668 | L196: 21
A197: 31030 Framleiðsla á dýnum | L197: 3
A198: 31090 Framleiðsla á öðrum húsgögnum og innréttingum | B198: 0 | C198: 432 | D198: 2476826726 | E198: 2477258590 | F198: 7316849 | G198: 2484575439 | H198: 16500000 | I198: 610895562 | J198: 325032740 | K198: 285862822 | L198: 60
A199: 32120 Skartgripasmíði og skyld framleiðsla | B199: 0 | C199: 94 | D199: 772981530 | E199: 773075200 | F199: 18948672 | G199: 792023872 | H199: 0 | I199: 189387750 | J199: 95007619 | K199: 94380131 | L199: 55
A200: 32130 Framleiðsla á óekta skartgripum og skyldum vörum | L200: 1
... 368 more rows

Sheet 2009
A1: Atvinnugrein | B1: Velta 14% | C1: Velta 7% | D1: Velta 24,5% | E1: Skattsk.velta | F1: Undanþegin velta | G1: Heildarvelta | H1: Áætluð velta | I1: Útskattur | J1: Innskattur | K1: Álagning | L1: Fjöldi
A2: 01110 Kornrækt (að undanskildum hrísgrjónum), ræktun belgjurta og olíufræja | B2: 0 | C2: 0 | D2: 23755957 | E2: 23755957 | F2: 498692 | G2: 24254649 | H2: 0 | I2: 5820233 | J2: 8265052 | K2: -2444819 | L2: 13
A3: 01131 Ræktun á aldingrænmeti og papriku | B3: 0 | C3: 639200442 | D3: 149990133 | E3: 789190575 | F3: 76778393 | G3: 865968968 | H3: 667343 | I3: 81613942 | J3: 133884144 | K3: -52270202 | L3: 26
A4: 01132 Ræktun á kartöflum | B4: 0 | C4: 441783070 | D4: 107198924 | E4: 548981994 | F4: 27801037 | G4: 576783031 | H4: 0 | I4: 57188539 | J4: 79081555 | K4: -21893016 | L4: 53
A5: 01139 Ræktun á öðru ótöldu grænmeti, rótum og hnýði | B5: 0 | C5: 1051816659 | D5: 65585816 | E5: 1117402475 | F5: 16855137 | G5: 1134257612 | H5: 1321221 | I5: 90025706 | J5: 154255862 | K5: -64230156 | L5: 47
A6: 01191 Blómarækt | B6: 0 | C6: 90813008 | D6: 700258288 | E6: 791071296 | F6: 18818416 | G6: 809889712 | H6: 6000000 | I6: 179390237 | J6: 116374545 | K6: 63015692 | L6: 32
A7: 01199 Önnur ótalin ræktun nytjajurta sem ekki eru fjölærar | L7: 3
A8: 01250 Ræktun annarra ávaxta og hnetna af trjám og runnum | L8: 1
A9: 01280 Ræktun krydd- , ilm- og lyfjajurta | L9: 3
A10: 01290 Ræktun annarra fjölærra nytjajurta | L10: 7
A11: 01300 Plöntufjölgun | B11: 0 | C11: 1788367 | D11: 252015830 | E11: 253804197 | F11: 76881 | G11: 253881078 | H11: 0 | I11: 61869034 | J11: 28574717 | K11: 33294317 | L11: 16
A12: 01410 Ræktun mjólkurkúa | B12: 0 | C12: 208549242 | D12: 9791620779 | E12: 10000170021 | F12: 4361991658 | G12: 14362161679 | H12: 25057814 | I12: 2419685306 | J12: 1941627803 | K12: 478057503 | L12: 716
A13: 01420 Önnur nautgriparækt | B13: 0 | C13: 63929826 | D13: 616612368 | E13: 680542194 | F13: 221474712 | G13: 902016906 | H13: 500000 | I13: 155667732 | J13: 138413059 | K13: 17254673 | L13: 99
A14: 01430 Hrossarækt og ræktun annarra dýra af hrossaætt | B14: 0 | C14: 44660136 | D14: 869327005 | E14: 913987141 | F14: 533335260 | G14: 1447322401 | H14: 19893233 | I14: 220982988 | J14: 356651718 | K14: -135668730 | L14: 404
A15: 01450 Sauðfjár- og geitarækt | B15: 0 | C15: 397452583 | D15: 4885664611 | E15: 5283117194 | F15: 2679491592 | G15: 7962608786 | H15: 14738701 | I15: 1228405735 | J15: 1140667018 | K15: 87738717 | L15: 1539
A16: 01460 Svínarækt | B16: 0 | C16: 1182259748 | D16: 786645627 | E16: 1968905375 | F16: 12984211 | G16: 1981889586 | H16: 19510798 | I16: 280148250 | J16: 388871842 | K16: -108723592 | L16: 23
A17: 01471 Alifuglarækt | B17: 0 | C17: 2442957925 | D17: 335429889 | E17: 2778387814 | F17: 14607822 | G17: 2792995636 | H17: 0 | I17: 253187416 | J17: 469320376 | K17: -216132960 | L17: 26
A18: 01472 Eggjaframleiðsla | L18: 9
A19: 01491 Loðdýrabú | B19: 0 | C19: 854436 | D19: 91479679 | E19: 92334115 | F19: 572543565 | G19: 664877680 | H19: 2500000 | I19: 23084832 | J19: 87457069 | K19: -64372237 | L19: 33
A20: 01492 Æðarrækt og æðardúnstekja | B20: 0 | C20: 2097255 | D20: 60815438 | E20: 62912693 | F20: 22168518 | G20: 85081211 | H20: 7794339 | I20: 16956204 | J20: 10311671 | K20: 6644533 | L20: 80
A21: 01499 Ræktun annarra ótalinna dýra | L21: 7
A22: 01500 Blandaður búskapur | B22: -1270301 | C22: 227273822 | D22: 912038441 | E22: 1138041962 | F22: 304351002 | G22: 1442392964 | H22: 1000000 | I22: 239425760 | J22: 198788267 | K22: 40637493 | L22: 129
A23: 01610 Þjónustustarfsemi við ræktun nytjajurta | B23: 0 | C23: 1000722 | D23: 145987646 | E23: 146988368 | F23: 2012803 | G23: 149001171 | H23: 28000000 | I23: 42697033 | J23: 26082608 | K23: 16614425 | L23: 38
A24: 01620 Þjónustustarfsemi við búfjárrækt | B24: 0 | C24: 669641 | D24: 467978235 | E24: 468647876 | F24: 248664748 | G24: 717312624 | H24: 3000000 | I24: 115436652 | J24: 104764323 | K24: 10672329 | L24: 133
A25: 01630 Starfsemi að lokinni uppskeru | L25: 5
A26: 01700 Veiðar og tengd þjónustustarfsemi | B26: 0 | C26: 2591667 | D26: 61022249 | E26: 63613916 | F26: 0 | G26: 63613916 | H26: 0 | I26: 15131868 | J26: 8225056 | K26: 6906812 | L26: 35
A27: 02101 Rekstur gróðrastöðva fyrir skógartré | B27: 0 | C27: 1721865 | D27: 114028816 | E27: 115750681 | F27: 1568006 | G27: 117318687 | H27: 0 | I27: 28057759 | J27: 12746303 | K27: 15311456 | L27: 11
A28: 02109 Skógrækt og önnur ótalin starfsemi tengd henni | B28: 0 | C28: 145035 | D28: 12983905 | E28: 13128940 | F28: 10161820 | G28: 23290760 | H28: 500000 | I28: 3313715 | J28: 58838260 | K28: -55524545 | L28: 407
A29: 02200 Skógarhögg | L29: 2
A30: 02400 Þjónustustarfsemi við skógrækt | B30: 0 | C30: 158871 | D30: 59351323 | E30: 59510194 | F30: 186430 | G30: 59696624 | H30: 24068104 | I30: 20448888 | J30: 5843884 | K30: 14605004 | L30: 16
A31: Landbúnaður og skógrækt | B31: -5392003 | C31: 7852812765 | D31: 20613477953 | E31: 28460898715 | F31: 9134119510 | G31: 37595018225 | H31: 160551553 | I31: 5638410385 | J31: 5663285827 | K31: -24875442 | L31: 3913
A32: 03111 Útgerð smábáta | B32: 0 | C32: 12332368866 | D32: 607908327 | E32: 12940277193 | F32: 9466165238 | G32: 22406442431 | H32: 179776640 | I32: 1033372761 | J32: 1096371458 | K32: -62998697 | L32: 978
A33: 03112 Útgerð fiskiskipa | B33: 0 | C33: 29782538380 | D33: 3464509828 | E33: 33247048208 | F33: 46005802579 | G33: 79252850787 | H33: 71482342 | I33: 2948919638 | J33: 4484378086 | K33: -1535458448 | L33: 214
A34: 03113 Hvalveiðar | L34: 2
A35: 03210 Eldi og ræktun í sjó | B35: 0 | C35: 169936746 | D35: 133996312 | E35: 303933058 | F35: 61946723 | G35: 365879781 | H35: 0 | I35: 44724672 | J35: 66026975 | K35: -21302303 | L35: 29
A36: 03220 Eldi og ræktun í ferskvatni | B36: 0 | C36: 2000408263 | D36: 361315375 | E36: 2361723638 | F36: 1377891703 | G36: 3739615341 | H36: 0 | I36: 228550880 | J36: 539696605 | K36: -311145725 | L36: 30
A37: Fiskveiðar | B37: 0 | C37: 44318598074 | D37: 4567729842 | E37: 48886327916 | F37: 56913190498 | G37: 105799518414 | H37: 251258982 | I37: 4257902158 | J37: 6192841188 | K37: -1934939030 | L37: 1253
A38: 08110 Grjótnám til skrautsteinagerðar og til bygginga, kalksteins-, gifs-, krítar- og flögubergsnám | L38: 1
A39: 08120 Malar-, sand- og leirnám | B39: 0 | C39: 335318 | D39: 1695756814 | E39: 1696092132 | F39: 470280322 | G39: 2166372454 | H39: 10000000 | I39: 417933894 | J39: 395069746 | K39: 22864148 | L39: 32
A40: 08990 Nám og vinnsla annarra ótalinna hráefna úr jörðu | L40: 1
A41: 09900 Þjónustustarfsemi fyrir vinnslu annarra hráefna úr jörðu | L41: 4
A42: Námugröftur og vinnsla hráefna úr jörðu | B42: 0 | C42: 335318 | D42: 1714075764 | E42: 1714411082 | F42: 858642813 | G42: 2573053895 | H42: 13000000 | I42: 423157035 | J42: 457424717 | K42: -34267682 | L42: 38
A43: 10110 Slátrun og vinnsla á kjöti, þó ekki alifuglakjöti | B43: -1220407 | C43: 6116447294 | D43: 307773562 | E43: 6423000449 | F43: 867282137 | G43: 7290282586 | H43: 0 | I43: 503384993 | J43: 1012014155 | K43: -508629162 | L43: 11
A44: 10120 Slátrun og vinnsla á alifuglakjöti | L44: 3
A45: 10130 Framleiðsla á kjötafurðum | B45: -3199314 | C45: 10903989811 | D45: 1669298422 | E45: 12570088919 | F45: 700525612 | G45: 13270614531 | H45: 0 | I45: 1171800082 | J45: 1404957561 | K45: -233157479 | L45: 22
A46: 10201 Frysting fiskafurða, krabbadýra og lindýra | B46: -3116374 | C46: 19573201392 | D46: 5597829337 | E46: 25167914355 | F46: 120273367183 | G46: 145441281538 | H46: 51120024 | I46: 2752937442 | J46: 8843641355 | K46: -6090703913 | L46: 131
A47: 10202 Söltun, þurrkun og hersla fiskafurða, krabbadýra og lindýra | B47: 0 | C47: 3643176277 | D47: 678460704 | E47: 4321636981 | F47: 21261411563 | G47: 25583048544 | H47: 11542307 | I47: 423887964 | J47: 1355556995 | K47: -931669031 | L47: 91
A48: 10203 Mjöl- og lýsisvinnsla | L48: 6
A49: 10204 Framleiðsla lagmetis úr fiskafurðum, krabbadýrum og lindýrum | L49: 7
A50: 10209 Önnur ótalin vinnsla fiskafurða, krabbadýra og lindýra | B50: 0 | C50: 1244329062 | D50: 284200597 | E50: 1528529659 | F50: 35803617949 | G50: 37332147608 | H50: 34250000 | I50: 162979817 | J50: 559590333 | K50: -396610516 | L50: 53
A51: 10310 Vinnsla á kartöflum | L51: 3
A52: 10390 Önnur ótalin vinnsla ávaxta og grænmetis | L52: 9
A53: 10410 Framleiðsla á olíu og feiti | L53: 3
A54: 10420 Framleiðsla á smjörlíki og svipaðri feiti til manneldis | L54: 1
A55: 10510 Mjólkurbú og ostagerð | L55: 9
A56: 10520 Ísgerð | L56: 2
A57: 10610 Framleiðsla á kornvöru | L57: 7
A58: 10710 Framleiðsla á brauði, nýju sætabrauði og kökum | B58: -655378 | C58: 6773786780 | D58: 62576707 | E58: 6835708109 | F58: 4165695 | G58: 6839873804 | H58: 34782170 | I58: 491989582 | J58: 473956402 | K58: 18033180 | L58: 87
A59: 10720 Framleiðsla á tvíbökum og kexi, framleiðsla á geymsluþolnu sætabrauði og kökum | L59: 1
A60: 10730 Framleiðsla á pastavörum og svipuðum vörum | L60: 1
A61: 10820 Framleiðsla á súkkulaði og sælgæti; kakói | L61: 5
A62: 10830 Te- og kaffivinnsla | L62: 2
A63: 10840 Framleiðsla á bragðefnum og kryddi | L63: 9
A64: 10850 Framleiðsla á tilbúnum máltíðum og réttum | L64: 9
A65: 10860 Framleiðsla á jafnblönduðum matvælum og sérfæði | L65: 2
A66: 10890 Önnur ótalin framleiðsla á matvælum | B66: 0 | C66: 3586123612 | D66: 182523134 | E66: 3768646746 | F66: 82993938 | G66: 3851640684 | H66: 11000000 | I66: 298441906 | J66: 342247559 | K66: -43805653 | L66: 46
A67: 10910 Framleiðsla húsdýrafóðurs | B67: 0 | C67: 13135274 | D67: 8548056193 | E67: 8561191467 | F67: 794534933 | G67: 9355726400 | H67: 0 | I67: 2095193189 | J67: 2189178508 | K67: -93985319 | L67: 16
A68: 10920 Framleiðsla gæludýrafóðurs | L68: 4
A69: 11010 Eiming, hreinsun og blöndun áfengra drykkja | L69: 2
A70: 11020 Framleiðsla á víni úr þrúgum | L70: 2
A71: 11050 Bjórgerð | L71: 4
A72: 11070 Framleiðsla á gosdrykkjum, ölkelduvatni og öðru átöppuðu vatni | B72: 0 | C72: 13360776253 | D72: 11564554859 | E72: 24925331112 | F72: 1345636688 | G72: 26270967800 | H72: 0 | I72: 3768570278 | J72: 3274192040 | K72: 494378238 | L72: 11
A73: Matvælaframleiðsla | B73: -8191473 | C73: 96210044771 | D73: 39452240089 | E73: 135654093387 | F73: 190775086635 | G73: 326429180022 | H73: 150194501 | I73: 16427155321 | J73: 27078140805 | K73: -10650985484 | L73: 559
A74: 13100 Forvinnsla og spuni á textíltrefjum | L74: 4
A75: 13200 Textílvefnaður | L75: 5
A76: 13910 Framleiðsla á hekluðum og prjónuðum dúk | L76: 7
A77: 13920 Framleiðsla á tilbúinni spunavöru annarri en fatnaði | B77: 0 | C77: 139291 | D77: 647908952 | E77: 648048243 | F77: 648174 | G77: 648696417 | H77: 5110164 | I77: 159999473 | J77: 89536151 | K77: 70463322 | L77: 26
A78: 13940 Framleiðsla á köðlum, seglgarni og netum | B78: 0 | C78: 0 | D78: 2166772649 | E78: 2166772649 | F78: 2538438724 | G78: 4705211373 | H78: 6000000 | I78: 532329320 | J78: 545216485 | K78: -12887165 | L78: 16
A79: 13990 Framleiðsla á annarri ótalinni textílvöru | L79: 6
A80: 14110 Framleiðsla á leðurfatnaði | L80: 1
A81: 14120 Vinnufatagerð | L81: 3
A82: 14130 Framleiðsla á öðrum yfirfatnaði | B82: 0 | C82: 0 | D82: 129992563 | E82: 129992563 | F82: 516032 | G82: 130508595 | H82: 4000000 | I82: 32828423 | J82: 14756977 | K82: 18071446 | L82: 26
A83: 14140 Framleiðsla á nærfatnaði | L83: 1
A84: 14190 Framleiðsla á öðrum fatnaði og fylgihlutum | B84: 0 | C84: 3731091 | D84: 248697541 | E84: 252428632 | F84: 3366191 | G84: 255794823 | H84: 1934563 | I84: 61666056 | J84: 31415346 | K84: 30250710 | L84: 32
A85: 14200 Framleiðsla á vörum úr loðskinnum | L85: 1
A86: 14310 Framleiðsla á sokkum og sokkavörum | L86: 1
A87: 14390 Framleiðsla á öðrum prjónuðum og hekluðum fatnaði | L87: 6
A88: 15110 Sútun leðurs; sútun og litun á loðskinni | L88: 5
A89: 15120 Framleiðsla á ferðatöskum, handtöskum og áþekkum vörum; reiðtygjum og skyldum vörum | L89: 8
A90: 15200 Framleiðsla á skófatnaði | L90: 3
A91: Textíl-, fata og leðuriðnaður | B91: 0 | C91: 40405094 | D91: 5869916476 | E91: 5910321570 | F91: 3664190216 | G91: 9574511786 | H91: 18044727 | I91: 1445379914 | J91: 1253930333 | K91: 191449581 | L91: 151
A92: 16100 Sögun, heflun og fúavörn á viði | L92: 6
A93: 16210 Framleiðsla á viðarspæni og plötum að grunni til úr viði | L93: 1
A94: 16220 Framleiðsla á samsettum parketgólfum | L94: 1
A95: 16230 Framleiðsla á öðrum trésmíðavörum til bygginga | B95: 0 | C95: 707666 | D95: 2778364636 | E95: 2779072302 | F95: 4887668 | G95: 2783959970 | H95: 45187354 | I95: 692187088 | J95: 391308453 | K95: 300878635 | L95: 101
A96: 16240 Framleiðsla á umbúðum úr viði | L96: 7
A97: 16290 Framleiðsla á annarri viðarvöru; framleiðsla á vörum úr korki, hálmi og fléttiefnum | B97: 0 | C97: 511801 | D97: 387568233 | E97: 388080034 | F97: 10562060 | G97: 398642094 | H97: 2000000 | I97: 95480085 | J97: 53392786 | K97: 42087299 | L97: 42
A98: 17120 Framleiðsla á pappír og pappa | L98: 1
A99: 17210 Framleiðsla á bylgjupappír og -pappa og umbúðum úr pappír og pappa | L99: 1
A100: 17220 Framleiðsla á heimilis- og hreinlætisvörum úr pappír og pappa | L100: 2
A101: 17230 Framleiðsla á skrifpappír og skrifstofuvörum úr pappír og pappa | L101: 1
A102: 17290 Framleiðsla á annarri pappírs- og pappavöru | L102: 3
A103: 18110 Prentun dagblaða | L103: 1
A104: 18120 Önnur prentun | B104: 0 | C104: 127147872 | D104: 5647111880 | E104: 5774259752 | F104: 83243758 | G104: 5857503510 | H104: 16284666 | I104: 1396432135 | J104: 861895755 | K104: 534536380 | L104: 108
A105: 18130 Undirbúningur fyrir prentun | B105: 0 | C105: 7756170 | D105: 1505029853 | E105: 1512786023 | F105: 16123932 | G105: 1528909955 | H105: 20473553 | I105: 374291781 | J105: 174035620 | K105: 200256161 | L105: 41
A106: 18140 Bókband og tengd þjónusta | B106: 0 | C106: 177019 | D106: 152280921 | E106: 152457940 | F106: 742920 | G106: 153200860 | H106: 0 | I106: 37321254 | J106: 15081638 | K106: 22239616 | L106: 14
A107: 18200 Fjölföldun upptekins efnis | L107: 5
A108: Trjá- og pappírsiðnaður, prentun | B108: 0 | C108: 241263629 | D108: 12857325271 | E108: 13098588900 | F108: 230403889 | G108: 13328992789 | H108: 83945573 | I108: 3187867674 | J108: 2001373543 | K108: 1186494131 | L108: 335
A109: 20110 Framleiðsla á iðnaðargasi | L109: 3
A110: 20140 Framleiðsla á öðrum lífrænum grunnefnum til efnaiðnaðar | L110: 6
A111: 20150 Framleiðsla á tilbúnum áburði og köfnunarefnissamböndum | L111: 4
A112: 20160 Framleiðsla á plasthráefnum | L112: 4
A113: 20300 Framleiðsla á málningu, lökkum og svipuðum þekjuefnum, prentbleki og fylli- og þéttiefnum | L113: 7
A114: 20410 Framleiðsla á sápu, hreinsi- og þvottaefnum, hreingerningar- og fægiefnum | L114: 7
A115: 20420 Framleiðsla á ilmvatni og snyrtivörum | B115: 0 | C115: 39502 | D115: 1110761931 | E115: 1110801433 | F115: 40120753 | G115: 1150922186 | H115: 0 | I115: 272139509 | J115: 189590585 | K115: 82548924 | L115: 12
A116: 20590 Framleiðsla á annarri ótalinni efnavöru | L116: 8
A117: 20600 Framleiðsla gerviþráðar | L117: 1
A118: 21200 Lyfjaframleiðsla | L118: 6
A119: Framleiðsla á efnum og efnavörum, lyfjaframleiðsla | B119: 0 | C119: 9755483 | D119: 6168152976 | E119: 6177908459 | F119: 1435149119 | G119: 7613057578 | H119: 46742104 | I119: 1523323622 | J119: 1151604761 | K119: 371718861 | L119: 58
A120: 22110 Framleiðsla á gúmmíhjólbörðum og hjólbarðaslöngum, sólun notaðra gúmmíhjólbarða | L120: 6
A121: 22190 Framleiðsla á öðrum gúmmívörum | L121: 5
A122: 22210 Framleiðsla á plötum, þynnum, slöngum og prófílum úr plasti | L122: 2
A123: 22221 Framleiðsla á plastvörum til nota í sjávarútvegi | B123: 0 | C123: 539802 | D123: 724131365 | E123: 724671167 | F123: 966859701 | G123: 1691530868 | H123: 0 | I123: 177449968 | J123: 209961133 | K123: -32511165 | L123: 11
A124: 22229 Framleiðsla á öðru umbúðaplasti | B124: 0 | C124: 3442340 | D124: 2711360415 | E124: 2714802755 | F124: 89771666 | G124: 2804574421 | H124: 0 | I124: 664524904 | J124: 511680263 | K124: 152844641 | L124: 12
A125: 22230 Framleiðsla á byggingarvörum úr plasti | B125: 0 | C125: 0 | D125: 276131408 | E125: 276131408 | F125: 31775182 | G125: 307906590 | H125: 21060100 | I125: 72811915 | J125: 39706752 | K125: 33105163 | L125: 11
A126: 22290 Framleiðsla á öðrum plastvörum | B126: 0 | C126: 6960 | D126: 2202957874 | E126: 2202964834 | F126: 29478854 | G126: 2232443688 | H126: 0 | I126: 539725739 | J126: 342126660 | K126: 197599079 | L126: 24
A127: 23120 Skurður og vinnsla á flotgleri | B127: 0 | C127: 0 | D127: 915283577 | E127: 915283577 | F127: 326064 | G127: 915609641 | H127: 0 | I127: 224244525 | J127: 149164313 | K127: 75080212 | L127: 12
A128: 23130 Framleiðsla á glerílátum | L128: 1
A129: 23190 Framleiðsla og vinnsla á öðru gleri, þ.m.t. glervara til tæknilegra nota | L129: 6
A130: 23310 Framleiðsla á flísum og hellum úr leir | L130: 1
A131: 23410 Framleiðsla á heimilisvörum og skrautmunum úr leir og postulíni | B131: 0 | C131: 0 | D131: 49523665 | E131: 49523665 | F131: 3079743 | G131: 52603408 | H131: 0 | I131: 12133422 | J131: 6348495 | K131: 5784927 | L131: 20
A132: 23490 Framleiðsla á öðrum leirvörum | B132: 0 | C132: 5618532 | D132: 29159485 | E132: 34778017 | F132: 0 | G132: 34778017 | H132: 0 | I132: 7537385 | J132: 4789968 | K132: 2747417 | L132: 10
A133: 23510 Sementsframleiðsla | L133: 1
A134: 23610 Framleiðsla á byggingarefni úr steinsteypu | B134: 0 | C134: 0 | D134: 594486592 | E134: 594486592 | F134: 177283660 | G134: 771770252 | H134: 175857372 | I134: 188734459 | J134: 114270473 | K134: 74463986 | L134: 12
A135: 23620 Framleiðsla á byggingarefni úr gifsi | B135: 0 | C135: 0 | D135: 0 | E135: 0 | F135: 0 | G135: 0 | H135: 0 | I135: 0 | J135: 0 | K135: 0
A136: 23630 Framleiðsla á tilbúinni steinsteypu | B136: 0 | C136: 1192488 | D136: 6458756804 | E136: 6459949292 | F136: 87445942 | G136: 6547395234 | H136: 30000000 | I136: 1589828890 | J136: 1056824380 | K136: 533004510 | L136: 19
A137: 23690 Framleiðsla á öðrum vörum úr steinsteypu, sementi og gifsi | L137: 2
A138: 23700 Steinsmíði | B138: 0 | C138: 0 | D138: 1219005077 | E138: 1219005077 | F138: 80181316 | G138: 1299186393 | H138: 31816703 | I138: 306451378 | J138: 130227823 | K138: 176223555 | L138: 14
A139: 23990 Framleiðsla á öðrum ótöldum vörum úr málmlausum steinefnum | L139: 7
A140: Gúmmí- og plastvöruframleiðsla, gler-, leir- og steinefnaiðnaður | B140: 0 | C140: 15996456 | D140: 23127815644 | E140: 23143812100 | F140: 1982099185 | G140: 25125911285 | H140: 266936797 | I140: 5732835765 | J140: 3829092480 | K140: 1903743285 | L140: 176
A141: 24100 Framleiðsla á járni, stáli og járnblendi | L141: 7
A142: 24200 Framleiðsla á rörum, pípum, holum prófílum og tengihlutum úr stáli | L142: 2
A143: 24420 Álframleiðsla | L143: 4
A144: 24510 Járnsteypa | L144: 3
A145: 24530 Steypa léttmálma | L145: 2
A146: 24540 Steypa annarra málma sem ekki innihalda járn | L146: 2
A147: 25110 Framleiðsla á burðarvirkjum og byggingareiningum úr málmi | B147: 0 | C147: 0 | D147: 112458384 | E147: 112458384 | F147: 16790409 | G147: 129248793 | H147: 0 | I147: 27552314 | J147: 14856765 | K147: 12695549 | L147: 10
A148: 25120 Framleiðsla á hurðum og gluggum úr málmi | L148: 9
A149: 25210 Framleiðsla á miðstöðvarofnum og -kötlum | L149: 1
A150: 25290 Framleiðsla á öðrum geymum, kerum og ílátum úr málmi | L150: 2
A151: 25400 Vopna- og skotfæraframleiðsla | L151: 4
A152: 25500 Eldsmíði og önnur málmsmíði; sindurmótun | B152: 0 | C152: 0 | D152: 92983916 | E152: 92983916 | F152: 7074884 | G152: 100058800 | H152: 6402906 | I152: 24349777 | J152: 16947267 | K152: 7402510 | L152: 17
A153: 25610 Meðhöndlun og húðun málma | B153: 0 | C153: 0 | D153: 1405648664 | E153: 1405648664 | F153: 15711509 | G153: 1421360173 | H153: 4000000 | I153: 345364004 | J153: 266901664 | K153: 78462340 | L153: 17
A154: 25620 Vélvinnsla málma | B154: 0 | C154: 6815987 | D154: 13512249514 | E154: 13519065501 | F154: 3775686500 | G154: 17294752001 | H154: 232848105 | I154: 3368026198 | J154: 2101984303 | K154: 1266041895 | L154: 384
A155: 25720 Framleiðsla á lásum og lömum | L155: 6
A156: 25730 Framleiðsla á verkfærum, þó ekki vélknúnum | L156: 2
A157: 25910 Framleiðsla á stáltunnum og svipuðum ílátum | L157: 1
A158: 25930 Framleiðsla á keðjum, fjöðrum og vörum úr vír | L158: 2
A159: 25990 Framleiðsla á öðrum ótöldum málmvörum | B159: 0 | C159: 0 | D159: 212068705 | E159: 212068705 | F159: 15497914 | G159: 227566619 | H159: 19331143 | I159: 56692969 | J159: 21968364 | K159: 34724605 | L159: 28
A160: Framleiðsla málma og málmvara að undanskildum vélum og búnaði | B160: 0 | C160: 25745758 | D160: 17485131316 | E160: 17510877074 | F160: 184405207637 | G160: 201916084711 | H160: 275927279 | I160: 4353262032 | J160: 40176454517 | K160: -35823192485 | L160: 503
A161: 26110 Framleiðsla á rafeindaíhlutum | L161: 2
A162: 26200 Framleiðsla á tölvum og jaðarbúnaði | L162: 2
A163: 26300 Framleiðsla fjarskiptabúnaðar | L163: 2
A164: 26510 Framleiðsla á tækjum og búnaði til mælinga, prófana og leiðsögu | L164: 9
A165: 26520 Framleiðsla á úrum og klukkum | L165: 1
A166: 26600 Framleiðsla á búnaði til geislunar, raftækjabúnaði til lækninga og meðferðar | L166: 1
A167: 27110 Framleiðsla á rafhreyflum, rafölum og spennubreytum | L167: 2
A168: 27120 Framleiðsla á dreifi- og stjórnbúnaði fyrir raforku | L168: 5
A169: 27200 Framleiðsla rafhlaðna og rafgeyma | L169: 3
A170: 27310 Framleiðsla á ljósleiðaraköplum | L170: 2
A171: 27320 Framleiðsla á öðrum rafeinda- og rafmagnsvírum og köplum | L171: 1
A172: 27400 Framleiðsla á rafljósabúnaði | L172: 5
A173: 27510 Framleiðsla rafknúinna heimilistækja | L173: 3
A174: 27520 Framleiðsla heimilistækja, annarra en rafknúinna | L174: 1
A175: 27900 Framleiðsla á öðrum rafbúnaði | L175: 9
A176: 28110 Framleiðsla hreyfla og hverfla, þó ekki í loftför, ökutæki eða vélhjól | B176: 0 | C176: 0 | D176: 227704032 | E176: 227704032 | F176: 89618555 | G176: 317322587 | H176: 9000000 | I176: 57992448 | J176: 43345375 | K176: 14647073 | L176: 16
A177: 28130 Framleiðsla á öðrum dælum og þjöppum | L177: 1
A178: 28140 Framleiðsla á krönum og lokum | L178: 1
A179: 28150 Framleiðsla á legum, tannhjólum, drifum og drifbúnaði | L179: 1
A180: 28220 Framleiðsla á lyftitækjum og færslubúnaði | L180: 8
A181: 28230 Framleiðsla á skrifstofuvélum og -búnaði, þó ekki tölvum og jaðarbúnaði | L181: 1
A182: 28250 Framleiðsla á kæli- og loftræstibúnaði, þó ekki til heimilisnota | B182: 0 | C182: 0 | D182: 1777734511 | E182: 1777734511 | F182: 853886713 | G182: 2631621224 | H182: 7285592 | I182: 437329425 | J182: 263596900 | K182: 173732525 | L182: 31
A183: 28290 Framleiðsla á öðrum ótöldum vélum til almennra nota | B183: 0 | C183: 0 | D183: 134243038 | E183: 134243038 | F183: 25363582 | G183: 159606620 | H183: 6224661 | I183: 34414624 | J183: 15752840 | K183: 18661784 | L183: 18
A184: 28300 Framleiðsla á vélum til nota í landbúnaði og skógrækt | L184: 2
A185: 28910 Framleiðsla á vélum til málmvinnslu | L185: 2
A186: 28920 Framleiðsla á vélum til mannvirkjagerðar, námugraftrar og vinnslu hráefna úr jörðu | L186: 1
A187: 28930 Framleiðsla á vélum fyrir matvæla-, drykkjarvöru- og tóbaksvinnslu | B187: 0 | C187: 0 | D187: 2073768205 | E187: 2073768205 | F187: 9997279659 | G187: 12071047864 | H187: 8337223 | I187: 510115791 | J187: 1056181539 | K187: -546065748 | L187: 31
A188: 28940 Framleiðsla á vélum fyrir textíl-, fata- og leðurframleiðslu | L188: 1
A189: 28990 Framleiðsla á öðrum ótöldum sérhæfðum vélum | L189: 5
A190: Framleiðsla á tölvum, rafeinda og optískum vörum, rafbúnaði, vélum og tækjum | B190: 0 | C190: 35880 | D190: 6765854119 | E190: 6765889999 | F190: 12997924326 | G190: 19763814325 | H190: 40017410 | I190: 1667440359 | J190: 1956425326 | K190: -288984967 | L190: 167
A191: 29200 Smíði yfirbygginga fyrir vélknúin ökutæki og framleiðsla tengivagna | B191: 0 | C191: 0 | D191: 894482366 | E191: 894482366 | F191: 47276545 | G191: 941758911 | H191: 4827639 | I191: 220330962 | J191: 141360409 | K191: 78970553 | L191: 21
A192: 29310 Framleiðsla á raf- og rafeindabúnaði í vélknúin ökutæki og hreyfla þeirra | L192: 2
A193: 29320 Framleiðsla á öðrum íhlutum og aukabúnaði í vélknúin ökutæki og hreyfla þeirra | L193: 5
A194: 30110 Smíði skipa og annarra fljótandi mannvirkja | B194: 0 | C194: 22389509 | D194: 231539783 | E194: 253929292 | F194: 785865429 | G194: 1039794721 | H194: 7200000 | I194: 60058525 | J194: 176746088 | K194: -116687563 | L194: 12
A195: 30120 Smíði skemmti- og sportbáta | L195: 4
A196: 30300 Framleiðsla á loft- og geimförum og tengdum vélbúnaði | L196: 1
A197: 30920 Framleiðsla á reiðhjólum, barnavögnum og farartækjum fyrir hreyfihamlaða | L197: 1
A198: Framleiðsla á vélknúnum ökutækjum | B198: 0 | C198: 23043641 | D198: 1372147807 | E198: 1395191448 | F198: 881955748 | G198: 2277147196 | H198: 12027639 | I198: 340736061 | J198: 408517470 | K198: -67781409 | L198: 46
A199: 31010 Framleiðsla á húsgögnum og innréttingum fyrir atvinnuhúsnæði | L199: 6
A200: 31020 Framleiðsla á húsgögnum og innréttingum í eldhús | B200: 0 | C200: 0 | D200: 1454618266 | E200: 1454618266 | F200: 22899993 | G200: 1477518259 | H200: 2500000 | I200: 356994063 | J200: 191016419 | K200: 165977644 | L200: 22
... 372 more rows

Sheet 2010
A1: Atvinnugrein | B1: Velta 14% | C1: Velta 7% | D1: Velta 24,5% | E1: Velta 25,5% | F1: Skattsk.velta | G1: Undanþegin velta | H1: Heildarvelta | I1: Áætluð velta | J1: Útskattur | K1: Innskattur | L1: Álagning | M1: Fjöldi
A2: 01110 Kornrækt (að undanskildum hrísgrjónum), ræktun belgjurta og olíufræja | B2: 0 | C2: 16 | D2: 0 | E2: 27709544 | F2: 27725697 | G2: 1865365 | H2: 29591062 | I2: 0 | J2: 7067079 | K2: 8340325 | L2: -1273246 | M2: 14
A3: 01131 Ræktun á aldingrænmeti og papriku | B3: 0 | C3: 685720645 | D3: 0 | E3: 127051006 | F3: 812771651 | G3: 64753024 | H3: 877524675 | I3: 6841001 | J3: 81143201 | K3: 135008310 | L3: -53865109 | M3: 25
A4: 01132 Ræktun á kartöflum | B4: 0 | C4: 439610214 | D4: 0 | E4: 104166192 | F4: 543776406 | G4: 27651507 | H4: 571427913 | I4: 0 | J4: 57335108 | K4: 81474367 | L4: -24139259 | M4: 50
A5: 01139 Ræktun á öðru ótöldu grænmeti, rótum og hnýði | B5: 0 | C5: 1274450352 | D5: 0 | E5: 53533764 | F5: 1327984116 | G5: 22302185 | H5: 1350286301 | I5: 7230392 | J5: 103458112 | K5: 180016953 | L5: -76558841 | M5: 46
A6: 01191 Blómarækt | B6: 0 | C6: 104658814 | D6: -3286165 | E6: 712853568 | F6: 814226217 | G6: 9541247 | H6: 823767464 | I6: 1980392 | J6: 188803774 | K6: 115049643 | L6: 73754131 | M6: 30
A7: 01199 Önnur ótalin ræktun nytjajurta sem ekki eru fjölærar | M7: 3
A8: 01250 Ræktun annarra ávaxta og hnetna af trjám og runnum | M8: 1
A9: 01280 Ræktun krydd- , ilm- og lyfjajurta | M9: 3
A10: 01290 Ræktun annarra fjölærra nytjajurta | M10: 6
A11: 01300 Plöntufjölgun | B11: 0 | C11: 4648529 | D11: -1777163 | E11: 270215217 | F11: 273086583 | G11: 0 | H11: 273086583 | I11: 0 | J11: 68794880 | K11: 25954115 | L11: 42840765 | M11: 15
A12: 01410 Ræktun mjólkurkúa | B12: 0 | C12: 221935768 | D12: -1001080 | E12: 9651620887 | F12: 9872555575 | G12: 4269687141 | H12: 14142242716 | I12: 45016731 | J12: 2487929768 | K12: 2131083590 | L12: 356846178 | M12: 702
A13: 01420 Önnur nautgriparækt | B13: 0 | C13: 84724830 | D13: -308 | E13: 585291641 | F13: 669708037 | G13: 191127795 | H13: 860835832 | I13: 6400691 | J13: 156714217 | K13: 181781532 | L13: -25067315 | M13: 95
A14: 01430 Hrossarækt og ræktun annarra dýra af hrossaætt | B14: 0 | C14: 71431911 | D14: -193 | E14: 854013122 | F14: 925251864 | G14: 420633636 | H14: 1345885500 | I14: 53147274 | J14: 236266621 | K14: 372419651 | L14: -136153030 | M14: 420
A15: 01450 Sauðfjár- og geitarækt | B15: 0 | C15: 436486242 | D15: 0 | E15: 4932448889 | F15: 5368935131 | G15: 2893652341 | H15: 8262587472 | I15: 43462959 | J15: 1299262814 | K15: 1357173227 | L15: -57910413 | M15: 1506
A16: 01460 Svínarækt | B16: 0 | C16: 1290947258 | D16: 0 | E16: 691794793 | F16: 1982742051 | G16: 22721046 | H16: 2005463097 | I16: 118620555 | J16: 297014404 | K16: 382020729 | L16: -85006325 | M16: 21
A17: 01471 Alifuglarækt | B17: 0 | C17: 2719539470 | D17: 0 | E17: 387379564 | F17: 3106919034 | G17: 10505607 | H17: 3117424641 | I17: 0 | J17: 289149571 | K17: 524918529 | L17: -235768958 | M17: 24
A18: 01472 Eggjaframleiðsla | M18: 8
A19: 01491 Loðdýrabú | B19: 0 | C19: 783 | D19: 0 | E19: 112377937 | F19: 113160789 | G19: 929666563 | H19: 1042827352 | I19: 0 | J19: 28711174 | K19: 120004158 | L19: -91292984 | M19: 31
A20: 01492 Æðarrækt og æðardúnstekja | B20: 0 | C20: 4247323 | D20: 0 | E20: 122074811 | F20: 126322134 | G20: 23378566 | H20: 149700700 | I20: 8113726 | J20: 33495490 | K20: 18564180 | L20: 14931310 | M20: 79
A21: 01499 Ræktun annarra ótalinna dýra | M21: 7
A22: 01500 Blandaður búskapur | B22: 0 | C22: 253491058 | D22: -114 | E22: 889810032 | F22: 1143187204 | G22: 302938405 | H22: 1446125609 | I22: 1000000 | J22: 244873141 | K22: 259401966 | L22: -14528825 | M22: 145
A23: 01610 Þjónustustarfsemi við ræktun nytjajurta | B23: 0 | C23: 3294578 | D23: -1229005 | E23: 163202579 | F23: 165268152 | G23: 4515802 | H23: 169783954 | I23: 18000000 | J23: 46136179 | K23: 27012648 | L23: 19123531 | M23: 36
A24: 01620 Þjónustustarfsemi við búfjárrækt | B24: 0 | C24: 8288438 | D24: -174 | E24: 496080630 | F24: 504195471 | G24: 228393457 | H24: 732588928 | I24: 31865278 | J24: 135163923 | K24: 118004936 | L24: 17158987 | M24: 133
A25: 01630 Starfsemi að lokinni uppskeru | M25: 4
A26: 01700 Veiðar og tengd þjónustustarfsemi | B26: 0 | C26: 2720792 | D26: 0 | E26: 60920037 | F26: 63640829 | G26: 0 | H26: 63640829 | I26: 0 | J26: 15725071 | K26: 8428643 | L26: 7296428 | M26: 32
A27: 02101 Rekstur gróðrastöðva fyrir skógartré | B27: 0 | C27: 1296463 | D27: 0 | E27: 64941783 | F27: 66238246 | G27: 0 | H27: 66238246 | I27: 7420298 | J27: 18543142 | K27: 11287760 | L27: 7255382 | M27: 12
A28: 02109 Skógrækt og önnur ótalin starfsemi tengd henni | B28: 0 | C28: 93 | D28: 0 | E28: 11366451 | F28: 11459377 | G28: 11486516 | H28: 22945893 | I28: 2701961 | J28: 3593951 | K28: 58673850 | L28: -55079899 | M28: 409
A29: 02200 Skógarhögg | M29: 5
A30: 02400 Þjónustustarfsemi við skógrækt | B30: 0 | C30: 73 | D30: 0 | E30: 24317807 | F30: 24390807 | G30: 0 | H30: 24390807 | I30: 32704329 | J30: 14545755 | K30: 2659723 | L30: 11886032 | M30: 14
A31: Landbúnaður og skógrækt | B31: -1592009 | C31: 8693631410 | D31: -7294202 | E31: 20437764222 | F31: 29123322990 | G31: 9451356430 | H31: 38574679420 | I31: 384505587 | J31: 5913721246 | K31: 6310758368 | L31: -396156945 | M31: 3876
A32: 03111 Útgerð smábáta | B32: 0 | C32: 15159427268 | D32: -2 | E32: 815087633 | F32: 15974512885 | G32: 10713451365 | H32: 26687964250 | I32: 254679105 | J32: 1312008305 | K32: 1360967156 | L32: -48958851 | M32: 1091
A33: 03112 Útgerð fiskiskipa | B33: 0 | C33: 33448918310 | D33: -31 | E33: 4291320765 | F33: 37740208174 | G33: 47650088791 | H33: 85390296965 | I33: 41691172 | J33: 3443645239 | K33: 5206818075 | L33: -1763172836 | M33: 215
A34: 03113 Hvalveiðar | M34: 1
A35: 03120 Ferskvatnsveiði | M35: 1
A36: 03210 Eldi og ræktun í sjó | B36: 0 | C36: 119162946 | D36: 0 | E36: 160565955 | F36: 279728901 | G36: 190502398 | H36: 470231299 | I36: 0 | J36: 49285728 | K36: 144723291 | L36: -95437563 | M36: 32
A37: 03220 Eldi og ræktun í ferskvatni | B37: 0 | C37: 2158624193 | D37: -455 | E37: 368176650 | F37: 2526345419 | G37: 1139953612 | H37: 3666299031 | I37: 6495851 | J37: 246533637 | K37: 739277916 | L37: -492744279 | M37: 31
A38: Fiskveiðar | B38: 0 | C38: 50944861375 | D38: -488 | E38: 5637682253 | F38: 56582055287 | G38: 59693996166 | H38: 116276051453 | I38: 302866128 | J38: 5055759336 | K38: 7457855020 | L38: -2402095685 | M38: 1371
A39: 08110 Grjótnám til skrautsteinagerðar og til bygginga, kalksteins-, gifs-, krítar- og flögubergsnám | M39: 1
A40: 08120 Malar-, sand- og leirnám | B40: 0 | C40: 625 | D40: -43544034 | E40: 1667900791 | F40: 1624981737 | G40: 193603879 | H40: 1818585616 | I40: 30000000 | J40: 422340171 | K40: 312663118 | L40: 109677053 | M40: 32
A41: 08990 Nám og vinnsla annarra ótalinna hráefna úr jörðu | M41: 3
A42: 09100 Þjónustustarfsemi við námuvinnslu á jarðolíu og jarðgasi | M42: 1
A43: 09900 Þjónustustarfsemi fyrir vinnslu annarra hráefna úr jörðu | M43: 4
A44: Námugröftur og vinnsla hráefna úr jörðu | B44: 0 | C44: 1035585 | D44: -43544034 | E44: 1728361751 | F44: 1686484658 | G44: 596937114 | H44: 2283421772 | I44: 33000000 | J44: 438595651 | K44: 426319844 | L44: 12275807 | M44: 41
A45: 10110 Slátrun og vinnsla á kjöti, þó ekki alifuglakjöti | B45: 0 | C45: 6732896527 | D45: 0 | E45: 439459260 | F45: 7172355787 | G45: 1477749397 | H45: 8650105184 | I45: 0 | J45: 583365270 | K45: 1067007788 | L45: -483642518 | M45: 10
A46: 10120 Slátrun og vinnsla á alifuglakjöti | M46: 3
A47: 10130 Framleiðsla á kjötafurðum | B47: -1814325 | C47: 11374902152 | D47: 0 | E47: 1618900373 | F47: 12991988200 | G47: 801167669 | H47: 13793155869 | I47: 7000000 | J47: 1209298845 | K47: 1475473411 | L47: -266174566 | M47: 24
A48: 10201 Frysting fiskafurða, krabbadýra og lindýra | B48: 0 | C48: 26800466331 | D48: -9392050 | E48: 6273356454 | F48: 33064430735 | G48: 132619945197 | H48: 165684375932 | I48: 123234847 | J48: 3503528025 | K48: 11057270650 | L48: -7553742625 | M48: 140
A49: 10202 Söltun, þurrkun og hersla fiskafurða, krabbadýra og lindýra | B49: 0 | C49: 3061304218 | D49: 0 | E49: 680833070 | F49: 3742137288 | G49: 19536417324 | H49: 23278554612 | I49: 13730392 | J49: 391084374 | K49: 1340811434 | L49: -949727060 | M49: 87
A50: 10203 Mjöl- og lýsisvinnsla | M50: 6
A51: 10204 Framleiðsla lagmetis úr fiskafurðum, krabbadýrum og lindýrum | M51: 8
A52: 10209 Önnur ótalin vinnsla fiskafurða, krabbadýra og lindýra | B52: 0 | C52: 1073971730 | D52: 0 | E52: 209883099 | F52: 1283854829 | G52: 37288820644 | H52: 38572675473 | I52: 29730392 | J52: 135955718 | K52: 539937396 | L52: -403981678 | M52: 52
A53: 10310 Vinnsla á kartöflum | M53: 3
A54: 10390 Önnur ótalin vinnsla ávaxta og grænmetis | M54: 8
A55: 10410 Framleiðsla á olíu og feiti | M55: 4
A56: 10420 Framleiðsla á smjörlíki og svipaðri feiti til manneldis | M56: 1
A57: 10510 Mjólkurbú og ostagerð | B57: 0 | C57: 17838921703 | D57: 0 | E57: 9161646291 | F57: 27000567994 | G57: 703110274 | H57: 27703678268 | I57: 1480392 | J57: 3585321829 | K57: 5396623975 | L57: -1811302146 | M57: 11
A58: 10520 Ísgerð | M58: 1
A59: 10610 Framleiðsla á kornvöru | M59: 8
A60: 10710 Framleiðsla á brauði, nýju sætabrauði og kökum | B60: -3783016 | C60: 7099429441 | D60: 0 | E60: 71201336 | F60: 7166847761 | G60: 2686515 | H60: 7169534276 | I60: 43390520 | J60: 521328957 | K60: 528953497 | L60: -7624540 | M60: 84
A61: 10720 Framleiðsla á tvíbökum og kexi, framleiðsla á geymsluþolnu sætabrauði og kökum | M61: 1
A62: 10730 Framleiðsla á pastavörum og svipuðum vörum | M62: 1
A63: 10820 Framleiðsla á súkkulaði og sælgæti; kakói | M63: 5
A64: 10830 Te- og kaffivinnsla | M64: 3
A65: 10840 Framleiðsla á bragðefnum og kryddi | M65: 9
A66: 10850 Framleiðsla á tilbúnum máltíðum og réttum | B66: 0 | C66: 758961241 | D66: 0 | E66: 20749626 | F66: 779710867 | G66: 41780948 | H66: 821491815 | I66: 3000000 | J66: 59183434 | K66: 59037619 | L66: 146 | M66: 10
A67: 10860 Framleiðsla á jafnblönduðum matvælum og sérfæði | M67: 2
A68: 10890 Önnur ótalin framleiðsla á matvælum | B68: -104 | C68: 3573744838 | D68: -90 | E68: 153921962 | F68: 3727473129 | G68: 52310153 | H68: 3779783282 | I68: 10750000 | J68: 290494252 | K68: 337496017 | L68: -47001765 | M68: 47
A69: 10910 Framleiðsla húsdýrafóðurs | B69: 0 | C69: 32074848 | D69: -3489915 | E69: 9030701004 | F69: 9059285937 | G69: 796338279 | H69: 9855624216 | I69: 0 | J69: 2304213519 | K69: 2497267045 | L69: -193053526 | M69: 16
A70: 10920 Framleiðsla gæludýrafóðurs | M70: 4
A71: 11010 Eiming, hreinsun og blöndun áfengra drykkja | M71: 3
A72: 11020 Framleiðsla á víni úr þrúgum | M72: 2
A73: 11050 Bjórgerð | M73: 6
A74: 11070 Framleiðsla á gosdrykkjum, ölkelduvatni og öðru átöppuðu vatni | B74: 0 | C74: 14124201656 | D74: -22884325 | E74: 11905527990 | F74: 26006845321 | G74: 1868040363 | H74: 27874885684 | I74: 1480392 | J74: 4019374601 | K74: 3136283386 | L74: 883091215 | M74: 13
A75: Matvælaframleiðsla | B75: -5597445 | C75: 106874634908 | D75: -35766718 | E75: 41181815791 | F75: 148015297203 | G75: 205218727124 | H75: 353233574777 | I75: 270777827 | J75: 18032672308 | K75: 29764059524 | L75: -11734078132 | M75: 572
A76: 13100 Forvinnsla og spuni á textíltrefjum | M76: 4
A77: 13200 Textílvefnaður | M77: 6
A78: 13910 Framleiðsla á hekluðum og prjónuðum dúk | M78: 7
A79: 13920 Framleiðsla á tilbúinni spunavöru annarri en fatnaði | B79: 0 | C79: 234 | D79: -153 | E79: 554981656 | F79: 555062817 | G79: 2932161 | H79: 557994978 | I79: 0 | J79: 141499333 | K79: 88450924 | L79: 53048409 | M79: 25
A80: 13940 Framleiðsla á köðlum, seglgarni og netum | B80: 0 | C80: 0 | D80: 0 | E80: 2316515112 | F80: 2316515112 | G80: 2531722126 | H80: 4848237238 | I80: 2000000 | J80: 591221378 | K80: 532455955 | L80: 58765423 | M80: 15
A81: 13990 Framleiðsla á annarri ótalinni textílvöru | M81: 7
A82: 14110 Framleiðsla á leðurfatnaði | M82: 1
A83: 14120 Vinnufatagerð | M83: 3
A84: 14130 Framleiðsla á öðrum yfirfatnaði | B84: 0 | C84: 0 | D84: 0 | E84: 144258925 | F84: 144258925 | G84: 725398 | H84: 144984323 | I84: 8000000 | J84: 38826027 | K84: 19240739 | L84: 19585288 | M84: 27
A85: 14140 Framleiðsla á nærfatnaði | M85: 1
A86: 14190 Framleiðsla á öðrum fatnaði og fylgihlutum | B86: 0 | C86: 18899594 | D86: 0 | E86: 304465689 | F86: 323365283 | G86: 5310290 | H86: 328675573 | I86: 500 | J86: 79089230 | K86: 39384413 | L86: 39704817 | M86: 29
A87: 14200 Framleiðsla á vörum úr loðskinnum | M87: 1
A88: 14310 Framleiðsla á sokkum og sokkavörum | M88: 1
A89: 14390 Framleiðsla á öðrum prjónuðum og hekluðum fatnaði | M89: 6
A90: 15110 Sútun leðurs; sútun og litun á loðskinni | M90: 5
A91: 15120 Framleiðsla á ferðatöskum, handtöskum og áþekkum vörum; reiðtygjum og skyldum vörum | M91: 9
A92: 15200 Framleiðsla á skófatnaði | M92: 4
A93: Textíl-, fata og leðuriðnaður | B93: 0 | C93: 51451829 | D93: 40565246 | E93: 4881211314 | F93: 4973447889 | G93: 3703499580 | H93: 8676646339 | I93: 20656265 | J93: 1263696707 | K93: 1183257153 | L93: 80645685 | M93: 151
A94: 16100 Sögun, heflun og fúavörn á viði | M94: 8
A95: 16210 Framleiðsla á viðarspæni og plötum að grunni til úr viði | M95: 3
A96: 16220 Framleiðsla á samsettum parketgólfum | M96: 1
A97: 16230 Framleiðsla á öðrum trésmíðavörum til bygginga | B97: 0 | C97: 1099961 | D97: -14586915 | E97: 2244189475 | F97: 2230702521 | G97: 6192073 | H97: 2236894594 | I97: 61405271 | J97: 584429655 | K97: 317826788 | L97: 266602867 | M97: 92
A98: 16240 Framleiðsla á umbúðum úr viði | M98: 7
A99: 16290 Framleiðsla á annarri viðarvöru; framleiðsla á vörum úr korki, hálmi og fléttiefnum | B99: 0 | C99: 861 | D99: 0 | E99: 411685079 | F99: 412546297 | G99: 3215303 | H99: 415761600 | I99: 12480392 | J99: 108222552 | K99: 52919059 | L99: 55303493 | M99: 41
A100: 17120 Framleiðsla á pappír og pappa | M100: 1
A101: 17210 Framleiðsla á bylgjupappír og -pappa og umbúðum úr pappír og pappa | M101: 2
A102: 17220 Framleiðsla á heimilis- og hreinlætisvörum úr pappír og pappa | M102: 2
A103: 17230 Framleiðsla á skrifpappír og skrifstofuvörum úr pappír og pappa | M103: 2
A104: 17290 Framleiðsla á annarri pappírs- og pappavöru | M104: 3
A105: 18110 Prentun dagblaða | M105: 2
A106: 18120 Önnur prentun | B106: 0 | C106: 114732961 | D106: -7119821 | E106: 5217179785 | F106: 5324792925 | G106: 60355833 | H106: 5385148758 | I106: 27399431 | J106: 1343653105 | K106: 767330487 | L106: 576322618 | M106: 107
A107: 18130 Undirbúningur fyrir prentun | B107: 0 | C107: 4834765 | D107: 0 | E107: 1466981866 | F107: 1471816631 | G107: 9234721 | H107: 1481051352 | I107: 31770427 | J107: 382520867 | K107: 167454024 | L107: 215066843 | M107: 41
A108: 18140 Bókband og tengd þjónusta | B108: 0 | C108: 6 | D108: 0 | E108: 173524227 | F108: 173530689 | G108: 160240 | H108: 173690929 | I108: 0 | J108: 44249142 | K108: 18251048 | L108: 25998094 | M108: 14
A109: 18200 Fjölföldun upptekins efnis | M109: 4
A110: 19200 Framleiðsla á hreinsuðum olíuvörum | M110: 2
A111: Trjá- og pappírsiðnaður, prentun | B111: 0 | C111: 367642255 | D111: -24741645 | E111: 11169498292 | F111: 11513265714 | G111: 86662363 | H111: 11599928077 | I111: 134056482 | J111: 2900857870 | K111: 1682711753 | L111: 1218317837 | M111: 332
A112: 20110 Framleiðsla á iðnaðargasi | M112: 3
A113: 20140 Framleiðsla á öðrum lífrænum grunnefnum til efnaiðnaðar | M113: 6
A114: 20150 Framleiðsla á tilbúnum áburði og köfnunarefnissamböndum | M114: 4
A115: 20160 Framleiðsla á plasthráefnum | M115: 1
A116: 20300 Framleiðsla á málningu, lökkum og svipuðum þekjuefnum, prentbleki og fylli- og þéttiefnum | M116: 8
A117: 20410 Framleiðsla á sápu, hreinsi- og þvottaefnum, hreingerningar- og fægiefnum | M117: 9
A118: 20420 Framleiðsla á ilmvatni og snyrtivörum | B118: 0 | C118: 877 | D118: -90 | E118: 1524348082 | F118: 1525135560 | G118: 82368838 | H118: 1607504398 | I118: 0 | J118: 388748170 | K118: 240101146 | L118: 148647024 | M118: 13
A119: 20590 Framleiðsla á annarri ótalinni efnavöru | M119: 8
A120: 20600 Framleiðsla gerviþráðar | M120: 1
A121: 21200 Lyfjaframleiðsla | M121: 7
A122: Framleiðsla á efnum og efnavörum, lyfjaframleiðsla | B122: 0 | C122: 25216091 | D122: -80994290 | E122: 5968953561 | F122: 5913962053 | G122: 1632557984 | H122: 7546520037 | I122: 10020404 | J122: 1506599668 | K122: 1134785928 | L122: 370829774 | M122: 60
A123: 22110 Framleiðsla á gúmmíhjólbörðum og hjólbarðaslöngum, sólun notaðra gúmmíhjólbarða | M123: 5
A124: 22190 Framleiðsla á öðrum gúmmívörum | M124: 4
A125: 22210 Framleiðsla á plötum, þynnum, slöngum og prófílum úr plasti | M125: 2
A126: 22221 Framleiðsla á plastvörum til nota í sjávarútvegi | B126: 0 | C126: 867 | D126: -826 | E126: 620020593 | F126: 620060972 | G126: 1123084117 | H126: 1743145089 | I126: 13825118 | J126: 161488876 | K126: 232309446 | L126: -70820570 | M126: 11
A127: 22229 Framleiðsla á öðru umbúðaplasti | B127: 0 | C127: 46 | D127: -3511057 | E127: 2387164092 | F127: 2383699100 | G127: 176434138 | H127: 2560133238 | I127: 0 | J127: 607869868 | K127: 417651486 | L127: 190218382 | M127: 11
A128: 22230 Framleiðsla á byggingarvörum úr plasti | B128: 0 | C128: 0 | D128: 0 | E128: 226251290 | F128: 226251290 | G128: 6427084 | H128: 232678374 | I128: 0 | J128: 57694099 | K128: 33415809 | L128: 24278290 | M128: 10
A129: 22290 Framleiðsla á öðrum plastvörum | B129: 0 | C129: 0 | D129: -4216446 | E129: 2087655282 | F129: 2083438836 | G129: 54027386 | H129: 2137466222 | I129: 980 | J129: 531569101 | K129: 366698967 | L129: 164870134 | M129: 22
A130: 23120 Skurður og vinnsla á flotgleri | B130: 0 | C130: 0 | D130: -6171383 | E130: 876548044 | F130: 870376661 | G130: 127000 | H130: 870503661 | I130: 3846588 | J130: 222989029 | K130: 134657462 | L130: 88331567 | M130: 12
A131: 23130 Framleiðsla á glerílátum | M131: 1
A132: 23190 Framleiðsla og vinnsla á öðru gleri, þ.m.t. glervara til tæknilegra nota | M132: 6
A133: 23310 Framleiðsla á flísum og hellum úr leir | M133: 1
A134: 23410 Framleiðsla á heimilisvörum og skrautmunum úr leir og postulíni | B134: 0 | C134: 0 | D134: 0 | E134: 52345637 | F134: 52345637 | G134: 3547764 | H134: 55893401 | I134: 5000000 | J134: 14623215 | K134: 6771929 | L134: 7851286 | M134: 18
A135: 23490 Framleiðsla á öðrum leirvörum | M135: 9
A136: 23510 Sementsframleiðsla | M136: 1
A137: 23610 Framleiðsla á byggingarefni úr steinsteypu | B137: 0 | C137: 13 | D137: -914 | E137: 226721554 | F137: 225820001 | G137: 7597994 | H137: 233417995 | I137: 5621984 | J137: 59024476 | K137: 46946900 | L137: 12077576 | M137: 12
A138: 23630 Framleiðsla á tilbúinni steinsteypu | B138: 0 | C138: 623 | D138: -21440625 | E138: 4350302024 | F138: 4329484599 | G138: 212424316 | H138: 4541908915 | I138: 30000000 | J138: 1111767690 | K138: 814771120 | L138: 296996570 | M138: 19
A139: 23690 Framleiðsla á öðrum vörum úr steinsteypu, sementi og gifsi | M139: 2
A140: 23700 Steinsmíði | B140: 0 | C140: 0 | D140: -1107759 | E140: 774947955 | F140: 773840196 | G140: 982544 | H140: 774822740 | I140: 9658353 | J140: 199803239 | K140: 94478328 | L140: 105324911 | M140: 12
A141: 23990 Framleiðsla á öðrum ótöldum vörum úr málmlausum steinefnum | M141: 7
A142: Gúmmí- og plastvöruframleiðsla, gler-, leir- og steinefnaiðnaður | B142: 0 | C142: 12876439 | D142: -328483526 | E142: 19707890252 | F142: 19393305157 | G142: 2144661984 | H142: 21537366149 | I142: 105057125 | J142: 4972699971 | K142: 3559074477 | L142: 1412952350 | M142: 165
A143: 24100 Framleiðsla á járni, stáli og járnblendi | M143: 8
A144: 24200 Framleiðsla á rörum, pípum, holum prófílum og tengihlutum úr stáli | M144: 2
A145: 24420 Álframleiðsla | M145: 4
A146: 24430 Blý-, sink- og tinframleiðsla | M146: 1
A147: 24510 Járnsteypa | M147: 3
A148: 24530 Steypa léttmálma | M148: 2
A149: 24540 Steypa annarra málma sem ekki innihalda járn | M149: 1
A150: 25110 Framleiðsla á burðarvirkjum og byggingareiningum úr málmi | M150: 8
A151: 25120 Framleiðsla á hurðum og gluggum úr málmi | M151: 8
A152: 25290 Framleiðsla á öðrum geymum, kerum og ílátum úr málmi | M152: 2
A153: 25400 Vopna- og skotfæraframleiðsla | M153: 4
A154: 25500 Eldsmíði og önnur málmsmíði; sindurmótun | B154: 0 | C154: 0 | D154: 0 | E154: 95471679 | F154: 95471679 | G154: 6863906 | H154: 102335585 | I154: 35226447 | J154: 33328029 | K154: 16507080 | L154: 16820949 | M154: 21
A155: 25610 Meðhöndlun og húðun málma | B155: 0 | C155: 0 | D155: -104 | E155: 1532283359 | F155: 1532179185 | G155: 80984581 | H155: 1613163766 | I155: 0 | J155: 390706736 | K155: 286883127 | L155: 103823609 | M155: 15
A156: 25620 Vélvinnsla málma | B156: 0 | C156: 24010398 | D156: -68452789 | E156: 13149103256 | F156: 13104660865 | G156: 4314941780 | H156: 17419602645 | I156: 410702894 | J156: 3442661096 | K156: 2048159997 | L156: 1394501099 | M156: 365
A157: 25720 Framleiðsla á lásum og lömum | M157: 5
A158: 25730 Framleiðsla á verkfærum, þó ekki vélknúnum | M158: 2
A159: 25910 Framleiðsla á stáltunnum og svipuðum ílátum | M159: 1
A160: 25930 Framleiðsla á keðjum, fjöðrum og vörum úr vír | M160: 2
A161: 25990 Framleiðsla á öðrum ótöldum málmvörum | B161: 0 | C161: 0 | D161: 0 | E161: 225777185 | F161: 225777185 | G161: 20378419 | H161: 246155604 | I161: 19331153 | J161: 62502603 | K161: 27192603 | L161: 35310000 | M161: 29
A162: Framleiðsla málma og málmvara að undanskildum vélum og búnaði | B162: 0 | C162: 53329911 | D162: -82763543 | E162: 16904227887 | F162: 16875433197 | G162: 243067131151 | H162: 259941980408 | I162: 484476180 | J162: 4416153780 | K162: 48875378104 | L162: -44459224324 | M162: 483
A163: 26110 Framleiðsla á rafeindaíhlutum | M163: 3
A164: 26200 Framleiðsla á tölvum og jaðarbúnaði | M164: 1
A165: 26300 Framleiðsla fjarskiptabúnaðar | M165: 1
A166: 26400 Framleiðsla á sjónvarps-, útvarps- og hljómtækjum og skyldum búnaði | M166: 1
A167: 26510 Framleiðsla á tækjum og búnaði til mælinga, prófana og leiðsögu | M167: 9
A168: 26520 Framleiðsla á úrum og klukkum | M168: 1
A169: 26600 Framleiðsla á búnaði til geislunar, raftækjabúnaði til lækninga og meðferðar | M169: 1
A170: 27110 Framleiðsla á rafhreyflum, rafölum og spennubreytum | M170: 2
A171: 27120 Framleiðsla á dreifi- og stjórnbúnaði fyrir raforku | M171: 5
A172: 27200 Framleiðsla rafhlaðna og rafgeyma | M172: 3
A173: 27310 Framleiðsla á ljósleiðaraköplum | M173: 2
A174: 27320 Framleiðsla á öðrum rafeinda- og rafmagnsvírum og köplum | M174: 1
A175: 27400 Framleiðsla á rafljósabúnaði | M175: 6
A176: 27510 Framleiðsla rafknúinna heimilistækja | M176: 3
A177: 27520 Framleiðsla heimilistækja, annarra en rafknúinna | M177: 1
A178: 27900 Framleiðsla á öðrum rafbúnaði | M178: 9
A179: 28110 Framleiðsla hreyfla og hverfla, þó ekki í loftför, ökutæki eða vélhjól | B179: 0 | C179: 197 | D179: 0 | E179: 227173654 | F179: 227370754 | G179: 117275906 | H179: 344646660 | I179: 9980392 | J179: 60488079 | K179: 43040346 | L179: 17447733 | M179: 15
A180: 28130 Framleiðsla á öðrum dælum og þjöppum | M180: 1
A181: 28140 Framleiðsla á krönum og lokum | M181: 1
A182: 28150 Framleiðsla á legum, tannhjólum, drifum og drifbúnaði | M182: 1
A183: 28220 Framleiðsla á lyftitækjum og færslubúnaði | M183: 9
A184: 28230 Framleiðsla á skrifstofuvélum og -búnaði, þó ekki tölvum og jaðarbúnaði | M184: 1
A185: 28250 Framleiðsla á kæli- og loftræstibúnaði, þó ekki til heimilisnota | B185: 0 | C185: 0 | D185: -776 | E185: 1822062754 | F185: 1821286754 | G185: 801237860 | H185: 2622524614 | I185: 10285600 | J185: 467058743 | K185: 313748121 | L185: 153310622 | M185: 33
A186: 28290 Framleiðsla á öðrum ótöldum vélum til almennra nota | B186: 0 | C186: 0 | D186: 0 | E186: 154037653 | F186: 154037653 | G186: 12452640 | H186: 166490293 | I186: 6318933 | J186: 40890828 | K186: 20755870 | L186: 20134958 | M186: 15
A187: 28300 Framleiðsla á vélum til nota í landbúnaði og skógrækt | M187: 2
A188: 28910 Framleiðsla á vélum til málmvinnslu | M188: 1
A189: 28920 Framleiðsla á vélum til mannvirkjagerðar, námugraftrar og vinnslu hráefna úr jörðu | M189: 1
A190: 28930 Framleiðsla á vélum fyrir matvæla-, drykkjarvöru- og tóbaksvinnslu | B190: 0 | C190: 489 | D190: -3160435 | E190: 8391952631 | F190: 8389280740 | G190: 14663956275 | H190: 23053237015 | I190: 11995733 | J190: 2142270170 | K190: 2937260769 | L190: -794990599 | M190: 32
A191: 28940 Framleiðsla á vélum fyrir textíl-, fata- og leðurframleiðslu | M191: 1
A192: 28990 Framleiðsla á öðrum ótöldum sérhæfðum vélum | M192: 4
A193: Framleiðsla á tölvum, rafeinda og optíksum vörum, rafbúnaði, vélum og tækjum | B193: 0 | C193: 782 | D193: -3162809 | E193: 13324852032 | F193: 13321345349 | G193: 17161049596 | H193: 30481395156 | I193: 38581565 | J193: 3404353359 | K193: 3946638524 | L193: -546189111 | M193: 166
A194: 29200 Smíði yfirbygginga fyrir vélknúin ökutæki og framleiðsla tengivagna | B194: 0 | C194: 0 | D194: -356 | E194: 803830561 | F194: 803474961 | G194: 24938083 | H194: 828413044 | I194: 6000000 | J194: 206419506 | K194: 127140939 | L194: 79278567 | M194: 20
A195: 29310 Framleiðsla á raf- og rafeindabúnaði í vélknúin ökutæki og hreyfla þeirra | M195: 2
A196: 29320 Framleiðsla á öðrum íhlutum og aukabúnaði í vélknúin ökutæki og hreyfla þeirra | M196: 5
A197: 30110 Smíði skipa og annarra fljótandi mannvirkja | B197: 0 | C197: 42344255 | D197: 0 | E197: 215190930 | F197: 257535185 | G197: 958480128 | H197: 1216015313 | I197: 9660784 | J197: 60301314 | K197: 159261942 | L197: -98960628 | M197: 14
A198: 30120 Smíði skemmti- og sportbáta | M198: 6
A199: 30300 Framleiðsla á loft- og geimförum og tengdum vélbúnaði | M199: 1
A200: 30920 Framleiðsla á reiðhjólum, barnavögnum og farartækjum fyrir hreyfihamlaða | M200: 1
... 377 more rows

Sheet 2011
A1: Atvinnugrein | B1: Velta 14% | C1: Velta 7% | D1: Velta 24,5% | E1: Velta 25,5% | F1: Skattsk.velta | G1: Undanþegin velta | H1: Heildarvelta | I1: Áætluð velta | J1: Útskattur | K1: Innskattur | L1: Álagning | M1: Fjöldi
A2: 01110 Kornrækt (að undanskildum hrísgrjónum), ræktun belgjurta og olíufræja | B2: 0 | C2: 2925175 | D2: 0 | E2: 25695134 | F2: 28620309 | G2: 1645580 | H2: 30265889 | I2: 0 | J2: 6757028 | K2: 15502962 | L2: -8745934 | M2: 16
A3: 01131 Ræktun á aldingrænmeti og papriku | B3: 0 | C3: 755945673 | D3: 0 | E3: 123099096 | F3: 879044769 | G3: 39273837 | H3: 918318606 | I3: 8858090 | J3: 86149710 | K3: 158850890 | L3: -72701180 | M3: 26
A4: 01132 Ræktun á kartöflum | B4: 0 | C4: 461418574 | D4: 0 | E4: 101715192 | F4: 563133766 | G4: 33187301 | H4: 596321067 | I4: 21721121 | J4: 59981694 | K4: 79078976 | L4: -19097282 | M4: 47
A5: 01139 Ræktun á öðru ótöldu grænmeti, rótum og hnýði | B5: 0 | C5: 1461097731 | D5: 0 | E5: 90563987 | F5: 1551661718 | G5: 38310063 | H5: 1589971781 | I5: 12010784 | J5: 126388954 | K5: 209437365 | L5: -83048411 | M5: 47
A6: 01191 Blómarækt | B6: 0 | C6: 107546603 | D6: -417 | E6: 654118318 | F6: 761247584 | G6: 8482158 | H6: 769729742 | I6: 37337409 | J6: 183202196 | K6: 115725097 | L6: 67477099 | M6: 28
A7: 01199 Önnur ótalin ræktun nytjajurta sem ekki eru fjölærar | M7: 2
A8: 01250 Ræktun annarra ávaxta og hnetna af trjám og runnum | M8: 1
A9: 01280 Ræktun krydd- , ilm- og lyfjajurta | M9: 3
A10: 01290 Ræktun annarra fjölærra nytjajurta | M10: 7
A11: 01300 Plöntufjölgun | B11: 0 | C11: 6508965 | D11: 0 | E11: 218747391 | F11: 225256356 | G11: 677 | H11: 225932977 | I11: 0 | J11: 56236216 | K11: 24744671 | L11: 31491545 | M11: 13
A12: 01410 Ræktun mjólkurkúa | B12: 0 | C12: 261489699 | D12: -176 | E12: 10418484865 | F12: 10679798164 | G12: 4542982783 | H12: 15222780947 | I12: 39709756 | J12: 2685113787 | K12: 2371733002 | L12: 313380785 | M12: 684
A13: 01420 Önnur nautgriparækt | B13: 0 | C13: 98920090 | D13: 0 | E13: 760300654 | F13: 859220744 | G13: 206652376 | H13: 1065873120 | I13: 9138403 | J13: 203104615 | K13: 188684696 | L13: 14419919 | M13: 99
A14: 01430 Hrossarækt og ræktun annarra dýra af hrossaætt | B14: 0 | C14: 61202502 | D14: 0 | E14: 862163503 | F14: 923366005 | G14: 414980555 | H14: 1338346560 | I14: 126549638 | J14: 255933764 | K14: 405291836 | L14: -149358072 | M14: 433
A15: 01450 Sauðfjár- og geitarækt | B15: 0 | C15: 465342475 | D15: -5 | E15: 5669753426 | F15: 6135090899 | G15: 2929310448 | H15: 9064401347 | I15: 50891773 | J15: 1491008440 | K15: 1539663284 | L15: -48654844 | M15: 1507
A16: 01460 Svínarækt | B16: 0 | C16: 1670620892 | D16: 0 | E16: 748513619 | F16: 2419134511 | G16: 72937814 | H16: 2492072325 | I16: 0 | J16: 307814468 | K16: 433820443 | L16: -126005975 | M16: 19
A17: 01471 Alifuglarækt | B17: 0 | C17: 3364040456 | D17: 0 | E17: 439386040 | F17: 3803426496 | G17: 18834283 | H17: 3822260779 | I17: 0 | J17: 347526317 | K17: 610753240 | L17: -263226923 | M17: 25
A18: 01472 Eggjaframleiðsla | M18: 9
A19: 01491 Loðdýrabú | B19: 0 | C19: 514 | D19: 0 | E19: 175193604 | F19: 175707431 | G19: 977047882 | H19: 1152755313 | I19: 0 | J19: 44710313 | K19: 223945756 | L19: -179235443 | M19: 31
A20: 01492 Æðarrækt og æðardúnstekja | B20: 0 | C20: 9167190 | D20: 0 | E20: 134872679 | F20: 144039869 | G20: 17938975 | H20: 161978844 | I20: 6960555 | J20: 36809302 | K20: 15606977 | L20: 21202325 | M20: 78
A21: 01499 Ræktun annarra ótalinna dýra | M21: 7
A22: 01500 Blandaður búskapur | B22: 0 | C22: 288303802 | D22: -81 | E22: 1157084560 | F22: 1445307862 | G22: 431894691 | H22: 1877202553 | I22: 19209312 | J22: 319916086 | K22: 312594449 | L22: 7321637 | M22: 149
A23: 01610 Þjónustustarfsemi við ræktun nytjajurta | B23: 0 | C23: 3476082 | D23: 0 | E23: 170909620 | F23: 174385702 | G23: 8529691 | H23: 182915393 | I23: 4838769 | J23: 45059309 | K23: 30546204 | L23: 14513105 | M23: 35
A24: 01620 Þjónustustarfsemi við búfjárrækt | B24: 0 | C24: 12266027 | D24: -174 | E24: 612489658 | F24: 624581662 | G24: 245150799 | H24: 869732461 | I24: 39743004 | J24: 167135417 | K24: 121947815 | L24: 45187602 | M24: 126
A25: 01630 Starfsemi að lokinni uppskeru | M25: 4
A26: 01700 Veiðar og tengd þjónustustarfsemi | B26: 0 | C26: 4742022 | D26: 0 | E26: 63705338 | F26: 68447360 | G26: 0 | H26: 68447360 | I26: 6261468 | J26: 18173607 | K26: 10315411 | L26: 7858196 | M26: 30
A27: 02101 Rekstur gróðrastöðva fyrir skógartré | B27: 0 | C27: 2006913 | D27: 0 | E27: 89034101 | F27: 91041014 | G27: 1409993 | H27: 92451007 | I27: 10498755 | J27: 25521423 | K27: 15108088 | L27: 10413335 | M27: 13
A28: 02109 Skógrækt og önnur ótalin starfsemi tengd henni | B28: 0 | C28: 99 | D28: 0 | E28: 22431120 | F28: 22530531 | G28: 14811247 | H28: 37341778 | I28: 13342470 | J28: 9129219 | K28: 55842787 | L28: -46713568 | M28: 413
A29: 02200 Skógarhögg | M29: 2
A30: 02400 Þjónustustarfsemi við skógrækt | B30: 0 | C30: 0 | D30: 0 | E30: 29594649 | F30: 29594649 | G30: 0 | H30: 29594649 | I30: 15048502 | J30: 11384002 | K30: 2319144 | L30: 9064858 | M30: 13
A31: Landbúnaður og skógrækt | B31: 0 | C31: 10310407881 | D31: -853 | E31: 22659051109 | F31: 32969729059 | G31: 10020460298 | H31: 42991374641 | I31: 424600201 | J31: 6599850017 | K31: 7171294699 | L31: -571441600 | M31: 3867
A32: 03111 Útgerð smábáta | B32: 0 | C32: 14599649881 | D32: 0 | E32: 659263238 | F32: 15258913119 | G32: 9741418994 | H32: 25000332113 | I32: 322300222 | J32: 1244369570 | K32: 1370475594 | L32: -126106024 | M32: 1130
A33: 03112 Útgerð fiskiskipa | B33: 0 | C33: 40049563545 | D33: -1268779 | E33: 4492854415 | F33: 44541149181 | G33: 52869207046 | H33: 97410356227 | I33: 41490245 | J33: 3955550678 | K33: 5616598400 | L33: -1661047722 | M33: 210
A34: 03113 Hvalveiðar | M34: 2
A35: 03120 Ferskvatnsveiði | M35: 2
A36: 03210 Eldi og ræktun í sjó | B36: 0 | C36: 118925679 | D36: 0 | E36: 131327755 | F36: 250253434 | G36: 243341899 | H36: 493595333 | I36: 2607025 | J36: 42308379 | K36: 219419712 | L36: -177111333 | M36: 35
A37: 03220 Eldi og ræktun í ferskvatni | B37: 0 | C37: 2516195929 | D37: 0 | E37: 444256723 | F37: 2960452652 | G37: 1234651249 | H37: 4195103901 | I37: 980 | J37: 289669144 | K37: 803378454 | L37: -513709310 | M37: 31
A38: Fiskveiðar | B38: 0 | C38: 57348826542 | D38: -1268779 | E38: 5734784608 | F38: 63082342371 | G38: 64088619188 | H38: 127170961559 | I38: 368127823 | J38: 5538089511 | K38: 8017708541 | L38: -2479619030 | M38: 1410
A39: 08110 Grjótnám til skrautsteinagerðar og til bygginga, kalksteins-, gifs-, krítar- og flögubergsnám | M39: 2
A40: 08120 Malar-, sand- og leirnám | B40: 0 | C40: 243 | D40: -3895179 | E40: 1409330368 | F40: 1405678500 | G40: 319384891 | H40: 1725063391 | I40: 2980392 | J40: 359205458 | K40: 209443226 | L40: 149762232 | M40: 32
A41: 08930 Saltnám | M41: 1
A42: 08990 Nám og vinnsla annarra ótalinna hráefna úr jörðu | M42: 4
A43: 09100 Þjónustustarfsemi við námuvinnslu á jarðolíu og jarðgasi | M43: 1
A44: 09900 Þjónustustarfsemi fyrir vinnslu annarra hráefna úr jörðu | M44: 4
A45: Námugröftur og vinnsla hráefna úr jörðu | B45: 0 | C45: 441 | D45: -3895179 | E45: 1484769963 | F45: 1481315759 | G45: 1027329753 | H45: 2508448046 | I45: 2981392 | J45: 378697619 | K45: 356075931 | L45: 22635510 | M45: 44
A46: 10110 Slátrun og vinnsla á kjöti, þó ekki alifuglakjöti | B46: 0 | C46: 7483561426 | D46: 0 | E46: 609171573 | F46: 8092732999 | G46: 1295680192 | H46: 9388413191 | I46: 0 | J46: 679188082 | K46: 1305126657 | L46: -625938575 | M46: 11
A47: 10120 Slátrun og vinnsla á alifuglakjöti | M47: 3
A48: 10130 Framleiðsla á kjötafurðum | B48: 0 | C48: 12427116420 | D48: 0 | E48: 1851979154 | F48: 14279095574 | G48: 825041496 | H48: 15104137070 | I48: 5250000 | J48: 1342520584 | K48: 1704342300 | L48: -361821716 | M48: 26
A49: 10201 Frysting fiskafurða, krabbadýra og lindýra | B49: 0 | C49: 30382023947 | D49: 0 | E49: 5701360192 | F49: 36083384139 | G49: 154723869686 | H49: 190807253825 | I49: 89754300 | J49: 3599784404 | K49: 12398564309 | L49: -8798779905 | M49: 139
A50: 10202 Söltun, þurrkun og hersla fiskafurða, krabbadýra og lindýra | B50: 0 | C50: 3832305272 | D50: 0 | E50: 958339336 | F50: 4790644608 | G50: 19024426529 | H50: 23815071137 | I50: 21360784 | J50: 517437913 | K50: 1560883754 | L50: -1043445841 | M50: 87
A51: 10203 Mjöl- og lýsisvinnsla | M51: 5
A52: 10204 Framleiðsla lagmetis úr fiskafurðum, krabbadýrum og lindýrum | M52: 8
A53: 10209 Önnur ótalin vinnsla fiskafurða, krabbadýra og lindýra | B53: 0 | C53: 1304038691 | D53: 0 | E53: 225965184 | F53: 1530003875 | G53: 37659918434 | H53: 39189922309 | I53: 55914389 | J53: 163146460 | K53: 589938972 | L53: -426792512 | M53: 49
A54: 10310 Vinnsla á kartöflum | M54: 3
A55: 10390 Önnur ótalin vinnsla ávaxta og grænmetis | M55: 8
A56: 10410 Framleiðsla á olíu og feiti | M56: 4
A57: 10420 Framleiðsla á smjörlíki og svipaðri feiti til manneldis | M57: 1
A58: 10510 Mjólkurbú og ostagerð | B58: 0 | C58: 18800403317 | D58: 0 | E58: 9752551360 | F58: 28552954677 | G58: 928990218 | H58: 29481944895 | I58: 1000000 | J58: 3803183734 | K58: 5794011901 | L58: -1990828167 | M58: 12
A59: 10520 Ísgerð | M59: 2
A60: 10610 Framleiðsla á kornvöru | M60: 8
A61: 10710 Framleiðsla á brauði, nýju sætabrauði og kökum | B61: 0 | C61: 7437109923 | D61: 0 | E61: 78712178 | F61: 7515822101 | G61: 3718146 | H61: 7519540247 | I61: 25415776 | J61: 546019483 | K61: 530191884 | L61: 15827599 | M61: 82
A62: 10720 Framleiðsla á tvíbökum og kexi, framleiðsla á geymsluþolnu sætabrauði og kökum | M62: 1
A63: 10730 Framleiðsla á pastavörum og svipuðum vörum | M63: 1
A64: 10820 Framleiðsla á súkkulaði og sælgæti; kakói | M64: 7
A65: 10830 Te- og kaffivinnsla | M65: 3
A66: 10840 Framleiðsla á bragðefnum og kryddi | B66: 0 | C66: 1297523138 | D66: 0 | E66: 18141642 | F66: 1315664780 | G66: 28669290 | H66: 1344334070 | I66: 10000000 | J66: 98002803 | K66: 113809683 | L66: -15806880 | M66: 10
A67: 10850 Framleiðsla á tilbúnum máltíðum og réttum | M67: 8
A68: 10860 Framleiðsla á jafnblönduðum matvælum og sérfæði | M68: 2
A69: 10890 Önnur ótalin framleiðsla á matvælum | B69: 0 | C69: 3848892154 | D69: 0 | E69: 159686696 | F69: 4008578850 | G69: 63315359 | H69: 4071894209 | I69: 0 | J69: 310142566 | K69: 363321820 | L69: -53179254 | M69: 48
A70: 10910 Framleiðsla húsdýrafóðurs | B70: 0 | C70: 103304680 | D70: 0 | E70: 10654372895 | F70: 10757677575 | G70: 950367000 | H70: 11708044575 | I70: 480 | J70: 2724218922 | K70: 2896950986 | L70: -172732064 | M70: 18
A71: 10920 Framleiðsla gæludýrafóðurs | M71: 4
A72: 11010 Eiming, hreinsun og blöndun áfengra drykkja | M72: 6
A73: 11020 Framleiðsla á víni úr þrúgum | M73: 2
A74: 11050 Bjórgerð | M74: 5
A75: 11070 Framleiðsla á gosdrykkjum, ölkelduvatni og öðru átöppuðu vatni | B75: 0 | C75: 15115429873 | D75: -40 | E75: 12234882844 | F75: 27350272556 | G75: 1888527268 | H75: 29238799824 | I75: 10000000 | J75: 4179222924 | K75: 3589065354 | L75: 590157570 | M75: 14
A76: Matvælaframleiðsla | B76: 0 | C76: 117696441145 | D76: -2179360 | E76: 43622392984 | F76: 161316596641 | G76: 228573027731 | H76: 389890084195 | I76: 245618278 | J76: 19417179685 | K76: 33750811220 | L76: -14333631535 | M76: 577
A77: 13100 Forvinnsla og spuni á textíltrefjum | M77: 4
A78: 13200 Textílvefnaður | M78: 9
A79: 13910 Framleiðsla á hekluðum og prjónuðum dúk | M79: 7
A80: 13920 Framleiðsla á tilbúinni spunavöru annarri en fatnaði | B80: 0 | C80: 239 | D80: 0 | E80: 561487389 | F80: 561726468 | G80: 3827964 | H80: 565554432 | I80: 0 | J80: 143198268 | K80: 91773767 | L80: 51424501 | M80: 25
A81: 13940 Framleiðsla á köðlum, seglgarni og netum | B81: 0 | C81: -134 | D81: -1241588 | E81: 2669989792 | F81: 2668613893 | G81: 2672367129 | H81: 5340981022 | I81: 0 | J81: 680533848 | K81: 548619145 | L81: 131914703 | M81: 13
A82: 13960 Framleiðsla annarra tækni- og iðnaðartextíla | M82: 1
A83: 13990 Framleiðsla á annarri ótalinni textílvöru | M83: 8
A84: 14110 Framleiðsla á leðurfatnaði | M84: 1
A85: 14120 Vinnufatagerð | M85: 3
A86: 14130 Framleiðsla á öðrum yfirfatnaði | B86: 0 | C86: -387 | D86: 0 | E86: 163573898 | F86: 163187142 | G86: 5690202 | H86: 168877344 | I86: 39390359 | J86: 51729388 | K86: 20409925 | L86: 31319463 | M86: 29
A87: 14140 Framleiðsla á nærfatnaði | M87: 1
A88: 14190 Framleiðsla á öðrum fatnaði og fylgihlutum | B88: 0 | C88: 5950381 | D88: 0 | E88: 268461762 | F88: 274412143 | G88: 4900717 | H88: 279312860 | I88: 25520115 | J88: 75381924 | K88: 43346011 | L88: 32035913 | M88: 26
A89: 14200 Framleiðsla á vörum úr loðskinnum | M89: 1
A90: 14310 Framleiðsla á sokkum og sokkavörum | M90: 1
A91: 14390 Framleiðsla á öðrum prjónuðum og hekluðum fatnaði | M91: 5
A92: 15110 Sútun leðurs; sútun og litun á loðskinni | M92: 5
A93: 15120 Framleiðsla á ferðatöskum, handtöskum og áþekkum vörum; reiðtygjum og skyldum vörum | M93: 9
A94: 15200 Framleiðsla á skófatnaði | M94: 5
A95: Textíl-, fata og leðuriðnaður | B95: 0 | C95: 40367581 | D95: -1241987 | E95: 5567811199 | F95: 5608631557 | G95: 4540372646 | H95: 10148049738 | I95: 79067104 | J95: 1442650137 | K95: 1273962170 | L95: 168687967 | M95: 153
A96: 16100 Sögun, heflun og fúavörn á viði | M96: 8
A97: 16210 Framleiðsla á viðarspæni og plötum að grunni til úr viði | M97: 3
A98: 16220 Framleiðsla á samsettum parketgólfum | M98: 1
A99: 16230 Framleiðsla á öðrum trésmíðavörum til bygginga | B99: 0 | C99: 5490268 | D99: -7846556 | E99: 2356238540 | F99: 2353882252 | G99: 15238638 | H99: 2369120890 | I99: 99962115 | J99: 624793212 | K99: 341904190 | L99: 282889022 | M99: 83
A100: 16240 Framleiðsla á umbúðum úr viði | M100: 8
A101: 16290 Framleiðsla á annarri viðarvöru; framleiðsla á vörum úr korki, hálmi og fléttiefnum | B101: 0 | C101: 1243681 | D101: 0 | E101: 386507918 | F101: 387751599 | G101: 1901393 | H101: 389652992 | I101: 7960784 | J101: 100676741 | K101: 49227543 | L101: 51449198 | M101: 39
A102: 17120 Framleiðsla á pappír og pappa | M102: 1
A103: 17210 Framleiðsla á bylgjupappír og -pappa og umbúðum úr pappír og pappa | M103: 2
A104: 17220 Framleiðsla á heimilis- og hreinlætisvörum úr pappír og pappa | M104: 2
A105: 17230 Framleiðsla á skrifpappír og skrifstofuvörum úr pappír og pappa | M105: 2
A106: 17290 Framleiðsla á annarri pappírs- og pappavöru | M106: 1
A107: 18110 Prentun dagblaða | M107: 2
A108: 18120 Önnur prentun | B108: 0 | C108: 129844584 | D108: -43 | E108: 5469062877 | F108: 5598864504 | G108: 76573517 | H108: 5675438021 | I108: 24615097 | J108: 1409911975 | K108: 862044023 | L108: 547867952 | M108: 103
A109: 18130 Undirbúningur fyrir prentun | B109: 0 | C109: 4095633 | D109: 0 | E109: 1506194556 | F109: 1510290189 | G109: 4593726 | H109: 1514883915 | I109: 8547794 | J109: 386547843 | K109: 173372711 | L109: 213175132 | M109: 38
A110: 18140 Bókband og tengd þjónusta | B110: 0 | C110: 644 | D110: 0 | E110: 150063376 | F110: 150707286 | G110: 181 | H110: 150888286 | I110: 0 | J110: 38311309 | K110: 16295737 | L110: 22015572 | M110: 15
A111: 18200 Fjölföldun upptekins efnis | M111: 4
A112: Trjá- og pappírsiðnaður, prentun | B112: 0 | C112: 440585167 | D112: -7846599 | E112: 11817402563 | F112: 12250741483 | G112: 104236405 | H112: 12356748571 | I112: 150203944 | J112: 3079167274 | K112: 1857379240 | L112: 1220428895 | M112: 312
A113: 19200 Framleiðsla á hreinsuðum olíuvörum | M113: 2
A114: 20110 Framleiðsla á iðnaðargasi | M114: 3
A115: 20140 Framleiðsla á öðrum lífrænum grunnefnum til efnaiðnaðar | M115: 7
A116: 20150 Framleiðsla á tilbúnum áburði og köfnunarefnissamböndum | M116: 4
A117: 20160 Framleiðsla á plasthráefnum | M117: 1
A118: 20300 Framleiðsla á málningu, lökkum og svipuðum þekjuefnum, prentbleki og fylli- og þéttiefnum | M118: 7
A119: 20410 Framleiðsla á sápu, hreinsi- og þvottaefnum, hreingerningar- og fægiefnum | M119: 9
A120: 20420 Framleiðsla á ilmvatni og snyrtivörum | B120: 0 | C120: 1053853 | D120: 0 | E120: 1276914039 | F120: 1277967892 | G120: 262754886 | H120: 1540722778 | I120: 5000000 | J120: 326961906 | K120: 273458296 | L120: 53503610 | M120: 14
A121: 20530 Framleiðsla á ilmolíum | M121: 1
A122: 20590 Framleiðsla á annarri ótalinni efnavöru | M122: 8
A123: 20600 Framleiðsla gerviþráðar | M123: 1
A124: 21200 Lyfjaframleiðsla | M124: 8
A125: Framleiðsla á efnum og efnavörum, lyfjaframleiðsla | B125: 0 | C125: 38553540 | D125: -20258756 | E125: 5799359848 | F125: 5817201848 | G125: 1902603989 | H125: 7720187975 | I125: 52128655 | J125: 1488376313 | K125: 1236413010 | L125: 251924080 | M125: 65
A126: 22110 Framleiðsla á gúmmíhjólbörðum og hjólbarðaslöngum, sólun notaðra gúmmíhjólbarða | M126: 5
A127: 22190 Framleiðsla á öðrum gúmmívörum | M127: 4
A128: 22210 Framleiðsla á plötum, þynnum, slöngum og prófílum úr plasti | M128: 1
A129: 22221 Framleiðsla á plastvörum til nota í sjávarútvegi | B129: 0 | C129: 0 | D129: 0 | E129: 806498632 | F129: 806498632 | G129: 1393512592 | H129: 2200011224 | I129: 3194661 | J129: 206471795 | K129: 307731947 | L129: -101260152 | M129: 10
A130: 22229 Framleiðsla á öðru umbúðaplasti | B130: 0 | C130: 241 | D130: 0 | E130: 2202601819 | F130: 2202842478 | G130: 124476057 | H130: 2327318535 | I130: 2809803 | J130: 562396868 | K130: 378956448 | L130: 183440420 | M130: 11
A131: 22230 Framleiðsla á byggingarvörum úr plasti | B131: 0 | C131: 685 | D131: -80 | E131: 212850827 | F131: 213455845 | G131: 8216278 | H131: 221672123 | I131: 1281821 | J131: 54632150 | K131: 30379858 | L131: 24252292 | M131: 10
A132: 22290 Framleiðsla á öðrum plastvörum | B132: 0 | C132: 35 | D132: 0 | E132: 2197821320 | F132: 2197856380 | G132: 56122694 | H132: 2253979074 | I132: 11500000 | J132: 563381503 | K132: 387826922 | L132: 175554581 | M132: 23
A133: 23120 Skurður og vinnsla á flotgleri | B133: 0 | C133: 0 | D133: 0 | E133: 924948471 | F133: 924948471 | G133: 4464549 | H133: 929413020 | I133: 14132541 | J133: 239465575 | K133: 155771477 | L133: 83694098 | M133: 12
A134: 23130 Framleiðsla á glerílátum | M134: 2
A135: 23190 Framleiðsla og vinnsla á öðru gleri, þ.m.t. glervara til tæknilegra nota | M135: 7
A136: 23310 Framleiðsla á flísum og hellum úr leir | M136: 1
A137: 23410 Framleiðsla á heimilisvörum og skrautmunum úr leir og postulíni | B137: 0 | C137: 0 | D137: 0 | E137: 61729786 | F137: 61729786 | G137: 230 | H137: 61959681 | I137: 15500000 | J137: 19693758 | K137: 10091638 | L137: 9602120 | M137: 16
A138: 23490 Framleiðsla á öðrum leirvörum | M138: 7
A139: 23510 Sementsframleiðsla | M139: 1
A140: 23610 Framleiðsla á byggingarefni úr steinsteypu | M140: 9
A141: 23630 Framleiðsla á tilbúinni steinsteypu | B141: 0 | C141: 0 | D141: -8678344 | E141: 3956575831 | F141: 3947897487 | G141: 187477606 | H141: 4135375093 | I141: 10000000 | J141: 1009350803 | K141: 744171035 | L141: 265179768 | M141: 19
A142: 23690 Framleiðsla á öðrum vörum úr steinsteypu, sementi og gifsi | M142: 2
A143: 23700 Steinsmíði | B143: 0 | C143: 0 | D143: 0 | E143: 667200096 | F143: 667200096 | G143: 339 | H143: 667539298 | I143: 0 | J143: 170136154 | K143: 92259316 | L143: 77876838 | M143: 11
A144: 23990 Framleiðsla á öðrum ótöldum vörum úr málmlausum steinefnum | M144: 7
A145: Gúmmí- og plastvöruframleiðsla, gler-, leir- og steinefnaiðnaður | B145: 0 | C145: 14540629 | D145: -41301711 | E145: 18272930344 | F145: 18247840883 | G145: 2468433077 | H145: 20717316003 | I145: 84671236 | J145: 4671955383 | K145: 3531969981 | L145: 1139985402 | M145: 158
A146: 24100 Framleiðsla á járni, stáli og járnblendi | B146: 0 | C146: 0 | D146: 0 | E146: 246267736 | F146: 246267736 | G146: 29752855312 | H146: 29999123048 | I146: 16411765 | J146: 66983278 | K146: 885322122 | L146: -818338844 | M146: 10
A147: 24200 Framleiðsla á rörum, pípum, holum prófílum og tengihlutum úr stáli | M147: 2
A148: 24420 Álframleiðsla | M148: 5
A149: 24430 Blý-, sink- og tinframleiðsla | M149: 1
A150: 24510 Járnsteypa | M150: 4
A151: 24530 Steypa léttmálma | M151: 2
A152: 24540 Steypa annarra málma sem ekki innihalda járn | M152: 1
A153: 25110 Framleiðsla á burðarvirkjum og byggingareiningum úr málmi | M153: 7
A154: 25120 Framleiðsla á hurðum og gluggum úr málmi | B154: 0 | C154: 0 | D154: 0 | E154: 463596826 | F154: 463596826 | G154: 1439984 | H154: 465036810 | I154: 26438068 | J154: 124958916 | K154: 81515777 | L154: 43443139 | M154: 10
A155: 25210 Framleiðsla á miðstöðvarofnum og -kötlum | M155: 1
A156: 25290 Framleiðsla á öðrum geymum, kerum og ílátum úr málmi | M156: 2
A157: 25400 Vopna- og skotfæraframleiðsla | M157: 3
A158: 25500 Eldsmíði og önnur málmsmíði; sindurmótun | B158: 0 | C158: 0 | D158: 0 | E158: 137155009 | F158: 137155009 | G158: 9663228 | H158: 146818237 | I158: 46828910 | J158: 46915819 | K158: 21375557 | L158: 25540262 | M158: 23
A159: 25610 Meðhöndlun og húðun málma | B159: 0 | C159: 0 | D159: 0 | E159: 1655599520 | F159: 1655599520 | G159: 101856939 | H159: 1757456459 | I159: 4655958 | J159: 423365145 | K159: 314405678 | L159: 108959467 | M159: 16
A160: 25620 Vélvinnsla málma | B160: 0 | C160: 22476888 | D160: -6170720 | E160: 15042842575 | F160: 15059148743 | G160: 4417874590 | H160: 19477023333 | I160: 318089689 | J160: 3917104087 | K160: 2316702957 | L160: 1600401130 | M160: 367
A161: 25720 Framleiðsla á lásum og lömum | M161: 6
A162: 25730 Framleiðsla á verkfærum, þó ekki vélknúnum | M162: 2
A163: 25910 Framleiðsla á stáltunnum og svipuðum ílátum | M163: 1
A164: 25930 Framleiðsla á keðjum, fjöðrum og vörum úr vír | M164: 1
A165: 25990 Framleiðsla á öðrum ótöldum málmvörum | B165: 0 | C165: 0 | D165: -712 | E165: 224310491 | F165: 223598156 | G165: 17123700 | H165: 240721856 | I165: 30665576 | J165: 64844419 | K165: 27996235 | L165: 36848184 | M165: 25
A166: Framleiðsla málma og málmvara að undanskildum vélum og búnaði | B166: 0 | C166: 92400171 | D166: -6171432 | E166: 19190495826 | F166: 19276158154 | G166: 269923145367 | H166: 289199660027 | I166: 449096110 | J166: 5010129735 | K166: 59623756269 | L166: -54612498328 | M166: 489
A167: 26110 Framleiðsla á rafeindaíhlutum | M167: 3
A168: 26200 Framleiðsla á tölvum og jaðarbúnaði | M168: 2
A169: 26300 Framleiðsla fjarskiptabúnaðar | M169: 1
A170: 26400 Framleiðsla á sjónvarps-, útvarps- og hljómtækjum og skyldum búnaði | M170: 2
A171: 26510 Framleiðsla á tækjum og búnaði til mælinga, prófana og leiðsögu | M171: 9
A172: 26520 Framleiðsla á úrum og klukkum | M172: 1
A173: 26600 Framleiðsla á búnaði til geislunar, raftækjabúnaði til lækninga og meðferðar | M173: 1
A174: 26800 Framleiðsla á segul- og optískum miðlum | M174: 1
A175: 27110 Framleiðsla á rafhreyflum, rafölum og spennubreytum | M175: 2
A176: 27120 Framleiðsla á dreifi- og stjórnbúnaði fyrir raforku | M176: 2
A177: 27200 Framleiðsla rafhlaðna og rafgeyma | M177: 3
A178: 27310 Framleiðsla á ljósleiðaraköplum | M178: 2
A179: 27320 Framleiðsla á öðrum rafeinda- og rafmagnsvírum og köplum | M179: 1
A180: 27400 Framleiðsla á rafljósabúnaði | M180: 6
A181: 27510 Framleiðsla rafknúinna heimilistækja | M181: 3
A182: 27900 Framleiðsla á öðrum rafbúnaði | M182: 9
A183: 28110 Framleiðsla hreyfla og hverfla, þó ekki í loftför, ökutæki eða vélhjól | B183: 0 | C183: 38 | D183: -676 | E183: 196331838 | F183: 195693329 | G183: 127382313 | H183: 323075642 | I183: 9500000 | J183: 52323980 | K183: 46529934 | L183: 5794046 | M183: 15
A184: 28130 Framleiðsla á öðrum dælum og þjöppum | M184: 1
A185: 28140 Framleiðsla á krönum og lokum | M185: 1
A186: 28150 Framleiðsla á legum, tannhjólum, drifum og drifbúnaði | M186: 1
A187: 28220 Framleiðsla á lyftitækjum og færslubúnaði | M187: 8
A188: 28230 Framleiðsla á skrifstofuvélum og -búnaði, þó ekki tölvum og jaðarbúnaði | M188: 1
A189: 28250 Framleiðsla á kæli- og loftræstibúnaði, þó ekki til heimilisnota | B189: 0 | C189: 0 | D189: 0 | E189: 2564444564 | F189: 2564444564 | G189: 619062752 | H189: 3183507316 | I189: 18623192 | J189: 658681889 | K189: 416666146 | L189: 242015743 | M189: 31
A190: 28290 Framleiðsla á öðrum ótöldum vélum til almennra nota | B190: 0 | C190: 0 | D190: 0 | E190: 137346493 | F190: 137346493 | G190: 14821885 | H190: 152168378 | I190: 5665835 | J190: 36468088 | K190: 13800528 | L190: 22667560 | M190: 18
A191: 28300 Framleiðsla á vélum til nota í landbúnaði og skógrækt | M191: 2
A192: 28910 Framleiðsla á vélum til málmvinnslu | M192: 1
A193: 28920 Framleiðsla á vélum til mannvirkjagerðar, námugraftrar og vinnslu hráefna úr jörðu | M193: 2
A194: 28930 Framleiðsla á vélum fyrir matvæla-, drykkjarvöru- og tóbaksvinnslu | B194: 0 | C194: 48 | D194: 0 | E194: 3327656759 | F194: 3327704559 | G194: 14484112700 | H194: 17811817259 | I194: 2980392 | J194: 849316274 | K194: 1855214294 | L194: -1005898020 | M194: 30
A195: 28940 Framleiðsla á vélum fyrir textíl-, fata- og leðurframleiðslu | M195: 1
A196: 28990 Framleiðsla á öðrum ótöldum sérhæfðum vélum | M196: 4
A197: Framleiðsla á tölvum, rafeinda og optíksum vörum, rafbúnaði, vélum og tækjum | B197: 0 | C197: 147 | D197: -4828159 | E197: 9773173991 | F197: 9768919582 | G197: 17149142555 | H197: 26918049234 | I197: 50628632 | J197: 2500744170 | K197: 3068527494 | L197: -568676098 | M197: 164
A198: 29200 Smíði yfirbygginga fyrir vélknúin ökutæki og framleiðsla tengivagna | B198: 0 | C198: 0 | D198: 0 | E198: 997040180 | F198: 997040180 | G198: 6899848 | H198: 1003940028 | I198: 961 | J198: 254490112 | K198: 154148195 | L198: 100341917 | M198: 20
A199: 29310 Framleiðsla á raf- og rafeindabúnaði í vélknúin ökutæki og hreyfla þeirra | M199: 2
A200: 29320 Framleiðsla á öðrum íhlutum og aukabúnaði í vélknúin ökutæki og hreyfla þeirra | M200: 5
... 382 more rows

Sheet 2012
A1: Atvinnugein | B1: Velta 14% | C1: Velta 7% | D1: Velta 24,5% | E1: Velta 25,5% | F1: Skattsk. velta | G1: Undanþegin velta | H1: Heildar velta | I1: Áætlun | J1: Útskattur alls | K1: Innskattur | L1: Álagning | M1: Fjöldi
A2: 01110 Kornrækt (að undanskildum hrísgrjónum), ræktun belgjurta og olíufræja | B2: 0 | C2: 582139 | D2: 0 | E2: 29392126 | F2: 29974265 | G2: 2518794 | H2: 32493059 | I2: 1441176 | J2: 7903257 | K2: 35920017 | L2: -28016760 | M2: 17
A3: 01120 Hrísgrjónarækt | M3: 1
A4: 01131 Ræktun á aldingrænmeti og papriku | B4: 0 | C4: 866162305 | D4: 0 | E4: 109499236 | F4: 975661541 | G4: 51839236 | H4: 1027500777 | I4: 0 | J4: 88553282 | K4: 166856811 | L4: -78303529 | M4: 24
A5: 01132 Ræktun á kartöflum | B5: 0 | C5: 443434694 | D5: 0 | E5: 111255802 | F5: 554690496 | G5: 34814176 | H5: 589504672 | I5: 1071870 | J5: 59655515 | K5: 77185489 | L5: -17529974 | M5: 48
A6: 01139 Ræktun á öðru ótöldu grænmeti, rótum og hnýði | B6: 0 | C6: 1558170602 | D6: 0 | E6: 85228655 | F6: 1643399257 | G6: 60340380 | H6: 1703739637 | I6: 9975607 | J6: 132570030 | K6: 267241639 | L6: -134671609 | M6: 44
A7: 01140 Ræktun sykurreyrs | M7: 1
A8: 01160 Ræktun trefjajurta | M8: 1
A9: 01191 Blómarækt | B9: 0 | C9: 147295413 | D9: 0 | E9: 692282490 | F9: 839577903 | G9: 8471483 | H9: 848049386 | I9: 20432923 | J9: 191641542 | K9: 126247683 | L9: 65393859 | M9: 29
A10: 01199 Önnur ótalin ræktun nytjajurta sem ekki eru fjölærar | M10: 1
A11: 01250 Ræktun annarra ávaxta og hnetna af trjám og runnum | M11: 2
A12: 01280 Ræktun krydd- , ilm- og lyfjajurta | M12: 3
A13: 01290 Ræktun annarra fjölærra nytjajurta | M13: 7
A14: 01300 Plöntufjölgun | B14: 0 | C14: 8895819 | D14: 0 | E14: 205372835 | F14: 214268654 | G14: 485130 | H14: 214753784 | I14: 0 | J14: 52992808 | K14: 27394048 | L14: 25598760 | M14: 12
A15: 01410 Ræktun mjólkurkúa | B15: 0 | C15: 296339520 | D15: 0 | E15: 10961840585 | F15: 11258180105 | G15: 4468709190 | H15: 15726889295 | I15: 50971423 | J15: 2828161379 | K15: 2657998142 | L15: 170163237 | M15: 673
A16: 01420 Önnur nautgriparækt | B16: 0 | C16: 117359004 | D16: 0 | E16: 805636486 | F16: 922995490 | G16: 225392108 | H16: 1148387598 | I16: 7942976 | J16: 215426144 | K16: 216533788 | L16: -1107644 | M16: 97
A17: 01430 Hrossarækt og ræktun annarra dýra af hrossaætt | B17: 0 | C17: 78223498 | D17: 0 | E17: 910108185 | F17: 988331683 | G17: 569503768 | H17: 1557835451 | I17: 129034051 | J17: 270021672 | K17: 353316529 | L17: -83294857 | M17: 425
A18: 01450 Sauðfjár- og geitarækt | B18: 0 | C18: 434241919 | D18: 0 | E18: 6201965029 | F18: 6636206948 | G18: 2928349091 | H18: 9564556039 | I18: 91404374 | J18: 1633705351 | K18: 1642501644 | L18: -8796293 | M18: 1471
A19: 01460 Svínarækt | B19: 0 | C19: 1740029105 | D19: 0 | E19: 941570167 | F19: 2681599272 | G19: 62829314 | H19: 2744428586 | I19: 0 | J19: 361902362 | K19: 486110390 | L19: -124208028 | M19: 17
A20: 01471 Alifuglarækt | B20: 0 | C20: 3855621253 | D20: 0 | E20: 458073884 | F20: 4313695137 | G20: 15866640 | H20: 4329561777 | I20: 0 | J20: 386702351 | K20: 703454610 | L20: -316752259 | M20: 25
A21: 01472 Eggjaframleiðsla | B21: 0 | C21: 1287489281 | D21: 0 | E21: 29066862 | F21: 1316556143 | G21: 13409593 | H21: 1329965736 | I21: 0 | J21: 97536402 | K21: 220367015 | L21: -122830613 | M21: 10
A22: 01491 Loðdýrabú | B22: 0 | C22: 437035 | D22: 0 | E22: 197057243 | F22: 197494278 | G22: 1345170288 | H22: 1542664566 | I22: 5298548 | J22: 51627685 | K22: 270032397 | L22: -218404712 | M22: 37
A23: 01492 Æðarrækt og æðardúnstekja | B23: 0 | C23: 8518680 | D23: 0 | E23: 161164129 | F23: 169682809 | G23: 32125073 | H23: 201807882 | I23: 0 | J23: 41693429 | K23: 16815181 | L23: 24878248 | M23: 78
A24: 01499 Ræktun annarra ótalinna dýra | M24: 6
A25: 01500 Blandaður búskapur | B25: 0 | C25: 307092061 | D25: 0 | E25: 1316156769 | F25: 1623248830 | G25: 458407455 | H25: 2081656285 | I25: 23754285 | J25: 363163139 | K25: 403849257 | L25: -40686118 | M25: 160
A26: 01610 Þjónustustarfsemi við ræktun nytjajurta | B26: 0 | C26: 5536538 | D26: 0 | E26: 220759216 | F26: 226295754 | G26: 30943478 | H26: 257239232 | I26: 7534641 | J26: 58602499 | K26: 49883399 | L26: 8719100 | M26: 34
A27: 01620 Þjónustustarfsemi við búfjárrækt | B27: 0 | C27: 13054907 | D27: 0 | E27: 648219621 | F27: 661274528 | G27: 273666788 | H27: 934941316 | I27: 36460784 | J27: 175507510 | K27: 139648251 | L27: 35859259 | M27: 133
A28: 01630 Starfsemi að lokinni uppskeru | M28: 4
A29: 01700 Veiðar og tengd þjónustustarfsemi | B29: 0 | C29: 8014236 | D29: 0 | E29: 69496069 | F29: 77510305 | G29: 0 | H29: 77510305 | I29: 13267887 | J29: 21665894 | K29: 10563625 | L29: 11102269 | M29: 28
A30: 02101 Rekstur gróðrastöðva fyrir skógartré | B30: 0 | C30: 2670676 | D30: 0 | E30: 88448125 | F30: 91118801 | G30: 888780 | H30: 92007581 | I30: 480392 | J30: 22863766 | K30: 12898959 | L30: 9964807 | M30: 12
A31: 02109 Skógrækt og önnur ótalin starfsemi tengd henni | B31: 0 | C31: 139816 | D31: 0 | E31: 8471756 | F31: 8611572 | G31: 12082342 | H31: 20693914 | I31: 22696079 | J31: 7957602 | K31: 58045654 | L31: -50088052 | M31: 418
A32: 02200 Skógarhögg | M32: 2
A33: 02400 Þjónustustarfsemi við skógrækt | B33: 0 | C33: 0 | D33: 0 | E33: 28639596 | F33: 28639596 | G33: 345570 | H33: 28985166 | I33: 0 | J33: 7303101 | K33: 2780791 | L33: 4522310 | M33: 11
A34: Landbúnaður og skógrækt | B34: 0 | C34: 11241022899 | D34: 0 | E34: 24345610111 | F34: 35586633010 | G34: 10636847606 | H34: 46223480616 | I34: 430767016 | J34: 7100577320 | K34: 7971157068 | L34: -870579748 | M34: 3831
A35: 03111 Útgerð smábáta | B35: 0 | C35: 15929606274 | D35: 0 | E35: 760748956 | F35: 16690355230 | G35: 11391232268 | H35: 28081587498 | I35: 276860117 | J35: 1362304260 | K35: 1572674443 | L35: -210370183 | M35: 1197
A36: 03112 Útgerð fiskiskipa | B36: 0 | C36: 42205587024 | D36: 0 | E36: 6148079603 | F36: 48353666627 | G36: 46246259845 | H36: 94599926472 | I36: 29250000 | J36: 4526693026 | K36: 5665101278 | L36: -1138408252 | M36: 204
A37: 03113 Hvalveiðar | M37: 2
A38: 03120 Ferskvatnsveiði | M38: 2
A39: 03210 Eldi og ræktun í sjó | B39: 0 | C39: 274109133 | D39: 0 | E39: 115836772 | F39: 389945905 | G39: 914494658 | H39: 1304440563 | I39: 16921569 | J39: 53041021 | K39: 517299456 | L39: -464258435 | M39: 35
A40: 03220 Eldi og ræktun í ferskvatni | B40: 0 | C40: 2796886552 | D40: 0 | E40: 651777167 | F40: 3448663719 | G40: 1582562729 | H40: 5031226448 | I40: 0 | J40: 361985317 | K40: 826527367 | L40: -464542050 | M40: 31
A41: Fiskveiðar | B41: 0 | C41: 61271346293 | D41: 0 | E41: 7693475446 | F41: 68964821739 | G41: 60134549500 | H41: 129099371239 | I41: 329761041 | J41: 6314325533 | K41: 8589563156 | L41: -2275237623 | M41: 1471
A42: 08110 Grjótnám til skrautsteinagerðar og til bygginga, kalksteins-, gifs-, krítar- og flögubergsnám | M42: 2
A43: 08120 Malar-, sand- og leirnám | B43: 0 | C43: 351318 | D43: 0 | E43: 1708718357 | F43: 1709069675 | G43: 210086878 | H43: 1919156553 | I43: 480392 | J43: 435869944 | K43: 264901084 | L43: 170968860 | M43: 32
A44: 08910 Nám og vinnsla á steinefnum til efnaiðnaðar og áburðargerðar | M44: 1
A45: 08930 Saltnám | M45: 1
A46: 08990 Nám og vinnsla annarra ótalinna hráefna úr jörðu | M46: 3
A47: 09100 Þjónustustarfsemi við námuvinnslu á jarðolíu og jarðgasi | M47: 1
A48: 09900 Þjónustustarfsemi fyrir vinnslu annarra hráefna úr jörðu | M48: 3
A49: Námugröftur og vinnsla hráefna úr jörð | B49: 0 | C49: 7556009 | D49: 0 | E49: 1788428594 | F49: 1795984603 | G49: 974405331 | H49: 2770389934 | I49: 1460784 | J49: 456925005 | K49: 428963393 | L49: 27961612 | M49: 43
A50: 10110 Slátrun og vinnsla á kjöti, þó ekki alifuglakjöti | B50: 0 | C50: 8336366555 | D50: 0 | E50: 592200832 | F50: 8928567387 | G50: 1556172465 | H50: 10484739852 | I50: 0 | J50: 734557012 | K50: 1139827477 | L50: -405270465 | M50: 11
A51: 10120 Slátrun og vinnsla á alifuglakjöti | M51: 3
A52: 10130 Framleiðsla á kjötafurðum | B52: 0 | C52: 13508300276 | D52: 0 | E52: 2090301697 | F52: 15598601973 | G52: 932109155 | H52: 16530711128 | I52: 2803000 | J52: 1479141436 | K52: 1907447054 | L52: -428305618 | M52: 22
A53: 10201 Frysting fiskafurða, krabbadýra og lindýra | B53: -188834 | C53: 32571527999 | D53: 0 | E53: 7854548813 | F53: 40425887978 | G53: 176389731126 | H53: 216815619104 | I53: 148959405 | J53: 4318292674 | K53: 14685398748 | L53: -10367106074 | M53: 146
A54: 10202 Söltun, þurrkun og hersla fiskafurða, krabbadýra og lindýra | B54: 0 | C54: 4173430691 | D54: 0 | E54: 815547506 | F54: 4988978197 | G54: 22269666815 | H54: 27258645012 | I54: 18980392 | J54: 504945969 | K54: 1884386566 | L54: -1379440597 | M54: 90
A55: 10203 Mjöl- og lýsisvinnsla | M55: 5
A56: 10204 Framleiðsla lagmetis úr fiskafurðum, krabbadýrum og lindýrum | M56: 8
A57: 10209 Önnur ótalin vinnsla fiskafurða, krabbadýra og lindýra | B57: 0 | C57: 1161241208 | D57: 0 | E57: 219843034 | F57: 1381084242 | G57: 40922347286 | H57: 42303431528 | I57: 14477067 | J57: 141038523 | K57: 525632781 | L57: -384594258 | M57: 50
A58: 10310 Vinnsla á kartöflum | M58: 2
A59: 10390 Önnur ótalin vinnsla ávaxta og grænmetis | M59: 7
A60: 10410 Framleiðsla á olíu og feiti | M60: 4
A61: 10420 Framleiðsla á smjörlíki og svipaðri feiti til manneldis | M61: 1
A62: 10510 Mjólkurbú og ostagerð | B62: 0 | C62: 20139951562 | D62: 0 | E62: 10140251333 | F62: 30280202895 | G62: 1055849886 | H62: 31336052781 | I62: 4130704 | J62: 3996306413 | K62: 6159757464 | L62: -2163451051 | M62: 12
A63: 10520 Ísgerð | M63: 2
A64: 10610 Framleiðsla á kornvöru | M64: 8
A65: 10710 Framleiðsla á brauði, nýju sætabrauði og kökum | B65: 0 | C65: 8054277211 | D65: 0 | E65: 100348525 | F65: 8154625736 | G65: 18474122 | H65: 8173099858 | I65: 39010915 | J65: 598065312 | K65: 607942294 | L65: -9876982 | M65: 82
A66: 10720 Framleiðsla á tvíbökum og kexi, framleiðsla á geymsluþolnu sætabrauði og kökum | M66: 1
A67: 10730 Framleiðsla á pastavörum og svipuðum vörum | M67: 1
A68: 10820 Framleiðsla á súkkulaði og sælgæti; kakói | M68: 9
A69: 10830 Te- og kaffivinnsla | M69: 3
A70: 10840 Framleiðsla á bragðefnum og kryddi | B70: 0 | C70: 1344658387 | D70: 0 | E70: 20601159 | F70: 1365259546 | G70: 40469341 | H70: 1405728887 | I70: 7000000 | J70: 101164085 | K70: 112284444 | L70: -11120359 | M70: 11
A71: 10850 Framleiðsla á tilbúnum máltíðum og réttum | B71: 0 | C71: 916026154 | D71: 0 | E71: 11069206 | F71: 927095360 | G71: 43926277 | H71: 971021637 | I71: 3000000 | J71: 67709462 | K71: 73150183 | L71: -5440721 | M71: 10
A72: 10860 Framleiðsla á jafnblönduðum matvælum og sérfæði | M72: 2
A73: 10890 Önnur ótalin framleiðsla á matvælum | B73: 0 | C73: 4146321571 | D73: 0 | E73: 148265582 | F73: 4294587153 | G73: 68097732 | H73: 4362684885 | I73: 6737900 | J73: 329446693 | K73: 393967871 | L73: -64521178 | M73: 48
A74: 10910 Framleiðsla húsdýrafóðurs | B74: 0 | C74: 233433545 | D74: 0 | E74: 12169451325 | F74: 12402884870 | G74: 869447789 | H74: 13272332659 | I74: 1137734 | J74: 3119838419 | K74: 3387903894 | L74: -268065475 | M74: 15
A75: 10920 Framleiðsla gæludýrafóðurs | M75: 4
A76: 11010 Eiming, hreinsun og blöndun áfengra drykkja | M76: 6
A77: 11020 Framleiðsla á víni úr þrúgum | M77: 3
A78: 11050 Bjórgerð | M78: 5
A79: 11070 Framleiðsla á gosdrykkjum, ölkelduvatni og öðru átöppuðu vatni | B79: 0 | C79: 15842526359 | D79: 0 | E79: 13248940638 | F79: 29091466997 | G79: 2064954783 | H79: 31156421780 | I79: 0 | J79: 4487446421 | K79: 3625017701 | L79: 862428720 | M79: 18
A80: Matvælaframleiðsla | B80: -188834 | C80: 125957156687 | D80: 0 | E80: 48946369148 | F80: 174903337001 | G80: 260112093669 | H80: 435015430670 | I80: 276979333 | J80: 21362190845 | K80: 37683124534 | L80: -16320933689 | M80: 589
A81: 13100 Forvinnsla og spuni á textíltrefjum | M81: 3
A82: 13200 Textílvefnaður | M82: 8
A83: 13910 Framleiðsla á hekluðum og prjónuðum dúk | M83: 7
A84: 13920 Framleiðsla á tilbúinni spunavöru annarri en fatnaði | B84: 0 | C84: 990817 | D84: 0 | E84: 669273677 | F84: 670264494 | G84: 1843312 | H84: 672107806 | I84: 5000000 | J84: 172011273 | K84: 112248372 | L84: 59762901 | M84: 26
A85: 13940 Framleiðsla á köðlum, seglgarni og netum | B85: 0 | C85: 32811 | D85: -45195 | E85: 2763677410 | F85: 2763665026 | G85: 3208344528 | H85: 5972009554 | I85: 0 | J85: 704728917 | K85: 652399950 | L85: 52328967 | M85: 13
A86: 13960 Framleiðsla annarra tækni- og iðnaðartextíla | M86: 1
A87: 13990 Framleiðsla á annarri ótalinni textílvöru | M87: 7
A88: 14110 Framleiðsla á leðurfatnaði | M88: 1
A89: 14120 Vinnufatagerð | M89: 3
A90: 14130 Framleiðsla á öðrum yfirfatnaði | B90: 0 | C90: 0 | D90: 0 | E90: 221926375 | F90: 221926375 | G90: 9798818 | H90: 231725193 | I90: 23916078 | J90: 62691140 | K90: 29188343 | L90: 33502797 | M90: 31
A91: 14140 Framleiðsla á nærfatnaði | M91: 1
A92: 14190 Framleiðsla á öðrum fatnaði og fylgihlutum | B92: 0 | C92: 3479362 | D92: 0 | E92: 215445498 | F92: 218924860 | G92: 5285332 | H92: 224210192 | I92: 21260596 | J92: 60603610 | K92: 35816235 | L92: 24787375 | M92: 24
A93: 14200 Framleiðsla á vörum úr loðskinnum | M93: 1
A94: 14310 Framleiðsla á sokkum og sokkavörum | M94: 1
A95: 14390 Framleiðsla á öðrum prjónuðum og hekluðum fatnaði | M95: 6
A96: 15110 Sútun leðurs; sútun og litun á loðskinni | M96: 5
A97: 15120 Framleiðsla á ferðatöskum, handtöskum og áþekkum vörum; reiðtygjum og skyldum vörum | M97: 6
A98: 15200 Framleiðsla á skófatnaði | M98: 5
A99: Textíl, fata og leðuriðnaður | B99: 0 | C99: 41499804 | D99: -45195 | E99: 5734630158 | F99: 5776084767 | G99: 6407106363 | H99: 12183191130 | I99: 65005907 | J99: 1481804582 | K99: 1447576372 | L99: 34228210 | M99: 149
A100: 16100 Sögun, heflun og fúavörn á viði | M100: 8
A101: 16210 Framleiðsla á viðarspæni og plötum að grunni til úr viði | M101: 3
A102: 16220 Framleiðsla á samsettum parketgólfum | M102: 1
A103: 16230 Framleiðsla á öðrum trésmíðavörum til bygginga | B103: 0 | C103: 160284 | D103: -567731 | E103: 2442400473 | F103: 2441993026 | G103: 10391839 | H103: 2452384865 | I103: 27865287 | J103: 629790349 | K103: 362646594 | L103: 267143755 | M103: 79
A104: 16240 Framleiðsla á umbúðum úr viði | M104: 8
A105: 16290 Framleiðsla á annarri viðarvöru; framleiðsla á vörum úr korki, hálmi og fléttiefnum | B105: 0 | C105: 731065 | D105: 0 | E105: 375128335 | F105: 375859400 | G105: 1415087 | H105: 377274487 | I105: 10926791 | J105: 98495193 | K105: 50265929 | L105: 48229264 | M105: 36
A106: 17210 Framleiðsla á bylgjupappír og -pappa og umbúðum úr pappír og pappa | M106: 1
A107: 17220 Framleiðsla á heimilis- og hreinlætisvörum úr pappír og pappa | M107: 2
A108: 17230 Framleiðsla á skrifpappír og skrifstofuvörum úr pappír og pappa | M108: 2
A109: 17290 Framleiðsla á annarri pappírs- og pappavöru | M109: 1
A110: 18110 Prentun dagblaða | M110: 2
A111: 18120 Önnur prentun | B111: 0 | C111: 108871434 | D111: 0 | E111: 5399868161 | F111: 5508739595 | G111: 69922493 | H111: 5578662088 | I111: 18368196 | J111: 1388624960 | K111: 813388167 | L111: 575236793 | M111: 101
A112: 18130 Undirbúningur fyrir prentun | B112: 0 | C112: 8636256 | D112: 0 | E112: 1568356306 | F112: 1576992562 | G112: 6342510 | H112: 1583335072 | I112: 5418158 | J112: 401918678 | K112: 182145556 | L112: 219773122 | M112: 36
A113: 18140 Bókband og tengd þjónusta | B113: 0 | C113: 499475 | D113: 0 | E113: 137317089 | F113: 137816564 | G113: 1760759 | H113: 139577323 | I113: 0 | J113: 35050867 | K113: 12655239 | L113: 22395628 | M113: 13
A114: 18200 Fjölföldun upptekins efnis | M114: 4
A115: Trjá- og pappírsiðnaður, prentun | B115: 0 | C115: 381636647 | D115: -567731 | E115: 11964388782 | F115: 12345457698 | G115: 166016497 | H115: 12511474195 | I115: 80289667 | J115: 3095999069 | K115: 1818527652 | L115: 1277471417 | M115: 297
A116: 19200 Framleiðsla á hreinsuðum olíuvörum | M116: 8
A117: 20110 Framleiðsla á iðnaðargasi | M117: 3
A118: 20140 Framleiðsla á öðrum lífrænum grunnefnum til efnaiðnaðar | M118: 9
A119: 20150 Framleiðsla á tilbúnum áburði og köfnunarefnissamböndum | M119: 4
A120: 20160 Framleiðsla á plasthráefnum | M120: 1
A121: 20300 Framleiðsla á málningu, lökkum og svipuðum þekjuefnum, prentbleki og fylli- og þéttiefnum | M121: 7
A122: 20410 Framleiðsla á sápu, hreinsi- og þvottaefnum, hreingerningar- og fægiefnum | M122: 9
A123: 20420 Framleiðsla á ilmvatni og snyrtivörum | B123: 0 | C123: 732130 | D123: 0 | E123: 1242948067 | F123: 1243680197 | G123: 337175288 | H123: 1580855485 | I123: 3000000 | J123: 317768055 | K123: 323774244 | L123: -6006189 | M123: 14
A124: 20590 Framleiðsla á annarri ótalinni efnavöru | M124: 8
A125: 20600 Framleiðsla gerviþráðar | M125: 1
A126: 21100 Framleiðsla á efnum til lyfjagerðar | M126: 1
A127: 21200 Lyfjaframleiðsla | M127: 8
A128: Framleiðsla á efnum og efnavörum, lyfjaframleiðsla | B128: 0 | C128: 67200414 | D128: -392074 | E128: 6047086569 | F128: 6113894909 | G128: 2091749707 | H128: 8205644616 | I128: 58050490 | J128: 1561419020 | K128: 1334235485 | L128: 227183535 | M128: 73
A129: 22110 Framleiðsla á gúmmíhjólbörðum og hjólbarðaslöngum, sólun notaðra gúmmíhjólbarða | M129: 3
A130: 22190 Framleiðsla á öðrum gúmmívörum | M130: 4
A131: 22210 Framleiðsla á plötum, þynnum, slöngum og prófílum úr plasti | M131: 2
A132: 22221 Framleiðsla á plastvörum til nota í sjávarútvegi | B132: 0 | C132: 0 | D132: 0 | E132: 871928304 | F132: 871928304 | G132: 1321210878 | H132: 2193139182 | I132: 10418494 | J132: 224998427 | K132: 408424504 | L132: -183426077 | M132: 10
A133: 22229 Framleiðsla á öðru umbúðaplasti | M133: 9
A134: 22230 Framleiðsla á byggingarvörum úr plasti | B134: 0 | C134: 1197176 | D134: 0 | E134: 202279653 | F134: 203476829 | G134: 9833726 | H134: 213310555 | I134: 5000000 | J134: 52940138 | K134: 26746332 | L134: 26193806 | M134: 10
A135: 22290 Framleiðsla á öðrum plastvörum | B135: 0 | C135: 230818 | D135: 0 | E135: 2226670696 | F135: 2226901514 | G135: 38051829 | H135: 2264953343 | I135: 33973452 | J135: 576481326 | K135: 425258295 | L135: 151223031 | M135: 22
A136: 23120 Skurður og vinnsla á flotgleri | B136: 0 | C136: 0 | D136: 0 | E136: 795347292 | F136: 795347292 | G136: 404150 | H136: 795751442 | I136: 0 | J136: 202813518 | K136: 117497072 | L136: 85316446 | M136: 10
A137: 23130 Framleiðsla á glerílátum | M137: 2
A138: 23190 Framleiðsla og vinnsla á öðru gleri, þ.m.t. glervara til tæknilegra nota | M138: 6
A139: 23200 Framleiðsla á eldföstum vörum | M139: 1
A140: 23310 Framleiðsla á flísum og hellum úr leir | M140: 2
A141: 23410 Framleiðsla á heimilisvörum og skrautmunum úr leir og postulíni | B141: 0 | C141: 0 | D141: 0 | E141: 64654626 | F141: 64654626 | G141: 203882 | H141: 64858508 | I141: 5980392 | J141: 18012126 | K141: 9449396 | L141: 8562730 | M141: 13
A142: 23490 Framleiðsla á öðrum leirvörum | M142: 7
A143: 23510 Sementsframleiðsla | M143: 1
A144: 23610 Framleiðsla á byggingarefni úr steinsteypu | M144: 8
A145: 23630 Framleiðsla á tilbúinni steinsteypu | B145: 0 | C145: 610098 | D145: -1777120 | E145: 4228756215 | F145: 4227589193 | G145: 124484980 | H145: 4352074173 | I145: 5000000 | J145: 1079215325 | K145: 697985311 | L145: 381230014 | M145: 16
A146: 23690 Framleiðsla á öðrum vörum úr steinsteypu, sementi og gifsi | M146: 2
A147: 23700 Steinsmíði | B147: 0 | C147: 0 | D147: 0 | E147: 765334464 | F147: 765334464 | G147: 4137595 | H147: 769472059 | I147: 16952738 | J147: 199483576 | K147: 95733753 | L147: 103749823 | M147: 12
A148: 23990 Framleiðsla á öðrum ótöldum vörum úr málmlausum steinefnum | M148: 7
A149: Gúmmí- og plastvöruframleiðsla, gler-, leir- og steinefnaiðnaður | B149: 0 | C149: 23156791 | D149: -6100004 | E149: 19672074992 | F149: 19689131779 | G149: 2392088180 | H149: 22081219959 | I149: 84530958 | J149: 5038062852 | K149: 3723948512 | L149: 1314114340 | M149: 147
A150: 24100 Framleiðsla á járni, stáli og járnblendi | M150: 9
A151: 24200 Framleiðsla á rörum, pípum, holum prófílum og tengihlutum úr stáli | M151: 2
A152: 24410 Framleiðsla góðmálma | M152: 1
A153: 24420 Álframleiðsla | M153: 5
A154: 24430 Blý-, sink- og tinframleiðsla | M154: 1
A155: 24510 Járnsteypa | M155: 5
A156: 24530 Steypa léttmálma | M156: 2
A157: 24540 Steypa annarra málma sem ekki innihalda járn | M157: 1
A158: 25110 Framleiðsla á burðarvirkjum og byggingareiningum úr málmi | M158: 7
A159: 25120 Framleiðsla á hurðum og gluggum úr málmi | M159: 9
A160: 25290 Framleiðsla á öðrum geymum, kerum og ílátum úr málmi | M160: 2
A161: 25400 Vopna- og skotfæraframleiðsla | M161: 3
A162: 25500 Eldsmíði og önnur málmsmíði; sindurmótun | B162: 0 | C162: 0 | D162: 0 | E162: 182708903 | F162: 182708903 | G162: 13152010 | H162: 195860913 | I162: 15000000 | J162: 50415741 | K162: 32976997 | L162: 17438744 | M162: 23
A163: 25610 Meðhöndlun og húðun málma | B163: 0 | C163: 0 | D163: 0 | E163: 1571223353 | F163: 1571223353 | G163: 66775939 | H163: 1637999292 | I163: 5000000 | J163: 401938264 | K163: 301911885 | L163: 100026379 | M163: 15
A164: 25620 Vélvinnsla málma | B164: 0 | C164: 19495919 | D164: -4337189 | E164: 16086080217 | F164: 16101238947 | G164: 4282043321 | H164: 20383282268 | I164: 150598220 | J164: 4140658698 | K164: 2323872529 | L164: 1816786169 | M164: 347
A165: 25720 Framleiðsla á lásum og lömum | M165: 6
A166: 25730 Framleiðsla á verkfærum, þó ekki vélknúnum | M166: 2
A167: 25910 Framleiðsla á stáltunnum og svipuðum ílátum | M167: 1
A168: 25930 Framleiðsla á keðjum, fjöðrum og vörum úr vír | M168: 2
A169: 25990 Framleiðsla á öðrum ótöldum málmvörum | B169: 0 | C169: 0 | D169: 0 | E169: 198245875 | F169: 198245875 | G169: 15385815 | H169: 213631690 | I169: 12000000 | J169: 53612709 | K169: 24318976 | L169: 29293733 | M169: 21
A170: Framleiðsla málma og málmvara að undanskildum vélum og búnaði | B170: 0 | C170: 87438575 | D170: -4337189 | E170: 20501866088 | F170: 20584967474 | G170: 251568287003 | H170: 272153254477 | I170: 233398314 | J170: 5292555438 | K170: 56959528112 | L170: -51666972674 | M170: 464
A171: 26110 Framleiðsla á rafeindaíhlutum | M171: 3
A172: 26200 Framleiðsla á tölvum og jaðarbúnaði | M172: 2
A173: 26300 Framleiðsla fjarskiptabúnaðar | M173: 1
A174: 26400 Framleiðsla á sjónvarps-, útvarps- og hljómtækjum og skyldum búnaði | M174: 3
A175: 26510 Framleiðsla á tækjum og búnaði til mælinga, prófana og leiðsögu | M175: 8
A176: 26520 Framleiðsla á úrum og klukkum | M176: 1
A177: 26600 Framleiðsla á búnaði til geislunar, raftækjabúnaði til lækninga og meðferðar | M177: 1
A178: 26700 Framleiðsla á optískum tækjum og ljósmyndabúnaði | M178: 1
A179: 26800 Framleiðsla á segul- og optískum miðlum | M179: 1
A180: 27110 Framleiðsla á rafhreyflum, rafölum og spennubreytum | M180: 2
A181: 27120 Framleiðsla á dreifi- og stjórnbúnaði fyrir raforku | M181: 3
A182: 27200 Framleiðsla rafhlaðna og rafgeyma | M182: 2
A183: 27310 Framleiðsla á ljósleiðaraköplum | M183: 2
A184: 27320 Framleiðsla á öðrum rafeinda- og rafmagnsvírum og köplum | M184: 1
A185: 27400 Framleiðsla á rafljósabúnaði | M185: 5
A186: 27510 Framleiðsla rafknúinna heimilistækja | M186: 3
A187: 27900 Framleiðsla á öðrum rafbúnaði | M187: 9
A188: 28110 Framleiðsla hreyfla og hverfla, þó ekki í loftför, ökutæki eða vélhjól | B188: 0 | C188: 0 | D188: 0 | E188: 216852433 | F188: 216852433 | G188: 90435526 | H188: 307287959 | I188: 9000000 | J188: 57592376 | K188: 38729557 | L188: 18862819 | M188: 16
A189: 28130 Framleiðsla á öðrum dælum og þjöppum | M189: 1
A190: 28140 Framleiðsla á krönum og lokum | M190: 0
A191: 28150 Framleiðsla á legum, tannhjólum, drifum og drifbúnaði | M191: 1
A192: 28220 Framleiðsla á lyftitækjum og færslubúnaði | M192: 8
A193: 28230 Framleiðsla á skrifstofuvélum og -búnaði, þó ekki tölvum og jaðarbúnaði | M193: 1
A194: 28250 Framleiðsla á kæli- og loftræstibúnaði, þó ekki til heimilisnota | B194: 0 | C194: 0 | D194: 0 | E194: 3152818057 | F194: 3152818057 | G194: 1105904381 | H194: 4258722438 | I194: 5000000 | J194: 805243561 | K194: 592163643 | L194: 213079918 | M194: 27
A195: 28290 Framleiðsla á öðrum ótöldum vélum til almennra nota | B195: 0 | C195: 0 | D195: 0 | E195: 183664144 | F195: 183664144 | G195: 52860533 | H195: 236524677 | I195: 7224659 | J195: 48676464 | K195: 42770337 | L195: 5906127 | M195: 21
A196: 28300 Framleiðsla á vélum til nota í landbúnaði og skógrækt | M196: 1
A197: 28490 Framleiðsla á öðrum ótöldum smíðavélum | M197: 1
A198: 28910 Framleiðsla á vélum til málmvinnslu | M198: 1
A199: 28920 Framleiðsla á vélum til mannvirkjagerðar, námugraftrar og vinnslu hráefna úr jörðu | M199: 2
A200: 28930 Framleiðsla á vélum fyrir matvæla-, drykkjarvöru- og tóbaksvinnslu | B200: 0 | C200: 1117054 | D200: 0 | E200: 4150816810 | F200: 4151933864 | G200: 19107748842 | H200: 23259682706 | I200: 8359492 | J200: 1060650695 | K200: 2362507330 | L200: -1301856635 | M200: 29
... 389 more rows

Sheet 2013
A1: Atvinnugein | B1: Velta 14% | C1: Velta 7% | D1: Velta 24,5% | E1: Velta 25,5% | F1: Skattsk. velta | G1: Undanþegin velta | H1: Heildarvelta | I1: Áætlun | J1: Útskattur alls | K1: Innskattur | L1: Álagning | M1: Fjöldi
A2: 01110 Kornrækt (að undanskildum hrísgrjónum), ræktun belgjurta og olíufræja | B2: 0 | C2: 8249856 | D2: 0 | E2: 68019929 | F2: 76269785 | G2: 1349934 | H2: 77619719 | I2: 960784 | J2: 18167587 | K2: 40657513 | L2: -22489926 | M2: 17
A3: 01120 Hrísgrjónarækt | M3: 1
A4: 01131 Ræktun á aldingrænmeti og papriku | B4: 0 | C4: 912010556 | D4: 0 | E4: 102353788 | F4: 1014364344 | G4: 62050991 | H4: 1076415335 | I4: 0 | J4: 89939765 | K4: 173572434 | L4: -83632669 | M4: 24
A5: 01132 Ræktun á kartöflum | B5: 0 | C5: 545331003 | D5: 0 | E5: 85607315 | F5: 630938318 | G5: 14696681 | H5: 645634999 | I5: 1441176 | J5: 60370443 | K5: 86663841 | L5: -26293398 | M5: 43
A6: 01139 Ræktun á öðru ótöldu grænmeti, rótum og hnýði | B6: 0 | C6: 1713467080 | D6: 0 | E6: 95828584 | F6: 1809295664 | G6: 30467795 | H6: 1839763459 | I6: 1750000 | J6: 144501463 | K6: 285919329 | L6: -141417866 | M6: 43
A7: 01140 Ræktun sykurreyrs | M7: 1
A8: 01160 Ræktun trefjajurta | M8: 1
A9: 01191 Blómarækt | B9: 0 | C9: 159399589 | D9: 0 | E9: 703265860 | F9: 862665449 | G9: 7252121 | H9: 869917570 | I9: 960784 | J9: 190735688 | K9: 117678130 | L9: 73057558 | M9: 28
A10: 01199 Önnur ótalin ræktun nytjajurta sem ekki eru fjölærar | M10: 1
A11: 01250 Ræktun annarra ávaxta og hnetna af trjám og runnum | M11: 2
A12: 01270 Ræktun jurta til drykkjargerðar | M12: 2
A13: 01280 Ræktun krydd- , ilm- og lyfjajurta | M13: 3
A14: 01290 Ræktun annarra fjölærra nytjajurta | M14: 7
A15: 01300 Plöntufjölgun | B15: 0 | C15: 25130711 | D15: 0 | E15: 238848009 | F15: 263978720 | G15: 37500 | H15: 264016220 | I15: 0 | J15: 62665391 | K15: 27230944 | L15: 35434447 | M15: 11
A16: 01410 Ræktun mjólkurkúa | B16: 0 | C16: 335379927 | D16: -1831400 | E16: 11678904483 | F16: 12012453010 | G16: 4735242238 | H16: 16747695248 | I16: 51739427 | J16: 3013889414 | K16: 2899798285 | L16: 114091129 | M16: 665
A17: 01420 Önnur nautgriparækt | B17: 0 | C17: 125035188 | D17: 0 | E17: 850313261 | F17: 975348449 | G17: 249941949 | H17: 1225290398 | I17: 10523778 | J17: 228265994 | K17: 243619612 | L17: -15353618 | M17: 96
A18: 01430 Hrossarækt og ræktun annarra dýra af hrossaætt | B18: 0 | C18: 115904142 | D18: 0 | E18: 1004000040 | F18: 1119904182 | G18: 497794113 | H18: 1617698295 | I18: 103206946 | J18: 290172329 | K18: 454378024 | L18: -164205695 | M18: 420
A19: 01450 Sauðfjár- og geitarækt | B19: 0 | C19: 479846026 | D19: 0 | E19: 6351221804 | F19: 6831067830 | G19: 3384573368 | H19: 10215641198 | I19: 37088480 | J19: 1660938043 | K19: 1875574922 | L19: -214636879 | M19: 1465
A20: 01460 Svínarækt | B20: 0 | C20: 1926954238 | D20: 0 | E20: 1250809434 | F20: 3177763672 | G20: 77306263 | H20: 3255069935 | I20: 0 | J20: 453843252 | K20: 566816705 | L20: -112973453 | M20: 15
A21: 01471 Alifuglarækt | B21: 0 | C21: 4307160305 | D21: 0 | E21: 491963832 | F21: 4799124137 | G21: 16925710 | H21: 4816049847 | I21: 0 | J21: 426952010 | K21: 758729437 | L21: -331777427 | M21: 27
A22: 01472 Eggjaframleiðsla | B22: 0 | C22: 1577177112 | D22: 0 | E22: 48622733 | F22: 1625799845 | G22: 495129 | H22: 1626294974 | I22: 0 | J22: 122801479 | K22: 280495616 | L22: -157694137 | M22: 10
A23: 01491 Loðdýrabú | B23: 0 | C23: 984062 | D23: 0 | E23: 233005666 | F23: 233989728 | G23: 1784856704 | H23: 2018846432 | I23: 528431 | J23: 59620081 | K23: 302220396 | L23: -242600315 | M23: 41
A24: 01492 Æðarrækt og æðardúnstekja | B24: 0 | C24: 5898526 | D24: 0 | E24: 166626050 | F24: 172524576 | G24: 58895731 | H24: 231420307 | I24: 2890358 | J24: 43639621 | K24: 20785114 | L24: 22854507 | M24: 77
A25: 01499 Ræktun annarra ótalinna dýra | M25: 9
A26: 01500 Blandaður búskapur | B26: 0 | C26: 367081549 | D26: 0 | E26: 1520092097 | F26: 1887173646 | G26: 518529888 | H26: 2405703534 | I26: 14595471 | J26: 416991991 | K26: 441341490 | L26: -24349499 | M26: 174
A27: 01610 Þjónustustarfsemi við ræktun nytjajurta | B27: 0 | C27: 5723426 | D27: 0 | E27: 222466345 | F27: 228189771 | G27: 15197320 | H27: 243387091 | I27: 5556291 | J27: 58546411 | K27: 57817781 | L27: 728630 | M27: 34
A28: 01620 Þjónustustarfsemi við búfjárrækt | B28: 0 | C28: 14013024 | D28: 0 | E28: 731670640 | F28: 745683664 | G28: 245937659 | H28: 991621323 | I28: 42324510 | J28: 198320834 | K28: 167520644 | L28: 30800190 | M28: 126
A29: 01630 Starfsemi að lokinni uppskeru | M29: 4
A30: 01700 Veiðar og tengd þjónustustarfsemi | B30: 0 | C30: 6534860 | D30: 0 | E30: 68535997 | F30: 75070857 | G30: 0 | H30: 75070857 | I30: 10643776 | J30: 20648257 | K30: 8331628 | L30: 12316629 | M30: 28
A31: 02101 Rekstur gróðrastöðva fyrir skógartré | B31: 0 | C31: 2390205 | D31: 0 | E31: 31456373 | F31: 33846578 | G31: 2392540 | H31: 36239118 | I31: 8560507 | J31: 10371694 | K31: 4211651 | L31: 6160043 | M31: 12
A32: 02109 Skógrækt og önnur ótalin starfsemi tengd henni | B32: 0 | C32: 176688 | D32: 0 | E32: 12462177 | F32: 12638865 | G32: 13880175 | H32: 26519040 | I32: 11088235 | J32: 6017729 | K32: 45227246 | L32: -39209517 | M32: 424
A33: 02200 Skógarhögg | M33: 5
A34: 02400 Þjónustustarfsemi við skógrækt | M34: 8
A35: Landbúnaður og skógrækt | B35: 0 | C35: 12786770546 | D35: -1831400 | E35: 26074492579 | F35: 38859431725 | G35: 11761106341 | H35: 50620538066 | I35: 307339346 | J35: 7619188184 | K35: 8904917578 | L35: -1285729394 | M35: 3824
A36: 03111 Útgerð smábáta | B36: 0 | C36: 15409042554 | D36: 0 | E36: 895275263 | F36: 16304317817 | G36: 11326303689 | H36: 27630621506 | I36: 172950655 | J36: 1340538507 | K36: 1568299559 | L36: -227761052 | M36: 1189
A37: 03112 Útgerð fiskiskipa | B37: 0 | C37: 42711423549 | D37: 0 | E37: 5837878557 | F37: 48549302106 | G37: 42674127974 | H37: 91223430080 | I37: 36811534 | J37: 4485578682 | K37: 5474473603 | L37: -988894921 | M37: 202
A38: 03113 Hvalveiðar | M38: 1
A39: 03120 Ferskvatnsveiði | M39: 2
A40: 03210 Eldi og ræktun í sjó | B40: 0 | C40: 458340322 | D40: 0 | E40: 220654583 | F40: 678994905 | G40: 1052115778 | H40: 1731110683 | I40: 9500000 | J40: 90121760 | K40: 756121130 | L40: -665999370 | M40: 35
A41: 03220 Eldi og ræktun í ferskvatni | B41: 0 | C41: 2806754322 | D41: 0 | E41: 490490203 | F41: 3297244525 | G41: 1513676422 | H41: 4810920947 | I41: 0 | J41: 321547780 | K41: 746773820 | L41: -425226040 | M41: 32
A42: Fiskveiðar | B42: 0 | C42: 61401913143 | D42: 0 | E42: 7452810239 | F42: 68854723382 | G42: 56567223863 | H42: 125421947245 | I42: 223203590 | J42: 6242022865 | K42: 8547859933 | L42: -2305837068 | M42: 1461
A43: 06100 Vinnsla á hráolíu | M43: 1
A44: 07100 Járnnám | M44: 1
A45: 08110 Grjótnám til skrautsteinagerðar og til bygginga, kalksteins-, gifs-, krítar- og flögubergsnám | M45: 1
A46: 08120 Malar-, sand- og leirnám | B46: 0 | C46: 242662 | D46: 0 | E46: 2052423808 | F46: 2052666470 | G46: 280871590 | H46: 2333538060 | I46: 1933749 | J46: 523878106 | K46: 376189630 | L46: 147688476 | M46: 33
A47: 08910 Nám og vinnsla á steinefnum til efnaiðnaðar og áburðargerðar | M47: 1
A48: 08930 Saltnám | M48: 2
A49: 08990 Nám og vinnsla annarra ótalinna hráefna úr jörðu | M49: 2
A50: 09100 Þjónustustarfsemi við námuvinnslu á jarðolíu og jarðgasi | M50: 4
A51: 09900 Þjónustustarfsemi fyrir vinnslu annarra hráefna úr jörðu | M51: 5
A52: Námagröftur og vinnsla hráefna úr jörðu | B52: 0 | C52: 7764986 | D52: 0 | E52: 2120232410 | F52: 2127997396 | G52: 1088217430 | H52: 3216214826 | I52: 6933749 | J52: 542970893 | K52: 655655351 | L52: -112684458 | M52: 50
A53: 10110 Slátrun og vinnsla á kjöti, þó ekki alifuglakjöti | B53: 0 | C53: 8656921357 | D53: 0 | E53: 566594042 | F53: 9223515399 | G53: 1636489326 | H53: 10860004725 | I53: 0 | J53: 750465986 | K53: 1163289518 | L53: -412823532 | M53: 13
A54: 10120 Slátrun og vinnsla á alifuglakjöti | M54: 3
A55: 10130 Framleiðsla á kjötafurðum | B55: 0 | C55: 15139381135 | D55: 0 | E55: 2383604560 | F55: 17522985695 | G55: 1037936823 | H55: 18560922518 | I55: 480392 | J55: 1667698563 | K55: 2119077662 | L55: -451379099 | M55: 23
A56: 10201 Frysting fiskafurða, krabbadýra og lindýra | B56: 0 | C56: 29915914418 | D56: 0 | E56: 8617484408 | F56: 38533398826 | G56: 167284295786 | H56: 205817694612 | I56: 133348503 | J56: 4321059691 | K56: 14628348486 | L56: -10307288795 | M56: 143
A57: 10202 Söltun, þurrkun og hersla fiskafurða, krabbadýra og lindýra | B57: 0 | C57: 5336054421 | D57: 0 | E57: 830462695 | F57: 6166517116 | G57: 20929574651 | H57: 27096091767 | I57: 4750000 | J57: 586179685 | K57: 1973924934 | L57: -1387745249 | M57: 86
A58: 10203 Mjöl- og lýsisvinnsla | M58: 5
A59: 10204 Framleiðsla lagmetis úr fiskafurðum, krabbadýrum og lindýrum | M59: 9
A60: 10209 Önnur ótalin vinnsla fiskafurða, krabbadýra og lindýra | B60: 0 | C60: 1241616351 | D60: 0 | E60: 314719760 | F60: 1556336111 | G60: 38879611880 | H60: 40435947991 | I60: 18361380 | J60: 171848835 | K60: 548005490 | L60: -376156655 | M60: 54
A61: 10310 Vinnsla á kartöflum | M61: 2
A62: 10390 Önnur ótalin vinnsla ávaxta og grænmetis | M62: 7
A63: 10410 Framleiðsla á olíu og feiti | M63: 5
A64: 10420 Framleiðsla á smjörlíki og svipaðri feiti til manneldis | M64: 1
A65: 10510 Mjólkurbú og ostagerð | B65: 0 | C65: 21342036283 | D65: 0 | E65: 10844106255 | F65: 32186142538 | G65: 990416548 | H65: 33176559086 | I65: 0 | J65: 4259189806 | K65: 6796139662 | L65: -2536949856 | M65: 14
A66: 10520 Ísgerð | M66: 2
A67: 10610 Framleiðsla á kornvöru | M67: 8
A68: 10710 Framleiðsla á brauði, nýju sætabrauði og kökum | B68: 0 | C68: 8447258103 | D68: 0 | E68: 86375395 | F68: 8533633498 | G68: 2692981 | H68: 8536326479 | I68: 23612440 | J68: 617283789 | K68: 620303187 | L68: -3019398 | M68: 83
A69: 10720 Framleiðsla á tvíbökum og kexi, framleiðsla á geymsluþolnu sætabrauði og kökum | M69: 1
A70: 10730 Framleiðsla á pastavörum og svipuðum vörum | M70: 1
A71: 10820 Framleiðsla á súkkulaði og sælgæti; kakói | B71: 0 | C71: 4914761493 | D71: 0 | E71: 40347251 | F71: 4955108744 | G71: 433691223 | H71: 5388799967 | I71: 0 | J71: 354322779 | K71: 531488314 | L71: -177165535 | M71: 10
A72: 10830 Te- og kaffivinnsla | M72: 4
A73: 10840 Framleiðsla á bragðefnum og kryddi | B73: 0 | C73: 1409240988 | D73: 0 | E73: 21277629 | F73: 1430518617 | G73: 47699845 | H73: 1478218462 | I73: 3000000 | J73: 104838191 | K73: 129023910 | L73: -24185719 | M73: 10
A74: 10850 Framleiðsla á tilbúnum máltíðum og réttum | B74: 0 | C74: 1176775832 | D74: 0 | E74: 77798260 | F74: 1254574092 | G74: 35175586 | H74: 1289749678 | I74: 1750000 | J74: 102335458 | K74: 119671446 | L74: -17335988 | M74: 12
A75: 10860 Framleiðsla á jafnblönduðum matvælum og sérfæði | M75: 2
A76: 10890 Önnur ótalin framleiðsla á matvælum | B76: 0 | C76: 4296815875 | D76: 0 | E76: 184222275 | F76: 4481038150 | G76: 320302510 | H76: 4801340660 | I76: 2500000 | J76: 348392374 | K76: 441594622 | L76: -93202248 | M76: 43
A77: 10910 Framleiðsla húsdýrafóðurs | B77: 0 | C77: 904194024 | D77: 0 | E77: 12536428552 | F77: 13440622576 | G77: 1251131954 | H77: 14691754530 | I77: 6826400 | J77: 3261821007 | K77: 2863771931 | L77: 398049076 | M77: 13
A78: 10920 Framleiðsla gæludýrafóðurs | M78: 6
A79: 11010 Eiming, hreinsun og blöndun áfengra drykkja | M79: 6
A80: 11020 Framleiðsla á víni úr þrúgum | M80: 3
A81: 11050 Bjórgerð | M81: 3
A82: 11060 Maltgerð | M82: 1
A83: 11070 Framleiðsla á gosdrykkjum, ölkelduvatni og öðru átöppuðu vatni | B83: 0 | C83: 15566249926 | D83: 0 | E83: 13282933812 | F83: 28849183738 | G83: 2388885029 | H83: 31238068767 | I83: 1480392 | J83: 4477163040 | K83: 3674092725 | L83: 803070315 | M83: 17
A84: Matvælaframleiðsla | B84: 0 | C84: 129148672825 | D84: 0 | E84: 51224685361 | F84: 180373358186 | G84: 251894204904 | H84: 432267563090 | I84: 224141083 | J84: 22150309743 | K84: 38527891178 | L84: -16377581435 | M84: 590
A85: 13100 Forvinnsla og spuni á textíltrefjum | M85: 3
A86: 13200 Textílvefnaður | M86: 7
A87: 13910 Framleiðsla á hekluðum og prjónuðum dúk | M87: 6
A88: 13920 Framleiðsla á tilbúinni spunavöru annarri en fatnaði | B88: 0 | C88: 735763 | D88: 0 | E88: 589000830 | F88: 589736593 | G88: 21569416 | H88: 611306009 | I88: 17311059 | J88: 154663253 | K88: 101726408 | L88: 52936845 | M88: 27
A89: 13940 Framleiðsla á köðlum, seglgarni og netum | B89: 0 | C89: 0 | D89: -3187702 | E89: 2265875775 | F89: 2262688073 | G89: 3651166406 | H89: 5913854479 | I89: 0 | J89: 577017425 | K89: 525561985 | L89: 51455440 | M89: 12
A90: 13990 Framleiðsla á annarri ótalinni textílvöru | M90: 8
A91: 14110 Framleiðsla á leðurfatnaði | M91: 1
A92: 14120 Vinnufatagerð | M92: 3
A93: 14130 Framleiðsla á öðrum yfirfatnaði | B93: 0 | C93: 15857 | D93: 0 | E93: 206410969 | F93: 206426826 | G93: 8346849 | H93: 214773675 | I93: 14736675 | J93: 56394341 | K93: 24923343 | L93: 31470998 | M93: 28
A94: 14140 Framleiðsla á nærfatnaði | M94: 1
A95: 14190 Framleiðsla á öðrum fatnaði og fylgihlutum | B95: 0 | C95: 55085 | D95: 0 | E95: 228874119 | F95: 228929204 | G95: 28260198 | H95: 257189402 | I95: 2922518 | J95: 59111999 | K95: 36705896 | L95: 22406103 | M95: 25
A96: 14310 Framleiðsla á sokkum og sokkavörum | M96: 1
A97: 14390 Framleiðsla á öðrum prjónuðum og hekluðum fatnaði | M97: 6
A98: 15110 Sútun leðurs; sútun og litun á loðskinni | M98: 5
A99: 15120 Framleiðsla á ferðatöskum, handtöskum og áþekkum vörum; reiðtygjum og skyldum vörum | M99: 6
A100: 15200 Framleiðsla á skófatnaði | M100: 5
A101: Textíl-, fata- og leðuriðnaður | B101: 0 | C101: 35779174 | D101: -3187702 | E101: 5507706853 | F101: 5540298325 | G101: 5536024312 | H101: 11076322637 | I101: 39970252 | J101: 1416384390 | K101: 1252687504 | L101: 163696886 | M101: 144
A102: 16100 Sögun, heflun og fúavörn á viði | M102: 7
A103: 16210 Framleiðsla á viðarspæni og plötum að grunni til úr viði | M103: 3
A104: 16220 Framleiðsla á samsettum parketgólfum | M104: 1
A105: 16230 Framleiðsla á öðrum trésmíðavörum til bygginga | B105: 0 | C105: 398378 | D105: 0 | E105: 2548866368 | F105: 2549264746 | G105: 6831051 | H105: 2556095797 | I105: 134561761 | J105: 684302427 | K105: 353099143 | L105: 331203284 | M105: 77
A106: 16240 Framleiðsla á umbúðum úr viði | M106: 8
A107: 16290 Framleiðsla á annarri viðarvöru; framleiðsla á vörum úr korki, hálmi og fléttiefnum | B107: 0 | C107: 688461 | D107: 0 | E107: 442950369 | F107: 443638830 | G107: 1441343 | H107: 445080173 | I107: 7290314 | J107: 114859560 | K107: 58344665 | L107: 56514895 | M107: 34
A108: 17210 Framleiðsla á bylgjupappír og -pappa og umbúðum úr pappír og pappa | M108: 1
A109: 17220 Framleiðsla á heimilis- og hreinlætisvörum úr pappír og pappa | M109: 2
A110: 17230 Framleiðsla á skrifpappír og skrifstofuvörum úr pappír og pappa | M110: 2
A111: 17290 Framleiðsla á annarri pappírs- og pappavöru | M111: 1
A112: 18110 Prentun dagblaða | M112: 2
A113: 18120 Önnur prentun | B113: 0 | C113: 100799664 | D113: -129687 | E113: 6308040586 | F113: 6408710563 | G113: 408209725 | H113: 6816920288 | I113: 14601915 | J113: 1619244514 | K113: 980086300 | L113: 639158214 | M113: 97
A114: 18130 Undirbúningur fyrir prentun | B114: 0 | C114: 2810140 | D114: 0 | E114: 1611876475 | F114: 1614686615 | G114: 7416489 | H114: 1622103104 | I114: 6000000 | J114: 412753585 | K114: 188957333 | L114: 223796252 | M114: 34
A115: 18140 Bókband og tengd þjónusta | B115: 0 | C115: -108912 | D115: 0 | E115: 122813436 | F115: 122704524 | G115: 1670713 | H115: 124375237 | I115: 0 | J115: 31309846 | K115: 12130496 | L115: 19179350 | M115: 13
A116: 18200 Fjölföldun upptekins efnis | M116: 2
A117: Trjá- og pappírsiðnaður, prentun | B117: 0 | C117: 369491128 | D117: -129687 | E117: 13352066162 | F117: 13721427603 | G117: 528179420 | H117: 14249607023 | I117: 165452419 | J117: 3472727348 | K117: 2042886395 | L117: 1429840953 | M117: 284
A118: 19200 Framleiðsla á hreinsuðum olíuvörum | B118: 0 | C118: 31526450 | D118: 0 | E118: 76083126 | F118: 107609576 | G118: 0 | H118: 107609576 | I118: 49811765 | J118: 33403554 | K118: 27042266 | L118: 6361288 | M118: 11
A119: 20110 Framleiðsla á iðnaðargasi | M119: 3
A120: 20140 Framleiðsla á öðrum lífrænum grunnefnum til efnaiðnaðar | M120: 8
A121: 20150 Framleiðsla á tilbúnum áburði og köfnunarefnissamböndum | M121: 4
A122: 20160 Framleiðsla á plasthráefnum | M122: 1
A123: 20300 Framleiðsla á málningu, lökkum og svipuðum þekjuefnum, prentbleki og fylli- og þéttiefnum | M123: 5
A124: 20410 Framleiðsla á sápu, hreinsi- og þvottaefnum, hreingerningar- og fægiefnum | M124: 9
A125: 20420 Framleiðsla á ilmvatni og snyrtivörum | B125: 0 | C125: 917209 | D125: 0 | E125: 1202928333 | F125: 1203845542 | G125: 415794220 | H125: 1619639762 | I125: 3000000 | J125: 307576051 | K125: 306665616 | L125: 910435 | M125: 13
A126: 20590 Framleiðsla á annarri ótalinni efnavöru | M126: 8
A127: 20600 Framleiðsla gerviþráðar | M127: 1
A128: 21100 Framleiðsla á efnum til lyfjagerðar | M128: 1
A129: 21200 Lyfjaframleiðsla | M129: 9
A130: Framleiðsla á efnum og efnavörðum, lyfjaframleiðsla | B130: 0 | C130: 86386711 | D130: 0 | E130: 6382795801 | F130: 6469182512 | G130: 1726826944 | H130: 8196009456 | I130: 55772549 | J130: 1646977347 | K130: 1461741752 | L130: 185235595 | M130: 73
A131: 22110 Framleiðsla á gúmmíhjólbörðum og hjólbarðaslöngum, sólun notaðra gúmmíhjólbarða | M131: 4
A132: 22190 Framleiðsla á öðrum gúmmívörum | M132: 4
A133: 22210 Framleiðsla á plötum, þynnum, slöngum og prófílum úr plasti | M133: 2
A134: 22221 Framleiðsla á plastvörum til nota í sjávarútvegi | M134: 7
A135: 22229 Framleiðsla á öðru umbúðaplasti | M135: 9
A136: 22230 Framleiðsla á byggingarvörum úr plasti | B136: 0 | C136: 0 | D136: 0 | E136: 219009610 | F136: 219009610 | G136: 4130490 | H136: 223140100 | I136: 480392 | J136: 55969969 | K136: 26461966 | L136: 29508003 | M136: 10
A137: 22290 Framleiðsla á öðrum plastvörum | B137: 0 | C137: 97341 | D137: 0 | E137: 2293206977 | F137: 2293304318 | G137: 8022969 | H137: 2301327287 | I137: 2000000 | J137: 585284842 | K137: 429357566 | L137: 155927276 | M137: 20
A138: 23120 Skurður og vinnsla á flotgleri | M138: 9
A139: 23130 Framleiðsla á glerílátum | M139: 1
A140: 23190 Framleiðsla og vinnsla á öðru gleri, þ.m.t. glervara til tæknilegra nota | M140: 5
A141: 23200 Framleiðsla á eldföstum vörum | M141: 1
A142: 23310 Framleiðsla á flísum og hellum úr leir | M142: 1
A143: 23410 Framleiðsla á heimilisvörum og skrautmunum úr leir og postulíni | B143: 0 | C143: 0 | D143: 0 | E143: 75976301 | F143: 75976301 | G143: 231790 | H143: 76208091 | I143: 0 | J143: 19374079 | K143: 16275542 | L143: 3098537 | M143: 13
A144: 23490 Framleiðsla á öðrum leirvörum | M144: 5
A145: 23510 Sementsframleiðsla | M145: 1
A146: 23610 Framleiðsla á byggingarefni úr steinsteypu | M146: 7
A147: 23630 Framleiðsla á tilbúinni steinsteypu | B147: 0 | C147: 0 | D147: -2827406 | E147: 5480141720 | F147: 5477314314 | G147: 153511473 | H147: 5630825787 | I147: 0 | J147: 1396743593 | K147: 946290494 | L147: 450453099 | M147: 15
A148: 23650 Framleiðsla á vörum úr trefjasementi | M148: 2
A149: 23690 Framleiðsla á öðrum vörum úr steinsteypu, sementi og gifsi | M149: 2
A150: 23700 Steinsmíði | B150: 0 | C150: 0 | D150: 0 | E150: 837795998 | F150: 837795998 | G150: 1589732 | H150: 839385730 | I150: 0 | J150: 213638080 | K150: 111390513 | L150: 102247567 | M150: 12
A151: 23990 Framleiðsla á öðrum ótöldum vörum úr málmlausum steinefnum | M151: 6
A152: Gúmmí- og plastvöruframleiðsla, gler-, leir- og steinefnaiðnaður | B152: 0 | C152: 35031744 | D152: -2827406 | E152: 20972069581 | F152: 21004273919 | G152: 2185968498 | H152: 23190242417 | I152: 20317442 | J152: 5354818693 | K152: 3927725834 | L152: 1427092859 | M152: 136
A153: 24100 Framleiðsla á járni, stáli og járnblendi | B153: 0 | C153: 208560 | D153: 0 | E153: 329467314 | F153: 329675874 | G153: 21409163073 | H153: 21738838947 | I153: 5800914 | J153: 85508210 | K153: 723787806 | L153: -638279596 | M153: 10
A154: 24200 Framleiðsla á rörum, pípum, holum prófílum og tengihlutum úr stáli | M154: 2
A155: 24410 Framleiðsla góðmálma | M155: 1
A156: 24420 Álframleiðsla | M156: 5
A157: 24430 Blý-, sink- og tinframleiðsla | M157: 1
A158: 24510 Járnsteypa | M158: 5
A159: 24530 Steypa léttmálma | M159: 1
A160: 24540 Steypa annarra málma sem ekki innihalda járn | M160: 1
A161: 25110 Framleiðsla á burðarvirkjum og byggingareiningum úr málmi | M161: 7
A162: 25120 Framleiðsla á hurðum og gluggum úr málmi | M162: 8
A163: 25290 Framleiðsla á öðrum geymum, kerum og ílátum úr málmi | M163: 2
A164: 25400 Vopna- og skotfæraframleiðsla | M164: 3
A165: 25500 Eldsmíði og önnur málmsmíði; sindurmótun | B165: 0 | C165: 0 | D165: 0 | E165: 251822018 | F165: 251822018 | G165: 14952146 | H165: 266774164 | I165: 31331373 | J165: 72204140 | K165: 41832458 | L165: 30371682 | M165: 25
A166: 25610 Meðhöndlun og húðun málma | B166: 0 | C166: 0 | D166: 0 | E166: 1592628019 | F166: 1592628019 | G166: 49258437 | H166: 1641886456 | I166: 6000000 | J166: 407653349 | K166: 280660465 | L166: 126992884 | M166: 13
A167: 25620 Vélvinnsla málma | B167: 0 | C167: 14591908 | D167: -4033066 | E167: 16294543827 | F167: 16305102669 | G167: 4989838696 | H167: 21294941365 | I167: 146716833 | J167: 4192557620 | K167: 2436769570 | L167: 1755788050 | M167: 345
A168: 25720 Framleiðsla á lásum og lömum | M168: 5
A169: 25730 Framleiðsla á verkfærum, þó ekki vélknúnum | M169: 2
A170: 25910 Framleiðsla á stáltunnum og svipuðum ílátum | M170: 1
A171: 25930 Framleiðsla á keðjum, fjöðrum og vörum úr vír | M171: 2
A172: 25990 Framleiðsla á öðrum ótöldum málmvörum | B172: 0 | C172: 0 | D172: -11158 | E172: 225155051 | F172: 225143893 | G172: 24165170 | H172: 249309063 | I172: 17480392 | J172: 61869329 | K172: 25388272 | L172: 36481057 | M172: 20
A173: Framleiðsla málma og málmvara að undanskildum vélum og búnaði | B173: 0 | C173: 73952541 | D173: -4044224 | E173: 20929234329 | F173: 20999142646 | G173: 244995327318 | H173: 265994469964 | I173: 259309904 | J173: 5407270699 | K173: 54404009594 | L173: -48996738895 | M173: 459
A174: 26110 Framleiðsla á rafeindaíhlutum | M174: 2
A175: 26200 Framleiðsla á tölvum og jaðarbúnaði | M175: 2
A176: 26300 Framleiðsla fjarskiptabúnaðar | M176: 1
A177: 26400 Framleiðsla á sjónvarps-, útvarps- og hljómtækjum og skyldum búnaði | M177: 2
A178: 26510 Framleiðsla á tækjum og búnaði til mælinga, prófana og leiðsögu | M178: 9
A179: 26520 Framleiðsla á úrum og klukkum | M179: 2
A180: 26600 Framleiðsla á búnaði til geislunar, raftækjabúnaði til lækninga og meðferðar | M180: 1
A181: 26800 Framleiðsla á segul- og optískum miðlum | M181: 1
A182: 27110 Framleiðsla á rafhreyflum, rafölum og spennubreytum | M182: 2
A183: 27120 Framleiðsla á dreifi- og stjórnbúnaði fyrir raforku | M183: 3
A184: 27200 Framleiðsla rafhlaðna og rafgeyma | M184: 2
A185: 27310 Framleiðsla á ljósleiðaraköplum | M185: 2
A186: 27320 Framleiðsla á öðrum rafeinda- og rafmagnsvírum og köplum | M186: 1
A187: 27400 Framleiðsla á rafljósabúnaði | M187: 6
A188: 27510 Framleiðsla rafknúinna heimilistækja | M188: 3
A189: 27900 Framleiðsla á öðrum rafbúnaði | M189: 9
A190: 28110 Framleiðsla hreyfla og hverfla, þó ekki í loftför, ökutæki eða vélhjól | B190: 0 | C190: 7061947 | D190: 0 | E190: 225405025 | F190: 232466972 | G190: 150881700 | H190: 383348672 | I190: 9000000 | J190: 60267616 | K190: 48338999 | L190: 11928617 | M190: 15
A191: 28130 Framleiðsla á öðrum dælum og þjöppum | M191: 1
A192: 28150 Framleiðsla á legum, tannhjólum, drifum og drifbúnaði | M192: 1
A193: 28220 Framleiðsla á lyftitækjum og færslubúnaði | M193: 8
A194: 28230 Framleiðsla á skrifstofuvélum og -búnaði, þó ekki tölvum og jaðarbúnaði | M194: 1
A195: 28250 Framleiðsla á kæli- og loftræstibúnaði, þó ekki til heimilisnota | B195: 0 | C195: 23419 | D195: 0 | E195: 2826760244 | F195: 2826783663 | G195: 1358097539 | H195: 4184881202 | I195: 1480392 | J195: 721203137 | K195: 475515953 | L195: 245687184 | M195: 25
A196: 28290 Framleiðsla á öðrum ótöldum vélum til almennra nota | B196: 0 | C196: 0 | D196: 0 | E196: 102669635 | F196: 102669635 | G196: 12800387 | H196: 115470022 | I196: 26764020 | J196: 33005519 | K196: 13470292 | L196: 19535227 | M196: 18
A197: 28300 Framleiðsla á vélum til nota í landbúnaði og skógrækt | M197: 1
A198: 28490 Framleiðsla á öðrum ótöldum smíðavélum | M198: 1
A199: 28910 Framleiðsla á vélum til málmvinnslu | M199: 2
A200: 28920 Framleiðsla á vélum til mannvirkjagerðar, námugraftrar og vinnslu hráefna úr jörðu | M200: 2
... 389 more rows

Sheet 2014
A1: Atvinnugein | B1: Velta 14% | C1: Velta 7% | D1: Velta 24,5% | E1: Velta 25,5% | F1: Skattsk. velta | G1: Undanþegin velta | H1: Heildar velta | I1: Áætlun | J1: Útskattur alls | K1: Innskattur | L1: Álagning | M1: Fjöldi
A2: 01110 Kornrækt (að undanskildum hrísgrjónum), ræktun belgjurta og olíufræja | B2: 0 | C2: 9934718 | D2: 0 | E2: 68114923 | F2: 78049641 | G2: 3847958 | H2: 81897599 | I2: 5768627 | J2: 19535747 | K2: 57880445 | L2: -38344698 | M2: 18
A3: 01120 Hrísgrjónarækt | M3: 1
A4: 01131 Ræktun á aldingrænmeti og papriku | B4: 0 | C4: 984792530 | D4: 0 | E4: 123817514 | F4: 1108610044 | G4: 78057758 | H4: 1186667802 | I4: 0 | J4: 100509664 | K4: 186706545 | L4: -86196881 | M4: 25
A5: 01132 Ræktun á kartöflum | B5: 0 | C5: 443701774 | D5: 0 | E5: 117267100 | F5: 560968874 | G5: 8845562 | H5: 569814436 | I5: 2921569 | J5: 61707233 | K5: 73478752 | L5: -11771519 | M5: 43
A6: 01139 Ræktun á öðru ótöldu grænmeti, rótum og hnýði | B6: 0 | C6: 1820440643 | D6: 0 | E6: 103402978 | F6: 1923843621 | G6: 21274658 | H6: 1945118279 | I6: 8918816 | J6: 155722793 | K6: 353558937 | L6: -197836144 | M6: 46
A7: 01140 Ræktun sykurreyrs | M7: 1
A8: 01160 Ræktun trefjajurta | M8: 1
A9: 01191 Blómarækt | B9: 0 | C9: 205061115 | D9: 0 | E9: 748987870 | F9: 954048985 | G9: 5873470 | H9: 959922455 | I9: 2121569 | J9: 205887669 | K9: 127020466 | L9: 78867203 | M9: 28
A10: 01199 Önnur ótalin ræktun nytjajurta sem ekki eru fjölærar | M10: 1
A11: 01250 Ræktun annarra ávaxta og hnetna af trjám og runnum | M11: 2
A12: 01270 Ræktun jurta til drykkjargerðar | M12: 2
A13: 01280 Ræktun krydd- , ilm- og lyfjajurta | M13: 2
A14: 01290 Ræktun annarra fjölærra nytjajurta | M14: 7
A15: 01300 Plöntufjölgun | B15: 0 | C15: 42011749 | D15: 0 | E15: 240482408 | F15: 282494157 | G15: 246362 | H15: 282740519 | I15: 1575038 | J15: 64666001 | K15: 30092182 | L15: 34573819 | M15: 11
A16: 01410 Ræktun mjólkurkúa | B16: 0 | C16: 332401973 | D16: 0 | E16: 12253055900 | F16: 12585457873 | G16: 3965469321 | H16: 16550927194 | I16: 66015106 | J16: 3164131895 | K16: 3149761459 | L16: 14370436 | M16: 662
A17: 01420 Önnur nautgriparækt | B17: 0 | C17: 136837185 | D17: 0 | E17: 936045693 | F17: 1072882878 | G17: 205795124 | H17: 1278678002 | I17: 12671008 | J17: 251398463 | K17: 232254170 | L17: 19144293 | M17: 94
A18: 01430 Hrossarækt og ræktun annarra dýra af hrossaætt | B18: 0 | C18: 169934085 | D18: 0 | E18: 1021366909 | F18: 1191300994 | G18: 574715743 | H18: 1766016737 | I18: 79859100 | J18: 292659691 | K18: 406915348 | L18: -114255657 | M18: 409
A19: 01450 Sauðfjár- og geitarækt | B19: 0 | C19: 518822974 | D19: 0 | E19: 6631043107 | F19: 7149866081 | G19: 2791240580 | H19: 9941106661 | I19: 46156010 | J19: 1738067457 | K19: 1841722246 | L19: -103654789 | M19: 1460
A20: 01460 Svínarækt | B20: 0 | C20: 1972552460 | D20: 0 | E20: 1020203569 | F20: 2992756029 | G20: 103157654 | H20: 3095913683 | I20: 0 | J20: 398230629 | K20: 558911193 | L20: -160680564 | M20: 16
A21: 01471 Alifuglarækt | B21: 0 | C21: 4301235352 | D21: 0 | E21: 508521290 | F21: 4809756642 | G21: 8912339 | H21: 4818668981 | I21: 5960784 | J21: 432279416 | K21: 750320094 | L21: -318040678 | M21: 25
A22: 01472 Eggjaframleiðsla | B22: 0 | C22: 1649263234 | D22: 0 | E22: 28172527 | F22: 1677435761 | G22: 1786233 | H22: 1679221994 | I22: 0 | J22: 122632808 | K22: 286725392 | L22: -164092584 | M22: 10
A23: 01491 Loðdýrabú | B23: 0 | C23: 816524 | D23: -105000 | E23: 263037760 | F23: 263749284 | G23: 888369501 | H23: 1152118785 | I23: 8500000 | J23: 69273575 | K23: 320033281 | L23: -250759706 | M23: 44
A24: 01492 Æðarrækt og æðardúnstekja | B24: 0 | C24: 2407148 | D24: 0 | E24: 147671016 | F24: 150078164 | G24: 49754486 | H24: 199832650 | I24: 1929046 | J24: 38316629 | K24: 20700888 | L24: 17615741 | M24: 81
A25: 01499 Ræktun annarra ótalinna dýra | M25: 8
A26: 01500 Blandaður búskapur | B26: 0 | C26: 426862967 | D26: 0 | E26: 1920712829 | F26: 2347575796 | G26: 594274435 | H26: 2941850231 | I26: 16764070 | J26: 523095636 | K26: 563197571 | L26: -40101935 | M26: 197
A27: 01610 Þjónustustarfsemi við ræktun nytjajurta | B27: 0 | C27: 10335725 | D27: 0 | E27: 226012104 | F27: 236347829 | G27: 11246769 | H27: 247594598 | I27: 5712491 | J27: 59813270 | K27: 44459838 | L27: 15353432 | M27: 34
A28: 01620 Þjónustustarfsemi við búfjárrækt | B28: 0 | C28: 15832086 | D28: 0 | E28: 771663904 | F28: 787495990 | G28: 284866320 | H28: 1072362310 | I28: 45256863 | J28: 209436010 | K28: 168960353 | L28: 40475657 | M28: 143
A29: 01630 Starfsemi að lokinni uppskeru | M29: 3
A30: 01700 Veiðar og tengd þjónustustarfsemi | B30: 0 | C30: 7827072 | D30: 0 | E30: 101541747 | F30: 109368819 | G30: 0 | H30: 109368819 | I30: 13627852 | J30: 29916347 | K30: 26332239 | L30: 3584108 | M30: 27
A31: 02101 Rekstur gróðrastöðva fyrir skógartré | B31: 0 | C31: 2779244 | D31: 0 | E31: 36517223 | F31: 39296467 | G31: 0 | H31: 39296467 | I31: 960784 | J31: 9751527 | K31: 5422005 | L31: 4329522 | M31: 10
A32: 02109 Skógrækt og önnur ótalin starfsemi tengd henni | B32: 0 | C32: 330022 | D32: 0 | E32: 24529566 | F32: 24859588 | G32: 13134228 | H32: 37993816 | I32: 12298039 | J32: 9414171 | K32: 69447803 | L32: -60033632 | M32: 426
A33: 02200 Skógarhögg | M33: 7
A34: 02400 Þjónustustarfsemi við skógrækt | M34: 7
A35: Landbúnaður og skógrækt | B35: 0 | C35: 13243294765 | D35: -105000 | E35: 27382466346 | F35: 40625656111 | G35: 9663176474 | H35: 50288832585 | I35: 339845280 | J35: 7993432033 | K35: 9330530350 | L35: -1337098317 | M35: 3851
A36: 03111 Útgerð smábáta | B36: 0 | C36: 15177177047 | D36: 0 | E36: 841363363 | F36: 16018540410 | G36: 11518321606 | H36: 27536862016 | I36: 295622237 | J36: 1331442311 | K36: 1708149481 | L36: -376707170 | M36: 1190
A37: 03112 Útgerð fiskiskipa | B37: 0 | C37: 42642368903 | D37: 0 | E37: 5163948597 | F37: 47806317500 | G37: 37401963691 | H37: 85208281191 | I37: 68520169 | J37: 4313246700 | K37: 5665814335 | L37: -1352567635 | M37: 204
A38: 03120 Ferskvatnsveiði | M38: 3
A39: 03210 Eldi og ræktun í sjó | B39: 0 | C39: 759765151 | D39: 0 | E39: 581337416 | F39: 1341102567 | G39: 1687785655 | H39: 3028888222 | I39: 576471 | J39: 201571646 | K39: 1280415294 | L39: -1078843648 | M39: 37
A40: 03220 Eldi og ræktun í ferskvatni | B40: 0 | C40: 2744622547 | D40: 0 | E40: 345877920 | F40: 3090500467 | G40: 1524589606 | H40: 4615090073 | I40: 0 | J40: 280322624 | K40: 777968588 | L40: -497645964 | M40: 31
A41: Fiskveiðar | B41: 0 | C41: 61326429751 | D41: 0 | E41: 6932527296 | F41: 68258957047 | G41: 52132660558 | H41: 120391617605 | I41: 366818877 | J41: 6127293509 | K41: 9432686094 | L41: -3305392585 | M41: 1465
A42: 06100 Vinnsla á hráolíu | M42: 1
A43: 07100 Járnnám | M43: 1
A44: 08110 Grjótnám til skrautsteinagerðar og til bygginga, kalksteins-, gifs-, krítar- og flögubergsnám | M44: 1
A45: 08120 Malar-, sand- og leirnám | B45: 0 | C45: 121001 | D45: 0 | E45: 2224650106 | F45: 2224771107 | G45: 380754220 | H45: 2605525327 | I45: 0 | J45: 567294294 | K45: 458522694 | L45: 108771600 | M45: 34
A46: 08910 Nám og vinnsla á steinefnum til efnaiðnaðar og áburðargerðar | M46: 1
A47: 08930 Saltnám | M47: 2
A48: 08990 Nám og vinnsla annarra ótalinna hráefna úr jörðu | M48: 4
A49: 09100 Þjónustustarfsemi við námuvinnslu á jarðolíu og jarðgasi | M49: 5
A50: 09900 Þjónustustarfsemi fyrir vinnslu annarra hráefna úr jörðu | M50: 4
A51: Námagröftur og vinnsla hráefna úr jörðu | B51: 0 | C51: 34997214 | D51: 0 | E51: 2307325799 | F51: 2342323013 | G51: 1815294553 | H51: 4157617566 | I51: 14000000 | J51: 594387938 | K51: 885346994 | L51: -290959056 | M51: 53
A52: 10110 Slátrun og vinnsla á kjöti, þó ekki alifuglakjöti | B52: 0 | C52: 8395771504 | D52: 0 | E52: 374089656 | F52: 8769861160 | G52: 1549681041 | H52: 10319542201 | I52: 0 | J52: 683097581 | K52: 1894038264 | L52: -1210940683 | M52: 14
A53: 10120 Slátrun og vinnsla á alifuglakjöti | M53: 3
A54: 10130 Framleiðsla á kjötafurðum | B54: 0 | C54: 15351595922 | D54: 0 | E54: 2773714126 | F54: 18125310048 | G54: 1071286470 | H54: 19196596518 | I54: 2580392 | J54: 1782178401 | K54: 2386347633 | L54: -604169232 | M54: 21
A55: 10201 Frysting fiskafurða, krabbadýra og lindýra | B55: 0 | C55: 31080807219 | D55: 0 | E55: 6789092436 | F55: 37869899655 | G55: 147820605503 | H55: 185690505158 | I55: 96786402 | J55: 3927764546 | K55: 15329174905 | L55: -11401410359 | M55: 140
A56: 10202 Söltun, þurrkun og hersla fiskafurða, krabbadýra og lindýra | B56: 0 | C56: 5514878341 | D56: 0 | E56: 892897628 | F56: 6407775969 | G56: 21444597313 | H56: 27852373282 | I56: 9399321 | J56: 615669423 | K56: 2389813805 | L56: -1774144382 | M56: 85
A57: 10203 Mjöl- og lýsisvinnsla | M57: 5
A58: 10204 Framleiðsla lagmetis úr fiskafurðum, krabbadýrum og lindýrum | M58: 9
A59: 10209 Önnur ótalin vinnsla fiskafurða, krabbadýra og lindýra | B59: 0 | C59: 1593141345 | D59: 0 | E59: 206950038 | F59: 1800091383 | G59: 35225382142 | H59: 37025473525 | I59: 55512605 | J59: 178016065 | K59: 987161212 | L59: -809145147 | M59: 52
A60: 10310 Vinnsla á kartöflum | M60: 2
A61: 10390 Önnur ótalin vinnsla ávaxta og grænmetis | M61: 5
A62: 10410 Framleiðsla á olíu og feiti | M62: 6
A63: 10420 Framleiðsla á smjörlíki og svipaðri feiti til manneldis | M63: 1
A64: 10510 Mjólkurbú og ostagerð | B64: 0 | C64: 22466227027 | D64: 0 | E64: 11844043594 | F64: 34310270621 | G64: 2110788586 | H64: 36421059207 | I64: 500000 | J64: 4592994756 | K64: 6985886617 | L64: -2392891861 | M64: 13
A65: 10520 Ísgerð | M65: 2
A66: 10610 Framleiðsla á kornvöru | M66: 8
A67: 10710 Framleiðsla á brauði, nýju sætabrauði og kökum | B67: 0 | C67: 8948988868 | D67: 0 | E67: 115342928 | F67: 9064331796 | G67: 14890302 | H67: 9079222098 | I67: 63298645 | J67: 666998049 | K67: 630018744 | L67: 36979305 | M67: 77
A68: 10720 Framleiðsla á tvíbökum og kexi, framleiðsla á geymsluþolnu sætabrauði og kökum | M68: 1
A69: 10730 Framleiðsla á pastavörum og svipuðum vörum | M69: 1
A70: 10820 Framleiðsla á súkkulaði og sælgæti; kakói | M70: 9
A71: 10830 Te- og kaffivinnsla | M71: 3
A72: 10840 Framleiðsla á bragðefnum og kryddi | M72: 9
A73: 10850 Framleiðsla á tilbúnum máltíðum og réttum | B73: 0 | C73: 1381980593 | D73: 0 | E73: 98203877 | F73: 1480184470 | G73: 21220312 | H73: 1501404782 | I73: 6800000 | J73: 123514734 | K73: 111700206 | L73: 11814528 | M73: 12
A74: 10860 Framleiðsla á jafnblönduðum matvælum og sérfæði | M74: 1
A75: 10890 Önnur ótalin framleiðsla á matvælum | B75: 0 | C75: 5001373062 | D75: 0 | E75: 186310150 | F75: 5187683212 | G75: 419140719 | H75: 5606823931 | I75: 6060784 | J75: 399151229 | K75: 479742170 | L75: -80590941 | M75: 45
A76: 10910 Framleiðsla húsdýrafóðurs | B76: 0 | C76: 731327202 | D76: 0 | E76: 12489001290 | F76: 13220328492 | G76: 1203687974 | H76: 14424016466 | I76: 3413200 | J76: 3236758139 | K76: 2961652597 | L76: 275105542 | M76: 13
A77: 10920 Framleiðsla gæludýrafóðurs | M77: 8
A78: 11010 Eiming, hreinsun og blöndun áfengra drykkja | M78: 6
A79: 11020 Framleiðsla á víni úr þrúgum | M79: 2
A80: 11050 Bjórgerð | M80: 4
A81: 11060 Maltgerð | M81: 1
A82: 11070 Framleiðsla á gosdrykkjum, ölkelduvatni og öðru átöppuðu vatni | B82: 0 | C82: 15622583482 | D82: 0 | E82: 14399213741 | F82: 30021797223 | G82: 2740517969 | H82: 32762315192 | I82: 1000000 | J82: 4765635321 | K82: 3927976002 | L82: 837659319 | M82: 16
A83: Matvælaframleiðsla | B83: 0 | C83: 133157107396 | D83: -2913608 | E83: 51762208722 | F83: 184916402510 | G83: 229440573770 | H83: 414356976280 | I83: 281964908 | J83: 22578158655 | K83: 41749931841 | L83: -19171773186 | M83: 574
A84: 13100 Forvinnsla og spuni á textíltrefjum | M84: 3
A85: 13200 Textílvefnaður | M85: 8
A86: 13910 Framleiðsla á hekluðum og prjónuðum dúk | M86: 6
A87: 13920 Framleiðsla á tilbúinni spunavöru annarri en fatnaði | B87: 0 | C87: 1115688 | D87: 0 | E87: 575839260 | F87: 576954948 | G87: 15677924 | H87: 592632872 | I87: 5571511 | J87: 148338564 | K87: 91815084 | L87: 56523480 | M87: 28
A88: 13940 Framleiðsla á köðlum, seglgarni og netum | B88: 0 | C88: 55987 | D88: 0 | E88: 2223805716 | F88: 2223861703 | G88: 3432712506 | H88: 5656574209 | I88: 0 | J88: 567074378 | K88: 473653724 | L88: 93420654 | M88: 11
A89: 13950 Framleiðsla á trefjadúk og vörum úr þeim, þó ekki fatnaði | M89: 1
A90: 13990 Framleiðsla á annarri ótalinni textílvöru | M90: 8
A91: 14110 Framleiðsla á leðurfatnaði | M91: 2
A92: 14120 Vinnufatagerð | M92: 3
A93: 14130 Framleiðsla á öðrum yfirfatnaði | B93: 0 | C93: 227881 | D93: 0 | E93: 194818329 | F93: 195046210 | G93: 17585393 | H93: 212631603 | I93: 9675962 | J93: 52162883 | K93: 22831036 | L93: 29331847 | M93: 28
A94: 14140 Framleiðsla á nærfatnaði | M94: 1
A95: 14190 Framleiðsla á öðrum fatnaði og fylgihlutum | B95: 0 | C95: 45073 | D95: 0 | E95: 271111091 | F95: 271156164 | G95: 79863523 | H95: 351019687 | I95: 3480392 | J95: 70023980 | K95: 31988093 | L95: 38035887 | M95: 25
A96: 14310 Framleiðsla á sokkum og sokkavörum | M96: 1
A97: 14390 Framleiðsla á öðrum prjónuðum og hekluðum fatnaði | M97: 6
A98: 15110 Sútun leðurs; sútun og litun á loðskinni | M98: 5
A99: 15120 Framleiðsla á ferðatöskum, handtöskum og áþekkum vörum; reiðtygjum og skyldum vörum | M99: 7
A100: 15200 Framleiðsla á skófatnaði | M100: 4
A101: Textíl-, fata og leðuriðnaður | B101: 0 | C101: 39134813 | D101: 0 | E101: 5627347214 | F101: 5666482027 | G101: 4740747259 | H101: 10407229286 | I101: 36708257 | J101: 1447075409 | K101: 1181982133 | L101: 265093276 | M101: 147
A102: 16100 Sögun, heflun og fúavörn á viði | M102: 7
A103: 16210 Framleiðsla á viðarspæni og plötum að grunni til úr viði | M103: 2
A104: 16220 Framleiðsla á samsettum parketgólfum | M104: 1
A105: 16230 Framleiðsla á öðrum trésmíðavörum til bygginga | B105: 0 | C105: 31812769 | D105: -1475151 | E105: 2755001808 | F105: 2785339426 | G105: 5958550 | H105: 2791297976 | I105: 69228731 | J105: 722044577 | K105: 363956462 | L105: 358088115 | M105: 71
A106: 16240 Framleiðsla á umbúðum úr viði | M106: 7
A107: 16290 Framleiðsla á annarri viðarvöru; framleiðsla á vörum úr korki, hálmi og fléttiefnum | B107: 0 | C107: 933214 | D107: 0 | E107: 461559164 | F107: 462492378 | G107: 10330986 | H107: 472823364 | I107: 960784 | J107: 118007911 | K107: 55571048 | L107: 62436863 | M107: 31
A108: 17210 Framleiðsla á bylgjupappír og -pappa og umbúðum úr pappír og pappa | M108: 1
A109: 17220 Framleiðsla á heimilis- og hreinlætisvörum úr pappír og pappa | M109: 2
A110: 17230 Framleiðsla á skrifpappír og skrifstofuvörum úr pappír og pappa | M110: 2
A111: 17290 Framleiðsla á annarri pappírs- og pappavöru | M111: 1
A112: 18110 Prentun dagblaða | M112: 2
A113: 18120 Önnur prentun | B113: 0 | C113: 100921569 | D113: -734039 | E113: 6136414792 | F113: 6236602322 | G113: 84148077 | H113: 6320750399 | I113: 16955936 | J113: 1575968448 | K113: 841229483 | L113: 734738965 | M113: 96
A114: 18130 Undirbúningur fyrir prentun | B114: 0 | C114: 5271253 | D114: 0 | E114: 1570665852 | F114: 1575937105 | G114: 6195071 | H114: 1582132176 | I114: 3480392 | J114: 401777748 | K114: 181545515 | L114: 220232233 | M114: 35
A115: 18140 Bókband og tengd þjónusta | B115: 0 | C115: -47616 | D115: 0 | E115: 112893621 | F115: 112846005 | G115: 355375 | H115: 113201380 | I115: 15226416 | J115: 32667304 | K115: 9719163 | L115: 22948141 | M115: 13
A116: 18200 Fjölföldun upptekins efnis | M116: 3
A117: Trjá- og pappírsiðnaður, prentun | B117: 0 | C117: 387371583 | D117: -2209190 | E117: 13145816389 | F117: 13530978782 | G117: 202551881 | H117: 13733530663 | I117: 115733304 | J117: 3408239680 | K117: 1850841475 | L117: 1557398205 | M117: 274
A118: 19200 Framleiðsla á hreinsuðum olíuvörum | B118: 0 | C118: 0 | D118: 0 | E118: 50567744 | F118: 50567744 | G118: 0 | H118: 50567744 | I118: 33779445 | J118: 19621406 | K118: 19798127 | L118: -176721 | M118: 11
A119: 20110 Framleiðsla á iðnaðargasi | M119: 3
A120: 20140 Framleiðsla á öðrum lífrænum grunnefnum til efnaiðnaðar | M120: 8
A121: 20150 Framleiðsla á tilbúnum áburði og köfnunarefnissamböndum | M121: 4
A122: 20160 Framleiðsla á plasthráefnum | M122: 2
A123: 20300 Framleiðsla á málningu, lökkum og svipuðum þekjuefnum, prentbleki og fylli- og þéttiefnum | M123: 4
A124: 20410 Framleiðsla á sápu, hreinsi- og þvottaefnum, hreingerningar- og fægiefnum | M124: 9
A125: 20420 Framleiðsla á ilmvatni og snyrtivörum | B125: 0 | C125: 813011 | D125: 0 | E125: 919278143 | F125: 920091154 | G125: 424476266 | H125: 1344567420 | I125: 0 | J125: 234472856 | K125: 266360428 | L125: -31887572 | M125: 15
A126: 20590 Framleiðsla á annarri ótalinni efnavöru | M126: 7
A127: 21200 Lyfjaframleiðsla | B127: 0 | C127: 46457671 | D127: 0 | E127: 629254824 | F127: 675712495 | G127: 390490389 | H127: 1066202884 | I127: 0 | J127: 163711532 | K127: 219850419 | L127: -56138887 | M127: 10
A128: Framleiðsla á efnum og efnavörum, lyfjaframleiðsla | B128: 0 | C128: 50739457 | D128: 0 | E128: 7073014352 | F128: 7123753809 | G128: 1939629687 | H128: 9063383496 | I128: 44259837 | J128: 1816571381 | K128: 1585642520 | L128: 230928861 | M128: 73
A129: 22110 Framleiðsla á gúmmíhjólbörðum og hjólbarðaslöngum, sólun notaðra gúmmíhjólbarða | M129: 4
A130: 22190 Framleiðsla á öðrum gúmmívörum | M130: 4
A131: 22210 Framleiðsla á plötum, þynnum, slöngum og prófílum úr plasti | M131: 2
A132: 22221 Framleiðsla á plastvörum til nota í sjávarútvegi | M132: 7
A133: 22229 Framleiðsla á öðru umbúðaplasti | M133: 8
A134: 22230 Framleiðsla á byggingarvörum úr plasti | M134: 9
A135: 22290 Framleiðsla á öðrum plastvörum | B135: 0 | C135: 0 | D135: 0 | E135: 2325031088 | F135: 2325031088 | G135: 64240453 | H135: 2389271541 | I135: 0 | J135: 592882938 | K135: 412973932 | L135: 179909006 | M135: 21
A136: 23120 Skurður og vinnsla á flotgleri | M136: 8
A137: 23130 Framleiðsla á glerílátum | M137: 1
A138: 23190 Framleiðsla og vinnsla á öðru gleri, þ.m.t. glervara til tæknilegra nota | M138: 5
A139: 23200 Framleiðsla á eldföstum vörum | M139: 1
A140: 23310 Framleiðsla á flísum og hellum úr leir | M140: 1
A141: 23410 Framleiðsla á heimilisvörum og skrautmunum úr leir og postulíni | B141: 0 | C141: 0 | D141: 0 | E141: 76503484 | F141: 76503484 | G141: 37617 | H141: 76541101 | I141: 0 | J141: 19508530 | K141: 11012417 | L141: 8496113 | M141: 12
A142: 23490 Framleiðsla á öðrum leirvörum | M142: 6
A143: 23510 Sementsframleiðsla | M143: 1
A144: 23610 Framleiðsla á byggingarefni úr steinsteypu | M144: 5
A145: 23630 Framleiðsla á tilbúinni steinsteypu | B145: 0 | C145: 4656050 | D145: 0 | E145: 8062892288 | F145: 8067548338 | G145: 156769264 | H145: 8224317602 | I145: 0 | J145: 2056362022 | K145: 1528366569 | L145: 527995453 | M145: 15
A146: 23650 Framleiðsla á vörum úr trefjasementi | M146: 2
A147: 23690 Framleiðsla á öðrum vörum úr steinsteypu, sementi og gifsi | M147: 2
A148: 23700 Steinsmíði | B148: 0 | C148: 0 | D148: 0 | E148: 805413040 | F148: 805413040 | G148: 2734160 | H148: 808147200 | I148: 0 | J148: 205380450 | K148: 115532170 | L148: 89848280 | M148: 12
A149: 23990 Framleiðsla á öðrum ótöldum vörum úr málmlausum steinefnum | M149: 6
A150: Gúmmí- og plastvöruframleiðsla, gler-, leir- og steinefnaiðnaður | B150: 0 | C150: 37558309 | D150: 0 | E150: 24453154943 | F150: 24490713252 | G150: 2797150294 | H150: 27287863546 | I150: 0 | J150: 6238182307 | K150: 4561837664 | L150: 1676344643 | M150: 132
A151: 24100 Framleiðsla á járni, stáli og járnblendi | B151: 0 | C151: 57300 | D151: 0 | E151: 304921400 | F151: 304978700 | G151: 18996368585 | H151: 19301347285 | I151: 26060784 | J151: 84404465 | K151: 778827626 | L151: -694423161 | M151: 13
A152: 24200 Framleiðsla á rörum, pípum, holum prófílum og tengihlutum úr stáli | M152: 2
A153: 24410 Framleiðsla góðmálma | M153: 1
A154: 24420 Álframleiðsla | M154: 5
A155: 24430 Blý-, sink- og tinframleiðsla | M155: 1
A156: 24510 Járnsteypa | M156: 6
A157: 24530 Steypa léttmálma | M157: 1
A158: 25110 Framleiðsla á burðarvirkjum og byggingareiningum úr málmi | M158: 8
A159: 25120 Framleiðsla á hurðum og gluggum úr málmi | M159: 9
A160: 25290 Framleiðsla á öðrum geymum, kerum og ílátum úr málmi | M160: 2
A161: 25400 Vopna- og skotfæraframleiðsla | M161: 2
A162: 25500 Eldsmíði og önnur málmsmíði; sindurmótun | B162: 0 | C162: 0 | D162: 0 | E162: 281722949 | F162: 281722949 | G162: 26144323 | H162: 307867272 | I162: 62456768 | J162: 87765861 | K162: 35395507 | L162: 52370354 | M162: 31
A163: 25610 Meðhöndlun og húðun málma | B163: 0 | C163: 0 | D163: 0 | E163: 1663856450 | F163: 1663856450 | G163: 172308220 | H163: 1836164670 | I163: 0 | J163: 424283492 | K163: 316198276 | L163: 108085216 | M163: 14
A164: 25620 Vélvinnsla málma | B164: 0 | C164: 18286802 | D164: 0 | E164: 18136558566 | F164: 18154845368 | G164: 5533952384 | H164: 23688797752 | I164: 176272386 | J164: 4671053962 | K164: 2876448498 | L164: 1794605464 | M164: 340
A165: 25720 Framleiðsla á lásum og lömum | M165: 5
A166: 25730 Framleiðsla á verkfærum, þó ekki vélknúnum | M166: 3
A167: 25930 Framleiðsla á keðjum, fjöðrum og vörum úr vír | M167: 1
A168: 25990 Framleiðsla á öðrum ótöldum málmvörum | B168: 0 | C168: 0 | D168: 0 | E168: 222441260 | F168: 222441260 | G168: 11585814 | H168: 234027074 | I168: 18000000 | J168: 61312521 | K168: 25175166 | L168: 36137355 | M168: 19
A169: Framleiðsla málma og málmvara að undanskildum vélum og búnaði | B169: 0 | C169: 69849829 | D169: 0 | E169: 22936159383 | F169: 23006009212 | G169: 253714587763 | H169: 276720596975 | I169: 302465147 | J169: 5930740198 | K169: 50751251633 | L169: -44820511435 | M169: 463
A170: 26110 Framleiðsla á rafeindaíhlutum | M170: 2
A171: 26200 Framleiðsla á tölvum og jaðarbúnaði | M171: 2
A172: 26300 Framleiðsla fjarskiptabúnaðar | M172: 1
A173: 26400 Framleiðsla á sjónvarps-, útvarps- og hljómtækjum og skyldum búnaði | M173: 2
A174: 26510 Framleiðsla á tækjum og búnaði til mælinga, prófana og leiðsögu | M174: 9
A175: 26520 Framleiðsla á úrum og klukkum | M175: 3
A176: 26600 Framleiðsla á búnaði til geislunar, raftækjabúnaði til lækninga og meðferðar | M176: 2
A177: 26800 Framleiðsla á segul- og optískum miðlum | M177: 1
A178: 27110 Framleiðsla á rafhreyflum, rafölum og spennubreytum | M178: 1
A179: 27120 Framleiðsla á dreifi- og stjórnbúnaði fyrir raforku | M179: 3
A180: 27200 Framleiðsla rafhlaðna og rafgeyma | M180: 2
A181: 27310 Framleiðsla á ljósleiðaraköplum | M181: 1
A182: 27320 Framleiðsla á öðrum rafeinda- og rafmagnsvírum og köplum | M182: 1
A183: 27400 Framleiðsla á rafljósabúnaði | M183: 7
A184: 27510 Framleiðsla rafknúinna heimilistækja | M184: 3
A185: 27900 Framleiðsla á öðrum rafbúnaði | M185: 9
A186: 28110 Framleiðsla hreyfla og hverfla, þó ekki í loftför, ökutæki eða vélhjól | B186: 0 | C186: 0 | D186: 0 | E186: 191639307 | F186: 191639307 | G186: 97887027 | H186: 289526334 | I186: 4500000 | J186: 50015467 | K186: 28800690 | L186: 21214777 | M186: 15
A187: 28220 Framleiðsla á lyftitækjum og færslubúnaði | M187: 8
A188: 28250 Framleiðsla á kæli- og loftræstibúnaði, þó ekki til heimilisnota | B188: 0 | C188: 145038 | D188: 0 | E188: 3366902583 | F188: 3367047621 | G188: 1504341749 | H188: 4871389370 | I188: 2500000 | J188: 859207996 | K188: 624830134 | L188: 234377862 | M188: 26
A189: 28290 Framleiðsla á öðrum ótöldum vélum til almennra nota | B189: 0 | C189: 0 | D189: 0 | E189: 84370052 | F189: 84370052 | G189: 0 | H189: 84370052 | I189: 2804882 | J189: 22229543 | K189: 9918264 | L189: 12311279 | M189: 16
A190: 28300 Framleiðsla á vélum til nota í landbúnaði og skógrækt | M190: 2
A191: 28490 Framleiðsla á öðrum ótöldum smíðavélum | M191: 1
A192: 28910 Framleiðsla á vélum til málmvinnslu | M192: 2
A193: 28920 Framleiðsla á vélum til mannvirkjagerðar, námugraftrar og vinnslu hráefna úr jörðu | M193: 2
A194: 28930 Framleiðsla á vélum fyrir matvæla-, drykkjarvöru- og tóbaksvinnslu | B194: 0 | C194: 13681134 | D194: 0 | E194: 5108249087 | F194: 5121930221 | G194: 20070028983 | H194: 25191959204 | I194: 5588947 | J194: 1304821290 | K194: 2364477325 | L194: -1059656035 | M194: 28
A195: 28940 Framleiðsla á vélum fyrir textíl-, fata- og leðurframleiðslu | M195: 2
A196: 28990 Framleiðsla á öðrum ótöldum sérhæfðum vélum | M196: 4
A197: Framleiðsla á tölvu-, rafeinda og optískum vörum, rafbúnaði, vélum og tækjum | B197: 0 | C197: 23978036 | D197: 0 | E197: 12244886529 | F197: 12268864565 | G197: 24084706984 | H197: 36353571549 | I197: 28217405 | J197: 3131155522 | K197: 3746363993 | L197: -615208471 | M197: 155
A198: 29200 Smíði yfirbygginga fyrir vélknúin ökutæki og framleiðsla tengivagna | B198: 0 | C198: 1219075 | D198: 0 | E198: 1068727048 | F198: 1069946123 | G198: 12026253 | H198: 1081972376 | I198: 24563765 | J198: 278874565 | K198: 172978262 | L198: 105896303 | M198: 18
A199: 29310 Framleiðsla á raf- og rafeindabúnaði í vélknúin ökutæki og hreyfla þeirra | M199: 2
A200: 29320 Framleiðsla á öðrum íhlutum og aukabúnaði í vélknúin ökutæki og hreyfla þeirra | M200: 6
... 384 more rows

Sheet 2015
A1: Atvinnugein | B1: Velta 14% | C1: Velta 11% | D1: Velta 7% | E1: Velta 24% | F1: Velta 24,5% | G1: Velta 25,5% | H1: Skattsk. velta | I1: Undanþegin velta | J1: Heildar velta | K1: Áætlun | L1: Útskattur | M1: Innskattur | N1: Álagning | O1: Fjöldi
A2: 01110 Kornrækt (að undanskildum hrísgrjónum), ræktun belgjurta og olíufræja | B2: 0 | C2: 13468639 | D2: 0 | E2: 119268289 | F2: 0 | G2: 0 | H2: 132736928 | I2: 14896000 | J2: 147632928 | K2: 1020833 | L2: 30350884 | M2: 58906227 | N2: -28555343 | O2: 17
A3: 01120 Hrísgrjónarækt | O3: 1
A4: 01131 Ræktun á aldingrænmeti og papriku | B4: 0 | C4: 1003730417 | D4: 0 | E4: 134055602 | F4: 0 | G4: 0 | H4: 1137786019 | I4: 92138476 | J4: 1229924495 | K4: 3200000 | L4: 143351272 | M4: 205503862 | N4: -62152590 | O4: 25
A5: 01132 Ræktun á kartöflum | B5: 0 | C5: 572232885 | D5: 0 | E5: 79816609 | F5: 0 | G5: 0 | H5: 652049494 | I5: 11237460 | J5: 663286954 | K5: 0 | L5: 82097556 | M5: 90956476 | N5: -8858920 | O5: 41
A6: 01139 Ræktun á öðru ótöldu grænmeti, rótum og hnýði | B6: 0 | C6: 1797121294 | D6: 0 | E6: 145834920 | F6: 0 | G6: 0 | H6: 1942956214 | I6: 29084122 | J6: 1972040336 | K6: 0 | L6: 232683786 | M6: 290419130 | N6: -57735344 | O6: 47
A7: 01140 Ræktun sykurreyrs | O7: 1
A8: 01160 Ræktun trefjajurta | O8: 1
A9: 01191 Blómarækt | B9: 0 | C9: 223734633 | D9: 0 | E9: 807966185 | F9: 0 | G9: 0 | H9: 1031700818 | I9: 7069794 | J9: 1038770612 | K9: 3572917 | L9: 219380164 | M9: 130936162 | N9: 88444002 | O9: 27
A10: 01199 Önnur ótalin ræktun nytjajurta sem ekki eru fjölærar | O10: 1
A11: 01250 Ræktun annarra ávaxta og hnetna af trjám og runnum | O11: 1
A12: 01270 Ræktun jurta til drykkjargerðar | O12: 1
A13: 01280 Ræktun krydd- , ilm- og lyfjajurta | O13: 3
A14: 01290 Ræktun annarra fjölærra nytjajurta | O14: 7
A15: 01300 Plöntufjölgun | O15: 9
A16: 01410 Ræktun mjólkurkúa | B16: 0 | C16: 417346569 | D16: 0 | E16: 13162222875 | F16: 0 | G16: 0 | H16: 13579569444 | I16: 4908096811 | J16: 18487666255 | K16: 84470808 | L16: 3225040375 | M16: 3156682633 | N16: 68357742 | O16: 653
A17: 01420 Önnur nautgriparækt | B17: 0 | C17: 151566004 | D17: 0 | E17: 948283800 | F17: 0 | G17: 0 | H17: 1099849804 | I17: 252734999 | J17: 1352584803 | K17: 8781501 | L17: 246334720 | M17: 262542617 | N17: -16207897 | O17: 98
A18: 01430 Hrossarækt og ræktun annarra dýra af hrossaætt | B18: 0 | C18: 229768891 | D18: 0 | E18: 1114950382 | F18: 0 | G18: -1524274 | H18: 1343194999 | I18: 579316120 | J18: 1922511119 | K18: 53067898 | L18: 305029102 | M18: 407950813 | N18: -102921711 | O18: 420
A19: 01450 Sauðfjár- og geitarækt | B19: 0 | C19: 591738884 | D19: 0 | E19: 6849336291 | F19: 0 | G19: -994185 | H19: 7440080990 | I19: 3597890678 | J19: 11037971668 | K19: 32279181 | L19: 1716087320 | M19: 1775737932 | N19: -59650612 | O19: 1469
A20: 01460 Svínarækt | B20: 0 | C20: 2364346203 | D20: 0 | E20: 903246608 | F20: 0 | G20: 0 | H20: 3267592811 | I20: 75016340 | J20: 3342609151 | K20: 0 | L20: 476857278 | M20: 472972624 | N20: 3884654 | O20: 15
A21: 01471 Alifuglarækt | B21: 0 | C21: 4417439716 | D21: 0 | E21: 506591964 | F21: 0 | G21: 0 | H21: 4924031680 | I21: 9211235 | J21: 4933242915 | K21: 31875000 | L21: 615150473 | M21: 775568669 | N21: -160418196 | O21: 26
A22: 01472 Eggjaframleiðsla | B22: 0 | C22: 1823873783 | D22: 0 | E22: 30602291 | F22: 0 | G22: 0 | H22: 1854476074 | I22: 150511 | J22: 1854626585 | K22: 0 | L22: 207970750 | M22: 334677287 | N22: -126706537 | O22: 10
A23: 01491 Loðdýrabú | B23: 0 | C23: 4164040 | D23: 0 | E23: 259950695 | F23: 0 | G23: 0 | H23: 264114735 | I23: 1058870227 | J23: 1322984962 | K23: 510417 | L23: 62968710 | M23: 224375468 | N23: -161406758 | O23: 41
A24: 01492 Æðarrækt og æðardúnstekja | B24: 0 | C24: 1846698 | D24: 0 | E24: 167400629 | F24: 0 | G24: 0 | H24: 169247327 | I24: 55724422 | J24: 224971749 | K24: 0 | L24: 40379225 | M24: 21221017 | N24: 19158208 | O24: 82
A25: 01499 Ræktun annarra ótalinna dýra | B25: 0 | C25: 946810 | D25: 0 | E25: 13142528 | F25: 0 | G25: 0 | H25: 14089338 | I25: 4547866 | J25: 18637204 | K25: 612500 | L25: 3405361 | M25: 3429941 | N25: -24580 | O25: 10
A26: 01500 Blandaður búskapur | B26: 0 | C26: 539856295 | D26: 0 | E26: 2638881771 | F26: 0 | G26: 0 | H26: 3178738066 | I26: 823373042 | J26: 4002111108 | K26: 11474648 | L26: 695180215 | M26: 808169522 | N26: -112989307 | O26: 233
A27: 01610 Þjónustustarfsemi við ræktun nytjajurta | B27: 0 | C27: 15428027 | D27: 0 | E27: 225793122 | F27: 0 | G27: 0 | H27: 241221149 | I27: 5321433 | J27: 246542582 | K27: 0 | L27: 55887383 | M27: 45900548 | N27: 9986835 | O27: 33
A28: 01620 Þjónustustarfsemi við búfjárrækt | B28: 0 | C28: 14414978 | D28: 0 | E28: 865320441 | F28: 0 | G28: -116502 | H28: 879618917 | I28: 315454787 | J28: 1195073704 | K28: 2552083 | L28: 209845247 | M28: 170520082 | N28: 39325165 | O28: 146
A29: 01630 Starfsemi að lokinni uppskeru | O29: 3
A30: 01700 Veiðar og tengd þjónustustarfsemi | B30: 0 | C30: 8210571 | D30: 0 | E30: 100548359 | F30: 0 | G30: 0 | H30: 108758930 | I30: 237865 | J30: 108996795 | K30: 8687754 | L30: 27119824 | M30: 8271929 | N30: 18847895 | O30: 25
A31: 02101 Rekstur gróðrastöðva fyrir skógartré | O31: 9
A32: 02109 Skógrækt og önnur ótalin starfsemi tengd henni | B32: 0 | C32: 2297181 | D32: 0 | E32: 16750302 | F32: 0 | G32: 0 | H32: 19047483 | I32: 27700193 | J32: 46747676 | K32: 19395833 | L32: 8927762 | M32: 58551526 | N32: -49623764 | O32: 430
A33: 02200 Skógarhögg | B33: 0 | C33: 0 | D33: 0 | E33: 13432901 | F33: 0 | G33: 0 | H33: 13432901 | I33: 533500 | J33: 13966401 | K33: 0 | L33: 3223895 | M33: 1581338 | N33: 1642557 | O33: 12
A34: 02400 Þjónustustarfsemi við skógrækt | B34: 0 | C34: 1698570 | D34: 0 | E34: 13209616 | F34: 0 | G34: 0 | H34: 14908186 | I34: 222246 | J34: 15130432 | K34: 0 | L34: 3356969 | M34: 1311429 | N34: 2045540 | O34: 12
A35: Landbúnaður og skógrækt | B35: 0 | C35: 14423387661 | D35: 0 | E35: 29421129128 | F35: 0 | G35: -2634961 | H35: 43841881828 | I35: 11926330051 | J35: 55768211879 | K35: 264019957 | L35: 8709414860 | M35: 9367579310 | N35: -658164450 | O35: 3909
A36: 03111 Útgerð smábáta | B36: 0 | C36: 16549010572 | D36: -792907 | E36: 1048983993 | F36: 0 | G36: 0 | H36: 17597201658 | I36: 13414263805 | J36: 31011465463 | K36: 250087635 | L36: 2125409286 | M36: 1922787503 | N36: 202621783 | O36: 1173
A37: 03112 Útgerð fiskiskipa | B37: 0 | C37: 39216433104 | D37: -3385800 | E37: 6325237131 | F37: 0 | G37: 0 | H37: 45538284435 | I37: 41130880039 | J37: 86669164474 | K37: 45941684 | L37: 5839996294 | M37: 4794440613 | N37: 1045555681 | O37: 201
A38: 03120 Ferskvatnsveiði | O38: 3
A39: 03210 Eldi og ræktun í sjó | B39: 0 | C39: 988926076 | D39: 0 | E39: 746137461 | F39: 0 | G39: -103645 | H39: 1734959892 | I39: 2546659407 | J39: 4281619299 | K39: 1000000 | L39: 288059503 | M39: 1456079919 | N39: -1168020416 | O39: 39
A40: 03220 Eldi og ræktun í ferskvatni | B40: 0 | C40: 3124595794 | D40: 0 | E40: 258137193 | F40: 0 | G40: 0 | H40: 3382732987 | I40: 2697806072 | J40: 6080539059 | K40: 0 | L40: 405658470 | M40: 914920997 | N40: -509262527 | O40: 34
A41: Fiskveiðar | B41: 0 | C41: 59880548006 | D41: -4178707 | E41: 8378495778 | F41: 0 | G41: -103645 | H41: 68254761432 | I41: 59794526467 | J41: 128049287899 | K41: 297029319 | L41: 8659297624 | M41: 9088294079 | N41: -428996455 | O41: 1450
A42: 06100 Vinnsla á hráolíu | O42: 1
A43: 07100 Járnnám | O43: 1
A44: 08110 Grjótnám til skrautsteinagerðar og til bygginga, kalksteins-, gifs-, krítar- og flögubergsnám | O44: 1
A45: 08120 Malar-, sand- og leirnám | B45: 0 | C45: 346695 | D45: 0 | E45: 2937222227 | F45: 0 | G45: 0 | H45: 2937568922 | I45: 329465734 | J45: 3267034656 | K45: 510417 | L45: 705093977 | M45: 446896831 | N45: 258197146 | O45: 36
A46: 08910 Nám og vinnsla á steinefnum til efnaiðnaðar og áburðargerðar | O46: 1
A47: 08930 Saltnám | O47: 2
A48: 08990 Nám og vinnsla annarra ótalinna hráefna úr jörðu | O48: 4
A49: 09100 Þjónustustarfsemi við námuvinnslu á jarðolíu og jarðgasi | O49: 4
A50: 09900 Þjónustustarfsemi fyrir vinnslu annarra hráefna úr jörðu | O50: 4
A51: Námagröftur og vinnsla hráefna úr jörðu | B51: 0 | C51: 22424456 | D51: 0 | E51: 3018853410 | F51: 0 | G51: 0 | H51: 3041277866 | I51: 1885789896 | J51: 4927067762 | K51: 6304167 | L51: 728504414 | M51: 2988496912 | N51: -2259992498 | O51: 54
A52: 10110 Slátrun og vinnsla á kjöti, þó ekki alifuglakjöti | B52: 0 | C52: 8430925384 | D52: -1953980 | E52: 426176151 | F52: 0 | G52: 0 | H52: 8855147555 | I52: 1564269225 | J52: 10419416780 | K52: 0 | L52: 1029547291 | M52: 1795988340 | N52: -766441049 | O52: 14
A53: 10120 Slátrun og vinnsla á alifuglakjöti | O53: 3
A54: 10130 Framleiðsla á kjötafurðum | B54: 0 | C54: 16098592891 | D54: -2894799 | E54: 2536729835 | F54: 0 | G54: 0 | H54: 18632427927 | I54: 740730749 | J54: 19373158676 | K54: 510417 | L54: 2379580265 | M54: 2563830638 | N54: -184250373 | O54: 19
A55: 10201 Frysting fiskafurða, krabbadýra og lindýra | B55: 0 | C55: 34254184010 | D55: -8250653 | E55: 9551628107 | F55: 0 | G55: -22212516 | H55: 43775348948 | I55: 167613552606 | J55: 211388901554 | K55: 47389121 | L55: 6064198245 | M55: 18570320321 | N55: -12506122076 | O55: 141
A56: 10202 Söltun, þurrkun og hersla fiskafurða, krabbadýra og lindýra | B56: 0 | C56: 5612481923 | D56: -688907 | E56: 915753104 | F56: 0 | G56: 0 | H56: 6527546120 | I56: 22189845433 | J56: 28717391553 | K56: 6622917 | L56: 838689027 | M56: 2836465248 | N56: -1997776221 | O56: 82
A57: 10203 Mjöl- og lýsisvinnsla | O57: 5
A58: 10204 Framleiðsla lagmetis úr fiskafurðum, krabbadýrum og lindýrum | O58: 9
A59: 10209 Önnur ótalin vinnsla fiskafurða, krabbadýra og lindýra | B59: 0 | C59: 1616071921 | D59: -122500 | E59: 171051548 | F59: 0 | G59: 0 | H59: 1787000969 | I59: 33450906862 | J59: 35237907831 | K59: 12947917 | L59: 221918728 | M59: 1204798552 | N59: -982879824 | O59: 48
A60: 10310 Vinnsla á kartöflum | O60: 2
A61: 10390 Önnur ótalin vinnsla ávaxta og grænmetis | O61: 3
A62: 10410 Framleiðsla á olíu og feiti | O62: 6
A63: 10420 Framleiðsla á smjörlíki og svipaðri feiti til manneldis | O63: 1
A64: 10510 Mjólkurbú og ostagerð | B64: 0 | C64: 23224138165 | D64: 0 | E64: 13328303360 | F64: 0 | G64: 0 | H64: 36552441525 | I64: 2851063045 | J64: 39403504570 | K64: 0 | L64: 5753448339 | M64: 7483609229 | N64: -1730160890 | O64: 13
A65: 10520 Ísgerð | O65: 4
A66: 10610 Framleiðsla á kornvöru | O66: 8
A67: 10710 Framleiðsla á brauði, nýju sætabrauði og kökum | B67: 0 | C67: 9360031059 | D67: -739288 | E67: 84558357 | F67: 0 | G67: -100000 | H67: 9443750128 | I67: 5870412 | J67: 9449620540 | K67: 52735175 | L67: 1058549708 | M67: 717031011 | N67: 341518697 | O67: 76
A68: 10720 Framleiðsla á tvíbökum og kexi, framleiðsla á geymsluþolnu sætabrauði og kökum | O68: 1
A69: 10730 Framleiðsla á pastavörum og svipuðum vörum | O69: 1
A70: 10820 Framleiðsla á súkkulaði og sælgæti; kakói | B70: 0 | C70: 5344016756 | D70: -8157370 | E70: 36251636 | F70: -78942 | G70: 0 | H70: 5372032080 | I70: 389050116 | J70: 5761082196 | K70: 0 | L70: 595950558 | M70: 559205191 | N70: 36745367 | O70: 10
A71: 10830 Te- og kaffivinnsla | O71: 4
A72: 10840 Framleiðsla á bragðefnum og kryddi | O72: 6
A73: 10850 Framleiðsla á tilbúnum máltíðum og réttum | B73: 0 | C73: 1477899560 | D73: 0 | E73: 92166586 | F73: 0 | G73: 0 | H73: 1570066146 | I73: 28879571 | J73: 1598945717 | K73: 0 | L73: 184688938 | M73: 145011887 | N73: 39677051 | O73: 12
A74: 10860 Framleiðsla á jafnblönduðum matvælum og sérfæði | O74: 1
A75: 10890 Önnur ótalin framleiðsla á matvælum | B75: 0 | C75: 5831438394 | D75: -72161 | E75: 206370986 | F75: 0 | G75: 0 | H75: 6037737219 | I75: 562072678 | J75: 6599809897 | K75: 5622917 | L75: 692333237 | M75: 668743849 | N75: 23589388 | O75: 51
A76: 10910 Framleiðsla húsdýrafóðurs | B76: 0 | C76: 605335014 | D76: 0 | E76: 13424950318 | F76: -17548729 | G76: -11102090 | H76: 14001634513 | I76: 1005982437 | J76: 15007616950 | K76: 0 | L76: 3281454956 | M76: 2854201559 | N76: 427253397 | O76: 12
A77: 10920 Framleiðsla gæludýrafóðurs | O77: 9
A78: 11010 Eiming, hreinsun og blöndun áfengra drykkja | B78: 0 | C78: 327184 | D78: 0 | E78: 148737214 | F78: 0 | G78: 0 | H78: 149064398 | I78: 66233498 | J78: 215297896 | K78: 500000 | L78: 35852907 | M78: 39372511 | N78: -3519604 | O78: 12
A79: 11020 Framleiðsla á víni úr þrúgum | O79: 2
A80: 11050 Bjórgerð | O80: 5
A81: 11060 Maltgerð | O81: 1
A82: 11070 Framleiðsla á gosdrykkjum, ölkelduvatni og öðru átöppuðu vatni | B82: 0 | C82: 15544657894 | D82: 0 | E82: 15291831123 | F82: 0 | G82: 0 | H82: 30836489017 | I82: 3333599716 | J82: 34170088733 | K82: 510417 | L82: 5380074316 | M82: 4161480716 | N82: 1218593600 | O82: 16
A83: Matvælaframleiðsla | B83: 0 | C83: 139482678770 | D83: -25674801 | E83: 57747290213 | F83: -17627671 | G83: -33494152 | H83: 197153172359 | I83: 254193211052 | J83: 451346383411 | K83: 174235850 | L83: 29224144067 | M83: 47772415686 | N83: -18548271619 | O83: 577
A84: 13100 Forvinnsla og spuni á textíltrefjum | O84: 3
A85: 13200 Textílvefnaður | B85: 0 | C85: 306670 | D85: 0 | E85: 15268901 | F85: 0 | G85: 0 | H85: 15575571 | I85: 6580707 | J85: 22156278 | K85: 0 | L85: 3698279 | M85: 3150851 | N85: 547428 | O85: 10
A86: 13910 Framleiðsla á hekluðum og prjónuðum dúk | O86: 6
A87: 13920 Framleiðsla á tilbúinni spunavöru annarri en fatnaði | B87: 0 | C87: 902352 | D87: 0 | E87: 453494233 | F87: 0 | G87: 0 | H87: 454396585 | I87: 5472763 | J87: 459869348 | K87: 11427846 | L87: 111680351 | M87: 68555893 | N87: 43124458 | O87: 30
A88: 13940 Framleiðsla á köðlum, seglgarni og netum | B88: 0 | C88: 0 | D88: 0 | E88: 2584357633 | F88: 0 | G88: 0 | H88: 2584357633 | I88: 3096826523 | J88: 5681184156 | K88: 0 | L88: 620245857 | M88: 492638077 | N88: 127607780 | O88: 12
A89: 13950 Framleiðsla á trefjadúk og vörum úr þeim, þó ekki fatnaði | O89: 1
A90: 13990 Framleiðsla á annarri ótalinni textílvöru | O90: 8
A91: 14110 Framleiðsla á leðurfatnaði | O91: 2
A92: 14120 Vinnufatagerð | O92: 2
A93: 14130 Framleiðsla á öðrum yfirfatnaði | B93: 0 | C93: 132061 | D93: 0 | E93: 195745995 | F93: 0 | G93: 0 | H93: 195878056 | I93: 35180809 | J93: 231058865 | K93: 9655608 | L93: 49310715 | M93: 21256344 | N93: 28054371 | O93: 24
A94: 14140 Framleiðsla á nærfatnaði | O94: 1
A95: 14190 Framleiðsla á öðrum fatnaði og fylgihlutum | B95: 0 | C95: 31743 | D95: 0 | E95: 275472563 | F95: 0 | G95: 0 | H95: 275504306 | I95: 58230747 | J95: 333735053 | K95: 2092967 | L95: 66619220 | M95: 24962843 | N95: 41656377 | O95: 24
A96: 14310 Framleiðsla á sokkum og sokkavörum | O96: 1
A97: 14390 Framleiðsla á öðrum prjónuðum og hekluðum fatnaði | O97: 7
A98: 15110 Sútun leðurs; sútun og litun á loðskinni | O98: 3
A99: 15120 Framleiðsla á ferðatöskum, handtöskum og áþekkum vörum; reiðtygjum og skyldum vörum | O99: 9
A100: 15200 Framleiðsla á skófatnaði | O100: 3
A101: Textíl-, fata og leðuriðnaður | B101: 0 | C101: 75367716 | D101: 0 | E101: 6378388879 | F101: 0 | G101: -445787 | H101: 6453310808 | I101: 4020867268 | J101: 10474178076 | K101: 34022342 | L101: 1547155227 | M101: 1127476928 | N101: 419678299 | O101: 146
A102: 16100 Sögun, heflun og fúavörn á viði | O102: 7
A103: 16210 Framleiðsla á viðarspæni og plötum að grunni til úr viði | O103: 1
A104: 16220 Framleiðsla á samsettum parketgólfum | O104: 1
A105: 16230 Framleiðsla á öðrum trésmíðavörum til bygginga | B105: 0 | C105: 37540230 | D105: 0 | E105: 2802713070 | F105: 0 | G105: -3448034 | H105: 2836805266 | I105: 4838860 | J105: 2841644126 | K105: 17732383 | L105: 680157000 | M105: 398219882 | N105: 281937118 | O105: 64
A106: 16240 Framleiðsla á umbúðum úr viði | O106: 7
A107: 16290 Framleiðsla á annarri viðarvöru; framleiðsla á vörum úr korki, hálmi og fléttiefnum | B107: -73274 | C107: 845123 | D107: 0 | E107: 490858788 | F107: -180642 | G107: 0 | H107: 491449995 | I107: 29748729 | J107: 521198724 | K107: 724804 | L107: 118018488 | M107: 58955894 | N107: 59062594 | O107: 30
A108: 17210 Framleiðsla á bylgjupappír og -pappa og umbúðum úr pappír og pappa | O108: 2
A109: 17220 Framleiðsla á heimilis- og hreinlætisvörum úr pappír og pappa | O109: 2
A110: 17230 Framleiðsla á skrifpappír og skrifstofuvörum úr pappír og pappa | O110: 2
A111: 17290 Framleiðsla á annarri pappírs- og pappavöru | O111: 1
A112: 18110 Prentun dagblaða | O112: 2
A113: 18120 Önnur prentun | B113: 0 | C113: 111335962 | D113: 0 | E113: 9645486841 | F113: 0 | G113: -14200 | H113: 9756808603 | I113: 585687783 | J113: 10342496386 | K113: 3929587 | L113: 2328105998 | M113: 1248542012 | N113: 1079563986 | O113: 95
A114: 18130 Undirbúningur fyrir prentun | B114: 0 | C114: 5431833 | D114: 0 | E114: 1560781164 | F114: 0 | G114: 0 | H114: 1566212997 | I114: 8301661 | J114: 1574514658 | K114: 0 | L114: 375185377 | M114: 159189643 | N114: 215995734 | O114: 33
A115: 18140 Bókband og tengd þjónusta | B115: 0 | C115: 918 | D115: 0 | E115: 82776424 | F115: 0 | G115: 0 | H115: 82777342 | I115: 0 | J115: 82777342 | K115: 0 | L115: 19866442 | M115: 6716993 | N115: 13149449 | O115: 10
A116: 18200 Fjölföldun upptekins efnis | O116: 3
A117: Trjá- og pappírsiðnaður, prentun | B117: -73274 | C117: 355819127 | D117: 0 | E117: 16960408068 | F117: -180642 | G117: -3462234 | H117: 17312511045 | I117: 716907641 | J117: 18029418686 | K117: 30355524 | L117: 4115993555 | M117: 2276155058 | N117: 1839838497 | O117: 260
A118: 19200 Framleiðsla á hreinsuðum olíuvörum | O118: 7
A119: 20110 Framleiðsla á iðnaðargasi | O119: 3
A120: 20140 Framleiðsla á öðrum lífrænum grunnefnum til efnaiðnaðar | O120: 7
A121: 20150 Framleiðsla á tilbúnum áburði og köfnunarefnissamböndum | O121: 4
A122: 20160 Framleiðsla á plasthráefnum | O122: 3
A123: 20300 Framleiðsla á málningu, lökkum og svipuðum þekjuefnum, prentbleki og fylli- og þéttiefnum | O123: 2
A124: 20410 Framleiðsla á sápu, hreinsi- og þvottaefnum, hreingerningar- og fægiefnum | O124: 9
A125: 20420 Framleiðsla á ilmvatni og snyrtivörum | B125: 0 | C125: 11580434 | D125: 0 | E125: 1111589351 | F125: 0 | G125: 0 | H125: 1123169785 | I125: 512045750 | J125: 1635215535 | K125: 0 | L125: 268055254 | M125: 304690883 | N125: -36635629 | O125: 16
A126: 20590 Framleiðsla á annarri ótalinni efnavöru | O126: 7
A127: 21200 Lyfjaframleiðsla | B127: 0 | C127: 52494250 | D127: 0 | E127: 222523112 | F127: 0 | G127: 0 | H127: 275017362 | I127: 507747564 | J127: 782764926 | K127: 0 | L127: 59179933 | M127: 1301397276 | N127: -1242217343 | O127: 10
A128: Framleiðsla á efnum og efnavörum, lyfjaframleiðsla | B128: 0 | C128: 71901648 | D128: 0 | E128: 7108274245 | F128: 0 | G128: -1208431 | H128: 7178967462 | I128: 2225997336 | J128: 9404964798 | K128: 49177666 | L128: 1724894683 | M128: 3007125343 | N128: -1282230660 | O128: 68
A129: 22110 Framleiðsla á gúmmíhjólbörðum og hjólbarðaslöngum, sólun notaðra gúmmíhjólbarða | O129: 4
A130: 22190 Framleiðsla á öðrum gúmmívörum | O130: 3
A131: 22210 Framleiðsla á plötum, þynnum, slöngum og prófílum úr plasti | O131: 2
A132: 22221 Framleiðsla á plastvörum til nota í sjávarútvegi | O132: 7
A133: 22229 Framleiðsla á öðru umbúðaplasti | O133: 7
A134: 22230 Framleiðsla á byggingarvörum úr plasti | O134: 9
A135: 22290 Framleiðsla á öðrum plastvörum | B135: 0 | C135: 0 | D135: 0 | E135: 2291184131 | F135: 0 | G135: -12390 | H135: 2291171741 | I135: 4625033 | J135: 2295796774 | K135: 0 | L135: 549885091 | M135: 344867434 | N135: 205017657 | O135: 19
A136: 23120 Skurður og vinnsla á flotgleri | O136: 7
A137: 23130 Framleiðsla á glerílátum | O137: 1
A138: 23190 Framleiðsla og vinnsla á öðru gleri, þ.m.t. glervara til tæknilegra nota | O138: 4
A139: 23200 Framleiðsla á eldföstum vörum | O139: 1
A140: 23310 Framleiðsla á flísum og hellum úr leir | O140: 1
A141: 23410 Framleiðsla á heimilisvörum og skrautmunum úr leir og postulíni | B141: 0 | C141: 0 | D141: 0 | E141: 80468287 | F141: 0 | G141: 0 | H141: 80468287 | I141: 1018275 | J141: 81486562 | K141: 0 | L141: 19312367 | M141: 9046245 | N141: 10266122 | O141: 11
A142: 23490 Framleiðsla á öðrum leirvörum | O142: 6
A143: 23510 Sementsframleiðsla | O143: 1
A144: 23610 Framleiðsla á byggingarefni úr steinsteypu | O144: 6
A145: 23630 Framleiðsla á tilbúinni steinsteypu | B145: 0 | C145: 5416683 | D145: 0 | E145: 10030172430 | F145: 0 | G145: -5304145 | H145: 10030284968 | I145: 108055364 | J145: 10138340332 | K145: 0 | L145: 2406484655 | M145: 1550130390 | N145: 856354265 | O145: 16
A146: 23650 Framleiðsla á vörum úr trefjasementi | O146: 1
A147: 23690 Framleiðsla á öðrum vörum úr steinsteypu, sementi og gifsi | O147: 2
A148: 23700 Steinsmíði | B148: 0 | C148: 0 | D148: 0 | E148: 826042280 | F148: 0 | G148: 0 | H148: 826042280 | I148: 2173267 | J148: 828215547 | K148: 55924658 | L148: 211672074 | M148: 94567865 | N148: 117104209 | O148: 15
A149: 23990 Framleiðsla á öðrum ótöldum vörum úr málmlausum steinefnum | O149: 6
A150: Gúmmí- og plastvöruframleiðsla, gler-, leir- og steinefnaiðnaður | B150: 0 | C150: 46232376 | D150: 0 | E150: 28507606725 | F150: 0 | G150: -18338335 | H150: 28535500766 | I150: 2548874240 | J150: 31084375006 | K150: 70911964 | L150: 6859225841 | M150: 4642124343 | N150: 2217101498 | O150: 129
A151: 24100 Framleiðsla á járni, stáli og járnblendi | B151: 0 | C151: 941855 | D151: 0 | E151: 363547749 | F151: 0 | G151: 0 | H151: 364489604 | I151: 18519333711 | J151: 18883823315 | K151: 41776858 | L151: 97381492 | M151: 700345249 | N151: -602963757 | O151: 12
A152: 24200 Framleiðsla á rörum, pípum, holum prófílum og tengihlutum úr stáli | O152: 1
A153: 24410 Framleiðsla góðmálma | O153: 1
A154: 24420 Álframleiðsla | O154: 5
A155: 24430 Blý-, sink- og tinframleiðsla | O155: 1
A156: 24510 Járnsteypa | O156: 6
A157: 24530 Steypa léttmálma | O157: 1
A158: 25110 Framleiðsla á burðarvirkjum og byggingareiningum úr málmi | O158: 8
A159: 25120 Framleiðsla á hurðum og gluggum úr málmi | O159: 8
A160: 25290 Framleiðsla á öðrum geymum, kerum og ílátum úr málmi | O160: 2
A161: 25400 Vopna- og skotfæraframleiðsla | O161: 2
A162: 25500 Eldsmíði og önnur málmsmíði; sindurmótun | B162: 0 | C162: 0 | D162: 0 | E162: 467031216 | F162: 0 | G162: 0 | H162: 467031216 | I162: 20018950 | J162: 487050166 | K162: 5728542 | L162: 113462108 | M162: 49352514 | N162: 64109594 | O162: 29
A163: 25610 Meðhöndlun og húðun málma | B163: 0 | C163: 0 | D163: 0 | E163: 1680334229 | F163: 0 | G163: 0 | H163: 1680334229 | I163: 106653231 | J163: 1786987460 | K163: 0 | L163: 403280374 | M163: 270428388 | N163: 132851986 | O163: 13
A164: 25620 Vélvinnsla málma | B164: 0 | C164: 15447153 | D164: 0 | E164: 20546616098 | F164: -106888 | G164: -9101417 | H164: 20552854946 | I164: 5120251106 | J164: 25673106052 | K164: 129620938 | L164: 4961649644 | M164: 2771089876 | N164: 2190559768 | O164: 342
A165: 25720 Framleiðsla á lásum og lömum | O165: 5
A166: 25730 Framleiðsla á verkfærum, þó ekki vélknúnum | O166: 3
A167: 25930 Framleiðsla á keðjum, fjöðrum og vörum úr vír | O167: 1
A168: 25990 Framleiðsla á öðrum ótöldum málmvörum | B168: 0 | C168: 0 | D168: 0 | E168: 272547305 | F168: 0 | G168: 0 | H168: 272547305 | I168: 47510652 | J168: 320057957 | K168: 510417 | L168: 65533829 | M168: 27290992 | N168: 38242837 | O168: 18
A169: Framleiðsla málma og málmvara að undanskildum vélum og búnaði | B169: 0 | C169: 54762276 | D169: 0 | E169: 26506313816 | F169: -106888 | G169: -9185162 | H169: 26551784042 | I169: 266130486156 | J169: 292682270198 | K169: 196761755 | L169: 6412393261 | M169: 51717899443 | N169: -45305506182 | O169: 458
A170: 26110 Framleiðsla á rafeindaíhlutum | O170: 2
A171: 26200 Framleiðsla á tölvum og jaðarbúnaði | O171: 2
A172: 26300 Framleiðsla fjarskiptabúnaðar | O172: 1
A173: 26400 Framleiðsla á sjónvarps-, útvarps- og hljómtækjum og skyldum búnaði | O173: 3
A174: 26510 Framleiðsla á tækjum og búnaði til mælinga, prófana og leiðsögu | B174: 0 | C174: 5708598 | D174: 0 | E174: 184614542 | F174: 0 | G174: 0 | H174: 190323140 | I174: 1070103760 | J174: 1260426900 | K174: 0 | L174: 44935431 | M174: 133406204 | N174: -88470773 | O174: 10
A175: 26520 Framleiðsla á úrum og klukkum | O175: 2
A176: 26600 Framleiðsla á búnaði til geislunar, raftækjabúnaði til lækninga og meðferðar | O176: 2
A177: 26800 Framleiðsla á segul- og optískum miðlum | O177: 1
A178: 27110 Framleiðsla á rafhreyflum, rafölum og spennubreytum | O178: 1
A179: 27120 Framleiðsla á dreifi- og stjórnbúnaði fyrir raforku | O179: 3
A180: 27200 Framleiðsla rafhlaðna og rafgeyma | O180: 2
A181: 27310 Framleiðsla á ljósleiðaraköplum | O181: 1
A182: 27320 Framleiðsla á öðrum rafeinda- og rafmagnsvírum og köplum | O182: 1
A183: 27400 Framleiðsla á rafljósabúnaði | O183: 7
A184: 27510 Framleiðsla rafknúinna heimilistækja | O184: 2
A185: 27900 Framleiðsla á öðrum rafbúnaði | O185: 9
A186: 28110 Framleiðsla hreyfla og hverfla, þó ekki í loftför, ökutæki eða vélhjól | B186: 0 | C186: 0 | D186: 0 | E186: 213039645 | F186: 0 | G186: 0 | H186: 213039645 | I186: 83033027 | J186: 296072672 | K186: 0 | L186: 51129546 | M186: 32309684 | N186: 18819862 | O186: 14
A187: 28220 Framleiðsla á lyftitækjum og færslubúnaði | O187: 8
A188: 28250 Framleiðsla á kæli- og loftræstibúnaði, þó ekki til heimilisnota | B188: 0 | C188: 5657060 | D188: 0 | E188: 4171659443 | F188: 0 | G188: -16905217 | H188: 4160411286 | I188: 1000601154 | J188: 5161012440 | K188: 24256333 | L188: 1003331126 | M188: 604742544 | N188: 398588582 | O188: 27
A189: 28290 Framleiðsla á öðrum ótöldum vélum til almennra nota | B189: 0 | C189: 46126 | D189: 0 | E189: 91133944 | F189: 0 | G189: 0 | H189: 91180070 | I189: 22000 | J189: 91202070 | K189: 0 | L189: 21877227 | M189: 12740449 | N189: 9136778 | O189: 14
A190: 28300 Framleiðsla á vélum til nota í landbúnaði og skógrækt | O190: 3
A191: 28490 Framleiðsla á öðrum ótöldum smíðavélum | O191: 1
A192: 28910 Framleiðsla á vélum til málmvinnslu | O192: 2
A193: 28920 Framleiðsla á vélum til mannvirkjagerðar, námugraftrar og vinnslu hráefna úr jörðu | O193: 3
A194: 28930 Framleiðsla á vélum fyrir matvæla-, drykkjarvöru- og tóbaksvinnslu | B194: 0 | C194: 10728274 | D194: 0 | E194: 4799435909 | F194: 0 | G194: -2751589 | H194: 4807412594 | I194: 19055238266 | J194: 23862650860 | K194: 2104167 | L194: 1152845585 | M194: 2081293561 | N194: -928447976 | O194: 26
A195: 28940 Framleiðsla á vélum fyrir textíl-, fata- og leðurframleiðslu | O195: 2
A196: 28990 Framleiðsla á öðrum ótöldum sérhæfðum vélum | O196: 4
A197: Framleiðsla á tölvu-, rafeinda- og optískum vörum, rafbúnaði, vélum og tækjum | B197: 0 | C197: 39540606 | D197: 0 | E197: 13454678269 | F197: 0 | G197: -19656806 | H197: 13474562069 | I197: 22667875414 | J197: 36142437483 | K197: 34779163 | L197: 3236804522 | M197: 3539416832 | N197: -302612310 | O197: 153
A198: 29200 Smíði yfirbygginga fyrir vélknúin ökutæki og framleiðsla tengivagna | B198: 0 | C198: 59878 | D198: 0 | E198: 1248257953 | F198: 0 | G198: 0 | H198: 1248317831 | I198: 10324096 | J198: 1258641927 | K198: 0 | L198: 299588383 | M198: 194449372 | N198: 105139011 | O198: 18
A199: 29310 Framleiðsla á raf- og rafeindabúnaði í vélknúin ökutæki og hreyfla þeirra | O199: 2
A200: 29320 Framleiðsla á öðrum íhlutum og aukabúnaði í vélknúin ökutæki og hreyfla þeirra | O200: 6
... 385 more rows

Sheet 2016
A1: Atvinnugein 2008 | B1: Velta 14% | C1: Velta 11% | D1: Velta 7% | E1: Velta 24% | F1: Velta 24,5% | G1: Velta 25,5% | H1: Skattsk. velta | I1: Undanþegin velta | J1: Heildar velta | K1: Áætlun | L1: Útskattur | M1: Innskattur | N1: Álagning | O1: Fjöldi
A2: 01110 Kornrækt (að undanskildum hrísgrjónum), ræktun belgjurta og olíufræja | B2: 0 | C2: 20071007 | D2: 0 | E2: 35769812 | F2: 0 | G2: 0 | H2: 55840819 | I2: 58515 | J2: 55899334 | K2: 0 | L2: 10792497 | M2: 33579251 | N2: -22786754 | O2: 15
A3: 01131 Ræktun á aldingrænmeti og papriku | B3: 0 | C3: 1221247612 | D3: 0 | E3: 172902873 | F3: 0 | G3: 0 | H3: 1394150485 | I3: 65330477 | J3: 1459480962 | K3: 0 | L3: 175833918 | M3: 199623634 | N3: -23789716 | O3: 24
A4: 01132 Ræktun á kartöflum | B4: 0 | C4: 657386509 | D4: 0 | E4: 92828658 | F4: 0 | G4: 0 | H4: 750215167 | I4: 15695589 | J4: 765910756 | K4: 0 | L4: 94591388 | M4: 113714264 | N4: -19122876 | O4: 41
A5: 01139 Ræktun á öðru ótöldu grænmeti, rótum og hnýði | B5: 0 | C5: 1942286612 | D5: -77410 | E5: 145653420 | F5: 0 | G5: 0 | H5: 2087862622 | I5: 16744053 | J5: 2104606675 | K5: 2816706 | L5: 248914566 | M5: 262141793 | N5: -13227227 | O5: 46
A6: 01140 Ræktun sykurreyrs | O6: 1
A7: 01160 Ræktun trefjajurta | O7: 1
A8: 01191 Blómarækt | B8: 0 | C8: 218966396 | D8: 0 | E8: 840057768 | F8: 0 | G8: 0 | H8: 1059024164 | I8: 299948 | J8: 1059324112 | K8: 0 | L8: 225700164 | M8: 128520452 | N8: 97179712 | O8: 25
A9: 01199 Önnur ótalin ræktun nytjajurta sem ekki eru fjölærar | O9: 1
A10: 01250 Ræktun annarra ávaxta og hnetna af trjám og runnum | O10: 1
A11: 01270 Ræktun jurta til drykkjargerðar | O11: 1
A12: 01280 Ræktun krydd- , ilm- og lyfjajurta | O12: 3
A13: 01290 Ræktun annarra fjölærra nytjajurta | O13: 7
A14: 01300 Plöntufjölgun | B14: 0 | C14: 45028714 | D14: 0 | E14: 201064115 | F14: 0 | G14: 0 | H14: 246092829 | I14: 0 | J14: 246092829 | K14: 1154696 | L14: 53485686 | M14: 21372152 | N14: 32113534 | O14: 10
A15: 01410 Ræktun mjólkurkúa | B15: 0 | C15: 508200226 | D15: 0 | E15: 13319427422 | F15: 0 | G15: 0 | H15: 13827627648 | I15: 4871100654 | J15: 18698728302 | K15: 22419645 | L15: 3257932547 | M15: 3044121162 | N15: 213811385 | O15: 630
A16: 01420 Önnur nautgriparækt | B16: 0 | C16: 174955623 | D16: 0 | E16: 1035861894 | F16: 0 | G16: 0 | H16: 1210817517 | I16: 296718094 | J16: 1507535611 | K16: 2020675 | L16: 268219333 | M16: 288782322 | N16: -20562989 | O16: 96
A17: 01430 Hrossarækt og ræktun annarra dýra af hrossaætt | B17: 0 | C17: 437424690 | D17: -3614540 | E17: 1262094578 | F17: 0 | G17: -216863 | H17: 1695687865 | I17: 646305407 | J17: 2341993272 | K17: 16090304 | L17: 354572780 | M17: 468806757 | N17: -114233977 | O17: 420
A18: 01450 Sauðfjár- og geitarækt | B18: 0 | C18: 814063765 | D18: 0 | E18: 6926454151 | F18: 0 | G18: -2 | H18: 7740517914 | I18: 3797819738 | J18: 11538337652 | K18: 6800977 | L18: 1753498010 | M18: 1863102974 | N18: -109604964 | O18: 1449
A19: 01460 Svínarækt | B19: 0 | C19: 2460868169 | D19: 0 | E19: 747285295 | F19: 0 | G19: 0 | H19: 3208153464 | I19: 56465821 | J19: 3264619285 | K19: 0 | L19: 450043962 | M19: 421068732 | N19: 28975230 | O19: 16
A20: 01471 Alifuglarækt | B20: 0 | C20: 5048469902 | D20: -519140 | E20: 544778320 | F20: 0 | G20: 0 | H20: 5592729082 | I20: 10298681 | J20: 5603027763 | K20: 0 | L20: 686042119 | M20: 786788043 | N20: -100745924 | O20: 24
A21: 01472 Eggjaframleiðsla | O21: 8
A22: 01491 Loðdýrabú | B22: 0 | C22: 3872706 | D22: 0 | E22: 117165118 | F22: 0 | G22: 0 | H22: 121037824 | I22: 726022916 | J22: 847060740 | K22: 0 | L22: 28545622 | M22: 145122124 | N22: -116576502 | O22: 41
A23: 01492 Æðarrækt og æðardúnstekja | B23: 0 | C23: 3420789 | D23: 0 | E23: 214915629 | F23: 0 | G23: 0 | H23: 218336418 | I23: 62344489 | J23: 280680907 | K23: 0 | L23: 51956038 | M23: 22332087 | N23: 29623951 | O23: 84
A24: 01499 Ræktun annarra ótalinna dýra | B24: 0 | C24: 1898198 | D24: 0 | E24: 29634493 | F24: 0 | G24: 0 | H24: 31532691 | I24: 8724418 | J24: 40257109 | K24: 0 | L24: 7321090 | M24: 5639466 | N24: 1681624 | O24: 12
A25: 01500 Blandaður búskapur | B25: 0 | C25: 716808599 | D25: 0 | E25: 3265167609 | F25: 0 | G25: 0 | H25: 3981976208 | I25: 1132849930 | J25: 5114826138 | K25: 4216033 | L25: 863352561 | M25: 973683210 | N25: -110330649 | O25: 249
A26: 01610 Þjónustustarfsemi við ræktun nytjajurta | B26: 0 | C26: 10670720 | D26: 0 | E26: 191503852 | F26: 0 | G26: 0 | H26: 202174572 | I26: 20800528 | J26: 222975100 | K26: 0 | L26: 47134704 | M26: 25958244 | N26: 21176460 | O26: 33
A27: 01620 Þjónustustarfsemi við búfjárrækt | B27: 0 | C27: 32266644 | D27: 0 | E27: 1096246059 | F27: 0 | G27: 0 | H27: 1128512703 | I27: 416906386 | J27: 1545419089 | K27: 10750000 | L27: 269228313 | M27: 210215609 | N27: 59012704 | O27: 152
A28: 01630 Starfsemi að lokinni uppskeru | O28: 3
A29: 01700 Veiðar og tengd þjónustustarfsemi | B29: 0 | C29: 10431959 | D29: 0 | E29: 83714780 | F29: 0 | G29: 0 | H29: 94146739 | I29: 405000 | J29: 94551739 | K29: 0 | L29: 21239068 | M29: 7859759 | N29: 13379309 | O29: 24
A30: 02101 Rekstur gróðrastöðva fyrir skógartré | O30: 9
A31: 02109 Skógrækt og önnur ótalin starfsemi tengd henni | B31: 0 | C31: 3344088 | D31: 0 | E31: 51657407 | F31: 0 | G31: 0 | H31: 55001495 | I31: 42297441 | J31: 97298936 | K31: 4083333 | L31: 13745627 | M31: 69598877 | N31: -55853250 | O31: 430
A32: 02200 Skógarhögg | O32: 9
A33: 02400 Þjónustustarfsemi við skógrækt | B33: 0 | C33: 1697250 | D33: 0 | E33: 15943270 | F33: 0 | G33: 0 | H33: 17640520 | I33: 86443 | J33: 17726963 | K33: 0 | L33: 4013077 | M33: 1814311 | N33: 2198766 | O33: 11
A34: Landbúnaður og skógrækt | B34: 0 | C34: 16486428026 | D34: -4834912 | E34: 30568386517 | F34: 0 | G34: -216865 | H34: 47049762766 | I34: 12246832932 | J34: 59296595698 | K34: 72194215 | L34: 9166178437 | M34: 9466532249 | N34: -300353812 | O34: 3876
A35: 03111 Útgerð smábáta | B35: 0 | C35: 15950247648 | D35: -31500 | E35: 1399284836 | F35: 0 | G35: -140000 | H35: 17349360984 | I35: 13706577130 | J35: 31055938114 | K35: 76301084 | L35: 2105406560 | M35: 1916856709 | N35: 188549851 | O35: 1149
A36: 03112 Útgerð fiskiskipa | B36: 0 | C36: 37514696473 | D36: 0 | E36: 3649873993 | F36: 0 | G36: -20451486 | H36: 41144118980 | I36: 43525118018 | J36: 84669236998 | K36: 11722682 | L36: 4999773799 | M36: 4355739135 | N36: 644034664 | O36: 199
A37: 03120 Ferskvatnsveiði | O37: 2
A38: 03210 Eldi og ræktun í sjó | B38: 0 | C38: 2416447306 | D38: -1198439 | E38: 852473654 | F38: 0 | G38: 0 | H38: 3267722521 | I38: 5297248060 | J38: 8564970581 | K38: 510417 | L38: 470441504 | M38: 2176651418 | N38: -1706209914 | O38: 34
A39: 03220 Eldi og ræktun í ferskvatni | B39: 0 | C39: 3132217387 | D39: 0 | E39: 361373474 | F39: 0 | G39: 0 | H39: 3493590861 | I39: 2295854931 | J39: 5789445792 | K39: 0 | L39: 431273649 | M39: 974114143 | N39: -542840494 | O39: 31
A40: Fiskveiðar | B40: 0 | C40: 59014980984 | D40: -1229939 | E40: 6263005957 | F40: 0 | G40: -20591486 | H40: 65256165516 | I40: 64824798139 | J40: 130080963655 | K40: 88534183 | L40: 8007046451 | M40: 9423416629 | N40: -1416370178 | O40: 1415
A41: 06100 Vinnsla á hráolíu | O41: 1
A42: 08110 Grjótnám til skrautsteinagerðar og til bygginga, kalksteins-, gifs-, krítar- og flögubergsnám | O42: 1
A43: 08120 Malar-, sand- og leirnám | B43: 0 | C43: 860912 | D43: 0 | E43: 3569352857 | F43: 0 | G43: 0 | H43: 3570213769 | I43: 297634194 | J43: 3867847963 | K43: 510417 | L43: 856861895 | M43: 516275831 | N43: 340586064 | O43: 39
A44: 08910 Nám og vinnsla á steinefnum til efnaiðnaðar og áburðargerðar | O44: 1
A45: 08930 Saltnám | O45: 2
A46: 08990 Nám og vinnsla annarra ótalinna hráefna úr jörðu | O46: 4
A47: 09100 Þjónustustarfsemi við námuvinnslu á jarðolíu og jarðgasi | O47: 3
A48: 09900 Þjónustustarfsemi fyrir vinnslu annarra hráefna úr jörðu | O48: 3
A49: Námagröftur og vinnsla hráefna úr jörðu | B49: 0 | C49: 149079389 | D49: 0 | E49: 3668800104 | F49: 0 | G49: 0 | H49: 3817879493 | I49: 2017532128 | J49: 5835411621 | K49: 2910417 | L49: 897609273 | M49: 5205884058 | N49: -4308274785 | O49: 54
A50: 10110 Slátrun og vinnsla á kjöti, þó ekki alifuglakjöti | B50: 0 | C50: 9217523774 | D50: -2496530 | E50: 426987623 | F50: 0 | G50: 0 | H50: 9642014867 | I50: 1264025112 | J50: 10906039979 | K50: 0 | L50: 1116864098 | M50: 1769036785 | N50: -652172687 | O50: 14
A51: 10120 Slátrun og vinnsla á alifuglakjöti | O51: 3
A52: 10130 Framleiðsla á kjötafurðum | B52: 0 | C52: 17807572896 | D52: -73117 | E52: 2261107078 | F52: 0 | G52: 0 | H52: 20068606857 | I52: 685020818 | J52: 20753627675 | K52: 0 | L52: 2501493590 | M52: 2536703974 | N52: -35210384 | O52: 19
A53: 10201 Frysting fiskafurða, krabbadýra og lindýra | B53: 0 | C53: 31607244176 | D53: -157711 | E53: 7403621394 | F53: 0 | G53: 0 | H53: 39010707859 | I53: 137299571240 | J53: 176310279099 | K53: 10356080 | L53: 5255573356 | M53: 16476556309 | N53: -11220982953 | O53: 137
A54: 10202 Söltun, þurrkun og hersla fiskafurða, krabbadýra og lindýra | B54: 0 | C54: 3916950168 | D54: -520802 | E54: 755524834 | F54: 0 | G54: 0 | H54: 4671954200 | I54: 18154969672 | J54: 22826923872 | K54: 7911912 | L54: 613613662 | M54: 2181102460 | N54: -1567488798 | O54: 78
A55: 10203 Mjöl- og lýsisvinnsla | O55: 5
A56: 10204 Framleiðsla lagmetis úr fiskafurðum, krabbadýrum og lindýrum | O56: 8
A57: 10209 Önnur ótalin vinnsla fiskafurða, krabbadýra og lindýra | B57: 0 | C57: 1261443699 | D57: 0 | E57: 245275147 | F57: 0 | G57: 0 | H57: 1506718846 | I57: 29371687838 | J57: 30878406684 | K57: 0 | L57: 197624889 | M57: 1151644590 | N57: -954019701 | O57: 48
A58: 10310 Vinnsla á kartöflum | O58: 2
A59: 10390 Önnur ótalin vinnsla ávaxta og grænmetis | O59: 3
A60: 10410 Framleiðsla á olíu og feiti | O60: 6
A61: 10420 Framleiðsla á smjörlíki og svipaðri feiti til manneldis | O61: 1
A62: 10510 Mjólkurbú og ostagerð | B62: 0 | C62: 25130768007 | D62: 0 | E62: 13939328836 | F62: 0 | G62: 0 | H62: 39070096843 | I62: 3404499592 | J62: 42474596435 | K62: 0 | L62: 6109823479 | M62: 7744920731 | N62: -1635097252 | O62: 15
A63: 10520 Ísgerð | O63: 3
A64: 10610 Framleiðsla á kornvöru | O64: 6
A65: 10710 Framleiðsla á brauði, nýju sætabrauði og kökum | B65: 0 | C65: 10357639518 | D65: -3494140 | E65: 118110074 | F65: 0 | G65: 0 | H65: 10472255452 | I65: 7014967 | J65: 10479270419 | K65: 10315909 | L65: 1168577128 | M65: 842432813 | N65: 326144315 | O65: 75
A66: 10720 Framleiðsla á tvíbökum og kexi, framleiðsla á geymsluþolnu sætabrauði og kökum | O66: 1
A67: 10730 Framleiðsla á pastavörum og svipuðum vörum | O67: 1
A68: 10820 Framleiðsla á súkkulaði og sælgæti; kakói | B68: 0 | C68: 5971386639 | D68: -391514 | E68: 83817971 | F68: 0 | G68: 0 | H68: 6054813096 | I68: 550524001 | J68: 6605337097 | K68: 0 | L68: 676942154 | M68: 625799187 | N68: 51142967 | O68: 11
A69: 10830 Te- og kaffivinnsla | O69: 4
A70: 10840 Framleiðsla á bragðefnum og kryddi | O70: 5
A71: 10850 Framleiðsla á tilbúnum máltíðum og réttum | B71: 0 | C71: 1827984613 | D71: 0 | E71: 6392671 | F71: 0 | G71: 0 | H71: 1834377284 | I71: 36102691 | J71: 1870479975 | K71: 0 | L71: 202612550 | M71: 183239051 | N71: 19373499 | O71: 13
A72: 10860 Framleiðsla á jafnblönduðum matvælum og sérfæði | O72: 1
A73: 10890 Önnur ótalin framleiðsla á matvælum | B73: 0 | C73: 6680738878 | D73: -550575 | E73: 213452370 | F73: 0 | G73: 0 | H73: 6893640673 | I73: 804180445 | J73: 7697821118 | K73: 5393297 | L73: 786684031 | M73: 765452703 | N73: 21231328 | O73: 57
A74: 10910 Framleiðsla húsdýrafóðurs | B74: 0 | C74: 596889089 | D74: 0 | E74: 12685039710 | F74: 0 | G74: 0 | H74: 13281928799 | I74: 1563496927 | J74: 14845425726 | K74: 0 | L74: 3110067325 | M74: 2666450666 | N74: 443616659 | O74: 12
A75: 10920 Framleiðsla gæludýrafóðurs | O75: 8
A76: 11010 Eiming, hreinsun og blöndun áfengra drykkja | B76: 0 | C76: 205589660 | D76: 0 | E76: 28005915 | F76: 0 | G76: 0 | H76: 233595575 | I76: 104863690 | J76: 338459265 | K76: 1735417 | L76: 29752883 | M76: 50110921 | N76: -20358038 | O76: 14
A77: 11020 Framleiðsla á víni úr þrúgum | O77: 2
A78: 11050 Bjórgerð | O78: 8
A79: 11060 Maltgerð | O79: 1
A80: 11070 Framleiðsla á gosdrykkjum, ölkelduvatni og öðru átöppuðu vatni | B80: 0 | C80: 32010154711 | D80: 0 | E80: 2488289257 | F80: 0 | G80: 0 | H80: 34498443968 | I80: 3633968420 | J80: 38132412388 | K80: 2552083 | L80: 4118918943 | M80: 3755159975 | N80: 363758968 | O80: 16
A81: Matvælaframleiðsla | B81: 0 | C81: 159878482454 | D81: -8719707 | E81: 41878772078 | F81: 0 | G81: -218149 | H81: 201748316676 | I81: 213867835749 | J81: 415616152425 | K81: 38264698 | L81: 27643678381 | M81: 44897282922 | N81: -17253604541 | O81: 577
A82: 13100 Forvinnsla og spuni á textíltrefjum | O82: 3
A83: 13200 Textílvefnaður | O83: 8
A84: 13910 Framleiðsla á hekluðum og prjónuðum dúk | O84: 6
A85: 13920 Framleiðsla á tilbúinni spunavöru annarri en fatnaði | B85: 0 | C85: 1943461 | D85: 0 | E85: 475458354 | F85: 0 | G85: 0 | H85: 477401815 | I85: 9373551 | J85: 486775366 | K85: 510417 | L85: 114445954 | M85: 72959754 | N85: 41486200 | O85: 34
A86: 13940 Framleiðsla á köðlum, seglgarni og netum | B86: 0 | C86: 0 | D86: 0 | E86: 2084607095 | F86: 0 | G86: 0 | H86: 2084607095 | I86: 2684253890 | J86: 4768860985 | K86: 0 | L86: 500305709 | M86: 423981786 | N86: 76323923 | O86: 11
A87: 13990 Framleiðsla á annarri ótalinni textílvöru | O87: 7
A88: 14110 Framleiðsla á leðurfatnaði | O88: 2
A89: 14120 Vinnufatagerð | O89: 2
A90: 14130 Framleiðsla á öðrum yfirfatnaði | B90: 0 | C90: 0 | D90: 0 | E90: 154015018 | F90: 0 | G90: 0 | H90: 154015018 | I90: 10414883 | J90: 164429901 | K90: 9655608 | L90: 39280948 | M90: 12791302 | N90: 26489646 | O90: 25
A91: 14140 Framleiðsla á nærfatnaði | O91: 1
A92: 14190 Framleiðsla á öðrum fatnaði og fylgihlutum | B92: 0 | C92: 8520 | D92: 0 | E92: 302998566 | F92: 0 | G92: 0 | H92: 303007086 | I92: 19860572 | J92: 322867658 | K92: 0 | L92: 72720585 | M92: 26306865 | N92: 46413720 | O92: 20
A93: 14390 Framleiðsla á öðrum prjónuðum og hekluðum fatnaði | O93: 8
A94: 15110 Sútun leðurs; sútun og litun á loðskinni | O94: 3
A95: 15120 Framleiðsla á ferðatöskum, handtöskum og áþekkum vörum; reiðtygjum og skyldum vörum | O95: 8
A96: 15200 Framleiðsla á skófatnaði | O96: 3
A97: Textíl-, fata og leðuriðnaður | B97: 0 | C97: 240864128 | D97: 0 | E97: 6482400568 | F97: 0 | G97: -951587 | H97: 6722313109 | I97: 4668351399 | J97: 11390664508 | K97: 11177671 | L97: 1584710979 | M97: 1366529748 | N97: 218181231 | O97: 141
A98: 16100 Sögun, heflun og fúavörn á viði | O98: 6
A99: 16210 Framleiðsla á viðarspæni og plötum að grunni til úr viði | O99: 1
A100: 16230 Framleiðsla á öðrum trésmíðavörum til bygginga | B100: 0 | C100: 6441112 | D100: 0 | E100: 3417223586 | F100: 0 | G100: -3275532 | H100: 3420389166 | I100: -2219791 | J100: 3418169375 | K100: 2041667 | L100: 820497025 | M100: 403386119 | N100: 417110906 | O100: 59
A101: 16240 Framleiðsla á umbúðum úr viði | O101: 7
A102: 16290 Framleiðsla á annarri viðarvöru; framleiðsla á vörum úr korki, hálmi og fléttiefnum | B102: 0 | C102: 634441 | D102: 0 | E102: 444532003 | F102: -441239 | G102: -124382 | H102: 444600823 | I102: 14234405 | J102: 458835228 | K102: 2791667 | L102: 107287648 | M102: 47507261 | N102: 59780387 | O102: 29
A103: 17210 Framleiðsla á bylgjupappír og -pappa og umbúðum úr pappír og pappa | O103: 2
A104: 17220 Framleiðsla á heimilis- og hreinlætisvörum úr pappír og pappa | O104: 2
A105: 17230 Framleiðsla á skrifpappír og skrifstofuvörum úr pappír og pappa | O105: 2
A106: 17290 Framleiðsla á annarri pappírs- og pappavöru | O106: 1
A107: 18110 Prentun dagblaða | O107: 2
A108: 18120 Önnur prentun | B108: 0 | C108: 125855999 | D108: 0 | E108: 10900417919 | F108: 0 | G108: -2119629 | H108: 11024154289 | I108: 516602852 | J108: 11540757141 | K108: 9448333 | L108: 2631671758 | M108: 1384261455 | N108: 1247410303 | O108: 92
A109: 18130 Undirbúningur fyrir prentun | B109: 0 | C109: 1881545 | D109: 0 | E109: 1684309608 | F109: 0 | G109: 0 | H109: 1686191153 | I109: 5763252 | J109: 1691954405 | K109: 0 | L109: 404440231 | M109: 157984561 | N109: 246455670 | O109: 31
A110: 18140 Bókband og tengd þjónusta | B110: 0 | C110: 25172 | D110: 0 | E110: 85037976 | F110: 0 | G110: 0 | H110: 85063148 | I110: 0 | J110: 85063148 | K110: 0 | L110: 20411881 | M110: 7042943 | N110: 13368938 | O110: 10
A111: 18200 Fjölföldun upptekins efnis | O111: 4
A112: Trjá- og pappírsiðnaður, prentun | B112: 0 | C112: 305265306 | D112: 0 | E112: 19033494573 | F112: -441239 | G112: -5519543 | H112: 19332799097 | I112: 630564751 | J112: 19963363848 | K112: 14281667 | L112: 4603527999 | M112: 2382999318 | N112: 2220528681 | O112: 248
A113: 19200 Framleiðsla á hreinsuðum olíuvörum | O113: 5
A114: 20110 Framleiðsla á iðnaðargasi | O114: 3
A115: 20140 Framleiðsla á öðrum lífrænum grunnefnum til efnaiðnaðar | O115: 6
A116: 20150 Framleiðsla á tilbúnum áburði og köfnunarefnissamböndum | O116: 3
A117: 20160 Framleiðsla á plasthráefnum | O117: 2
A118: 20300 Framleiðsla á málningu, lökkum og svipuðum þekjuefnum, prentbleki og fylli- og þéttiefnum | O118: 2
A119: 20410 Framleiðsla á sápu, hreinsi- og þvottaefnum, hreingerningar- og fægiefnum | O119: 9
A120: 20420 Framleiðsla á ilmvatni og snyrtivörum | B120: 0 | C120: 19394523 | D120: 0 | E120: 1217361054 | F120: 0 | G120: -30601 | H120: 1236724976 | I120: 683811648 | J120: 1920536624 | K120: 0 | L120: 294292223 | M120: 336437787 | N120: -42145564 | O120: 19
A121: 20590 Framleiðsla á annarri ótalinni efnavöru | O121: 7
A122: 21200 Lyfjaframleiðsla | B122: 0 | C122: 50000789 | D122: 0 | E122: 358567141 | F122: 0 | G122: -100000 | H122: 408467930 | I122: 501966843 | J122: 910434773 | K122: 0 | L122: 91530705 | M122: 1422193912 | N122: -1330663207 | O122: 10
A123: Framleiðsla á efnum og efnavörum, lyfjaframleiðsla | B123: 0 | C123: 110212914 | D123: 0 | E123: 7787529334 | F123: 0 | G123: -130601 | H123: 7897611647 | I123: 1970385950 | J123: 9867997597 | K123: 4985850 | L123: 1882293742 | M123: 2798058839 | N123: -915765097 | O123: 66
A124: 22110 Framleiðsla á gúmmíhjólbörðum og hjólbarðaslöngum, sólun notaðra gúmmíhjólbarða | O124: 3
A125: 22190 Framleiðsla á öðrum gúmmívörum | O125: 3
A126: 22210 Framleiðsla á plötum, þynnum, slöngum og prófílum úr plasti | O126: 1
A127: 22221 Framleiðsla á plastvörum til nota í sjávarútvegi | O127: 7
A128: 22229 Framleiðsla á öðru umbúðaplasti | O128: 7
A129: 22230 Framleiðsla á byggingarvörum úr plasti | O129: 9
A130: 22290 Framleiðsla á öðrum plastvörum | B130: 0 | C130: 0 | D130: 0 | E130: 2511413583 | F130: 0 | G130: -311285 | H130: 2511102298 | I130: 11351273 | J130: 2522453571 | K130: 0 | L130: 602663496 | M130: 364821045 | N130: 237842451 | O130: 20
A131: 23120 Skurður og vinnsla á flotgleri | O131: 7
A132: 23130 Framleiðsla á glerílátum | O132: 1
A133: 23190 Framleiðsla og vinnsla á öðru gleri, þ.m.t. glervara til tæknilegra nota | O133: 4
A134: 23200 Framleiðsla á eldföstum vörum | O134: 1
A135: 23310 Framleiðsla á flísum og hellum úr leir | O135: 1
A136: 23410 Framleiðsla á heimilisvörum og skrautmunum úr leir og postulíni | B136: 0 | C136: 0 | D136: 0 | E136: 86910110 | F136: 0 | G136: 0 | H136: 86910110 | I136: 1435720 | J136: 88345830 | K136: 0 | L136: 20858407 | M136: 9648501 | N136: 11209906 | O136: 11
A137: 23490 Framleiðsla á öðrum leirvörum | O137: 6
A138: 23510 Sementsframleiðsla | O138: 1
A139: 23610 Framleiðsla á byggingarefni úr steinsteypu | O139: 5
A140: 23630 Framleiðsla á tilbúinni steinsteypu | B140: 0 | C140: 6631400 | D140: 0 | E140: 13323481382 | F140: 0 | G140: -560350 | H140: 13329552432 | I140: 361378625 | J140: 13690931057 | K140: 0 | L140: 3198222101 | M140: 1992779753 | N140: 1205442348 | O140: 16
A141: 23690 Framleiðsla á öðrum vörum úr steinsteypu, sementi og gifsi | O141: 3
A142: 23700 Steinsmíði | B142: 0 | C142: 0 | D142: 0 | E142: 1013908386 | F142: 0 | G142: 0 | H142: 1013908386 | I142: 808701 | J142: 1014717087 | K142: 0 | L142: 243338009 | M142: 114995193 | N142: 128342816 | O142: 13
A143: 23990 Framleiðsla á öðrum ótöldum vörum úr málmlausum steinefnum | O143: 7
A144: Gúmmí- og plastvöruframleiðsla, gler-, leir- og steinefnaiðnaður | B144: 0 | C144: 72475495 | D144: 0 | E144: 34295161827 | F144: 0 | G144: -871635 | H144: 34366765687 | I144: 2458774174 | J144: 36825539861 | K144: 17296308 | L144: 8242745943 | M144: 5318066744 | N144: 2924679199 | O144: 126
A145: 24100 Framleiðsla á járni, stáli og járnblendi | O145: 8
A146: 24200 Framleiðsla á rörum, pípum, holum prófílum og tengihlutum úr stáli | O146: 1
A147: 24410 Framleiðsla góðmálma | O147: 1
A148: 24420 Álframleiðsla | O148: 6
A149: 24430 Blý-, sink- og tinframleiðsla | O149: 1
A150: 24510 Járnsteypa | O150: 4
A151: 24530 Steypa léttmálma | O151: 1
A152: 25110 Framleiðsla á burðarvirkjum og byggingareiningum úr málmi | O152: 8
A153: 25120 Framleiðsla á hurðum og gluggum úr málmi | O153: 8
A154: 25290 Framleiðsla á öðrum geymum, kerum og ílátum úr málmi | O154: 2
A155: 25400 Vopna- og skotfæraframleiðsla | O155: 2
A156: 25500 Eldsmíði og önnur málmsmíði; sindurmótun | B156: 0 | C156: 6593470 | D156: 0 | E156: 675708413 | F156: 0 | G156: 0 | H156: 682301883 | I156: 20270894 | J156: 702572777 | K156: 4260133 | L156: 163917510 | M156: 58371526 | N156: 105545984 | O156: 32
A157: 25610 Meðhöndlun og húðun málma | B157: 0 | C157: 0 | D157: 0 | E157: 1853217970 | F157: 0 | G157: 0 | H157: 1853217970 | I157: 144147736 | J157: 1997365706 | K157: 0 | L157: 444772310 | M157: 278360521 | N157: 166411789 | O157: 15
A158: 25620 Vélvinnsla málma | B158: 0 | C158: 26356462 | D158: 0 | E158: 24122528240 | F158: -2320057 | G158: -12708093 | H158: 24133856552 | I158: 6476735154 | J158: 30610591706 | K158: 82586408 | L158: 5808318554 | M158: 3227041193 | N158: 2581277361 | O158: 344
A159: 25720 Framleiðsla á lásum og lömum | O159: 5
A160: 25730 Framleiðsla á verkfærum, þó ekki vélknúnum | O160: 3
A161: 25930 Framleiðsla á keðjum, fjöðrum og vörum úr vír | O161: 1
A162: 25990 Framleiðsla á öðrum ótöldum málmvörum | B162: 0 | C162: 0 | D162: 0 | E162: 361602986 | F162: 0 | G162: -1898827 | H162: 359704159 | I162: 11305288 | J162: 371009447 | K162: 0 | L162: 86300515 | M162: 42994054 | N162: 43306461 | O162: 19
A163: Framleiðsla málma og málmvara að undanskildum vélum og búnaði | B163: 0 | C163: 56324561 | D163: 0 | E163: 30864162728 | F163: -2320057 | G163: -16092257 | H163: 30902074975 | I163: 212384488937 | J163: 243286563912 | K163: 87356958 | L163: 7429888105 | M163: 43161263930 | N163: -35731375825 | O163: 461
A164: 26110 Framleiðsla á rafeindaíhlutum | O164: 2
A165: 26200 Framleiðsla á tölvum og jaðarbúnaði | O165: 3
A166: 26300 Framleiðsla fjarskiptabúnaðar | O166: 1
A167: 26400 Framleiðsla á sjónvarps-, útvarps- og hljómtækjum og skyldum búnaði | O167: 2
A168: 26510 Framleiðsla á tækjum og búnaði til mælinga, prófana og leiðsögu | B168: 0 | C168: 5123960 | D168: 0 | E168: 165519471 | F168: 0 | G168: 0 | H168: 170643431 | I168: 1131581321 | J168: 1302224752 | K168: 0 | L168: 40288306 | M168: 129110500 | N168: -88822194 | O168: 10
A169: 26520 Framleiðsla á úrum og klukkum | O169: 1
A170: 26600 Framleiðsla á búnaði til geislunar, raftækjabúnaði til lækninga og meðferðar | O170: 1
A171: 27110 Framleiðsla á rafhreyflum, rafölum og spennubreytum | O171: 2
A172: 27120 Framleiðsla á dreifi- og stjórnbúnaði fyrir raforku | O172: 3
A173: 27200 Framleiðsla rafhlaðna og rafgeyma | O173: 2
A174: 27310 Framleiðsla á ljósleiðaraköplum | O174: 1
A175: 27400 Framleiðsla á rafljósabúnaði | O175: 9
A176: 27510 Framleiðsla rafknúinna heimilistækja | O176: 2
A177: 27900 Framleiðsla á öðrum rafbúnaði | O177: 9
A178: 28110 Framleiðsla hreyfla og hverfla, þó ekki í loftför, ökutæki eða vélhjól | B178: 0 | C178: 327045 | D178: 0 | E178: 595894015 | F178: 0 | G178: 0 | H178: 596221060 | I178: 141701929 | J178: 737922989 | K178: 0 | L178: 143050539 | M178: 86921208 | N178: 56129331 | O178: 14
A179: 28220 Framleiðsla á lyftitækjum og færslubúnaði | O179: 8
A180: 28250 Framleiðsla á kæli- og loftræstibúnaði, þó ekki til heimilisnota | B180: 0 | C180: 18013931 | D180: 0 | E180: 4273379757 | F180: 0 | G180: 0 | H180: 4291393688 | I180: 1452254460 | J180: 5743648148 | K180: 0 | L180: 1027592664 | M180: 635267892 | N180: 392324772 | O180: 24
A181: 28290 Framleiðsla á öðrum ótöldum vélum til almennra nota | B181: 0 | C181: 513000 | D181: 0 | E181: 139412724 | F181: 0 | G181: 0 | H181: 139925724 | I181: 0 | J181: 139925724 | K181: 5000000 | L181: 34715484 | M181: 17310656 | N181: 17404828 | O181: 13
A182: 28300 Framleiðsla á vélum til nota í landbúnaði og skógrækt | O182: 3
A183: 28490 Framleiðsla á öðrum ótöldum smíðavélum | O183: 1
A184: 28910 Framleiðsla á vélum til málmvinnslu | O184: 2
A185: 28920 Framleiðsla á vélum til mannvirkjagerðar, námugraftrar og vinnslu hráefna úr jörðu | O185: 4
A186: 28930 Framleiðsla á vélum fyrir matvæla-, drykkjarvöru- og tóbaksvinnslu | B186: 0 | C186: 15000549 | D186: 0 | E186: 6166210482 | F186: 0 | G186: 0 | H186: 6181211031 | I186: 20517117849 | J186: 26698328880 | K186: 0 | L186: 1481540573 | M186: 2517402180 | N186: -1035861607 | O186: 24
A187: 28940 Framleiðsla á vélum fyrir textíl-, fata- og leðurframleiðslu | O187: 2
A188: 28990 Framleiðsla á öðrum ótöldum sérhæfðum vélum | O188: 5
A189: Framleiðsla á tölvu-, rafeinda- og optískum vörum, rafbúnaði, vélum og tækjum | B189: 0 | C189: 52942095 | D189: 0 | E189: 15193690763 | F189: 0 | G189: 0 | H189: 15246632858 | I189: 24445928171 | J189: 39692561029 | K189: 13572917 | L189: 3655566914 | M189: 4044423785 | N189: -388856871 | O189: 148
A190: 29200 Smíði yfirbygginga fyrir vélknúin ökutæki og framleiðsla tengivagna | B190: 0 | C190: 58902575 | D190: 0 | E190: 1432783513 | F190: 0 | G190: -1422015 | H190: 1490264073 | I190: 13364127 | J190: 1503628200 | K190: 0 | L190: 349984622 | M190: 203395239 | N190: 146589383 | O190: 18
A191: 29310 Framleiðsla á raf- og rafeindabúnaði í vélknúin ökutæki og hreyfla þeirra | O191: 2
A192: 29320 Framleiðsla á öðrum íhlutum og aukabúnaði í vélknúin ökutæki og hreyfla þeirra | O192: 6
A193: 30110 Smíði skipa og annarra fljótandi mannvirkja | B193: 0 | C193: 0 | D193: 0 | E193: 225530834 | F193: 0 | G193: 0 | H193: 225530834 | I193: 1051295599 | J193: 1276826433 | K193: 1020833 | L193: 54372399 | M193: 206081785 | N193: -151709386 | O193: 14
A194: 30120 Smíði skemmti- og sportbáta | O194: 3
A195: 30300 Framleiðsla á loft- og geimförum og tengdum vélbúnaði | O195: 1
A196: 30920 Framleiðsla á reiðhjólum, barnavögnum og farartækjum fyrir hreyfihamlaða | O196: 4
A197: Framleiðsla á vélknúnum ökutækjum | B197: 0 | C197: 64338749 | D197: 0 | E197: 2383174362 | F197: 0 | G197: -1422015 | H197: 2446091096 | I197: 1125469558 | J197: 3571560654 | K197: 1020833 | L197: 578921441 | M197: 517613090 | N197: 61308351 | O197: 48
A198: 31010 Framleiðsla á húsgögnum og innréttingum fyrir atvinnuhúsnæði | O198: 6
A199: 31020 Framleiðsla á húsgögnum og innréttingum í eldhús | B199: 0 | C199: 46767 | D199: 0 | E199: 1947438001 | F199: 0 | G199: -776594 | H199: 1946708174 | I199: 0 | J199: 1946708174 | K199: 5000000 | L199: 468392382 | M199: 237036670 | N199: 231355712 | O199: 20
A200: 31090 Framleiðsla á öðrum húsgögnum og innréttingum | B200: 0 | C200: 811616 | D200: 0 | E200: 2718794450 | F200: 0 | G200: -105596 | H200: 2719500470 | I200: 14736461 | J200: 2734236931 | K200: 510417 | L200: 652694245 | M200: 328226871 | N200: 324467374 | O200: 47
... 374 more rows

Sheet 2017
A1: Atvinnugein 2008 | B1: Velta 14% | C1: Velta 11% | D1: Velta 7% | E1: Velta 24% | F1: Velta 24,5% | G1: Velta 25,5% | H1: Skattsk. velta | I1: Undanþegin velta | J1: Heildar velta | K1: Áætlun | L1: Útskattur | M1: Innskattur | N1: Álagning | O1: Fjöldi
A2: 01110 Kornrækt (að undanskildum hrísgrjónum), ræktun belgjurta og olíufræja | B2: 0 | C2: 30033854 | D2: 0 | E2: 32724585 | F2: 0 | G2: 0 | H2: 62758439 | I2: 4723372 | J2: 67481811 | K2: 0 | L2: 11157619 | M2: 23985548 | N2: -12827929 | O2: 14
A3: 01131 Ræktun á aldingrænmeti og papriku | B3: 0 | C3: 1457269571 | D3: 0 | E3: 154347033 | F3: 0 | G3: 0 | H3: 1611616604 | I3: 64370536 | J3: 1675987140 | K3: 0 | L3: 197342834 | M3: 224032488 | N3: -26689654 | O3: 25
A4: 01132 Ræktun á kartöflum | B4: 0 | C4: 713459716 | D4: 0 | E4: 83550190 | F4: 0 | G4: 0 | H4: 797009906 | I4: 13543740 | J4: 810553646 | K4: 0 | L4: 98532557 | M4: 99251468 | N4: -718911 | O4: 37
A5: 01139 Ræktun á öðru ótöldu grænmeti, rótum og hnýði | B5: 0 | C5: 1402538120 | D5: 0 | E5: 185477942 | F5: 0 | G5: 0 | H5: 1588016062 | I5: 35708147 | J5: 1623724209 | K5: 1619608 | L5: 198973522 | M5: 224669268 | N5: -25695746 | O5: 42
A6: 01140 Ræktun sykurreyrs | O6: 1
A7: 01191 Blómarækt | B7: 0 | C7: 93100626 | D7: 0 | E7: 956374141 | F7: 0 | G7: 0 | H7: 1049474767 | I7: 1102668 | J7: 1050577435 | K7: 5310709 | L7: 240355046 | M7: 139704770 | N7: 100650276 | O7: 22
A8: 01250 Ræktun annarra ávaxta og hnetna af trjám og runnum | O8: 2
A9: 01270 Ræktun jurta til drykkjargerðar | O9: 1
A10: 01280 Ræktun krydd- , ilm- og lyfjajurta | O10: 3
A11: 01290 Ræktun annarra fjölærra nytjajurta | O11: 6
A12: 01300 Plöntufjölgun | O12: 9
A13: 01410 Ræktun mjólkurkúa | B13: 0 | C13: 537752537 | D13: 0 | E13: 13423534633 | F13: 0 | G13: 0 | H13: 13961287170 | I13: 4452124925 | J13: 18413412095 | K13: 13615764 | L13: 3284051047 | M13: 3186206164 | N13: 97844883 | O13: 608
A14: 01420 Önnur nautgriparækt | B14: 0 | C14: 194507508 | D14: 0 | E14: 1167164172 | F14: 0 | G14: 0 | H14: 1361671680 | I14: 272069733 | J14: 1633741413 | K14: 1791812 | L14: 301760217 | M14: 311834249 | N14: -10074032 | O14: 92
A15: 01430 Hrossarækt og ræktun annarra dýra af hrossaætt | B15: 0 | C15: 378702541 | D15: 0 | E15: 1214382040 | F15: 0 | G15: 0 | H15: 1593084581 | I15: 674670464 | J15: 2267755045 | K15: 8481250 | L15: 335144301 | M15: 448989147 | N15: -113844846 | O15: 387
A16: 01450 Sauðfjár- og geitarækt | B16: 0 | C16: 694544239 | D16: 0 | E16: 5660187803 | F16: 0 | G16: -55000 | H16: 6354677042 | I16: 3889821175 | J16: 10244498217 | K16: 14365838 | L16: 1438231810 | M16: 1622606664 | N16: -184374854 | O16: 1388
A17: 01460 Svínarækt | B17: 0 | C17: 2687995685 | D17: 0 | E17: 882192929 | F17: 0 | G17: 0 | H17: 3570188614 | I17: 44066298 | J17: 3614254912 | K17: 0 | L17: 507405822 | M17: 516403583 | N17: -8997761 | O17: 16
A18: 01471 Alifuglarækt | B18: 0 | C18: 4743556642 | D18: -68600 | E18: 545714648 | F18: 0 | G18: -2022956 | H18: 5287179734 | I18: 3122252 | J18: 5290301986 | K18: 10167985 | L18: 653399379 | M18: 814823765 | N18: -161424386 | O18: 22
A19: 01472 Eggjaframleiðsla | O19: 8
A20: 01491 Loðdýrabú | B20: 0 | C20: 1023521 | D20: 0 | E20: 151840739 | F20: 0 | G20: 3 | H20: 152864263 | I20: 491915046 | J20: 644779309 | K20: 765625 | L20: 36738113 | M20: 133628076 | N20: -96889963 | O20: 39
A21: 01492 Æðarrækt og æðardúnstekja | B21: 0 | C21: 3478030 | D21: 0 | E21: 140655882 | F21: 0 | G21: 0 | H21: 144133912 | I21: 60504272 | J21: 204638184 | K21: 1020833 | L21: 34384993 | M21: 22600546 | N21: 11784447 | O21: 83
A22: 01499 Ræktun annarra ótalinna dýra | B22: 0 | C22: 2691061 | D22: 0 | E22: 48292161 | F22: 0 | G22: 0 | H22: 50983222 | I22: 9892158 | J22: 60875380 | K22: 0 | L22: 11886111 | M22: 9320491 | N22: 2565620 | O22: 12
A23: 01500 Blandaður búskapur | B23: 0 | C23: 878462553 | D23: -899669 | E23: 3660637714 | F23: 0 | G23: 0 | H23: 4538200598 | I23: 1213737562 | J23: 5751938160 | K23: 1546614 | L23: 975488444 | M23: 1029982245 | N23: -54493801 | O23: 262
A24: 01610 Þjónustustarfsemi við ræktun nytjajurta | B24: 0 | C24: 8891545 | D24: 0 | E24: 242339151 | F24: 0 | G24: 0 | H24: 251230696 | I24: 18332557 | J24: 269563253 | K24: 510417 | L24: 59261974 | M24: 31503704 | N24: 27758270 | O24: 33
A25: 01620 Þjónustustarfsemi við búfjárrækt | B25: 0 | C25: 34143229 | D25: 0 | E25: 1055406632 | F25: 0 | G25: 0 | H25: 1089549861 | I25: 257874574 | J25: 1347424435 | K25: 10010417 | L25: 259455524 | M25: 221950982 | N25: 37504542 | O25: 158
A26: 01630 Starfsemi að lokinni uppskeru | O26: 3
A27: 01700 Veiðar og tengd þjónustustarfsemi | B27: 0 | C27: 7439705 | D27: 0 | E27: 61204312 | F27: 0 | G27: 0 | H27: 68644017 | I27: 26000 | J27: 68670017 | K27: 0 | L27: 15507407 | M27: 8013885 | N27: 7493522 | O27: 21
A28: 02101 Rekstur gróðrastöðva fyrir skógartré | O28: 7
A29: 02109 Skógrækt og önnur ótalin starfsemi tengd henni | B29: 0 | C29: 3953992 | D29: 0 | E29: 40663725 | F29: 0 | G29: 0 | H29: 44617717 | I29: 29637861 | J29: 74255578 | K29: 2041667 | L29: 10684254 | M29: 62258973 | N29: -51574719 | O29: 431
A30: 02200 Skógarhögg | B30: 0 | C30: 0 | D30: 0 | E30: 15762100 | F30: 0 | G30: 0 | H30: 15762100 | I30: 0 | J30: 15762100 | K30: 0 | L30: 3782903 | M30: 1553453 | N30: 2229450 | O30: 10
A31: 02400 Þjónustustarfsemi við skógrækt | O31: 9
A32: Landbúnaður og skógrækt | B32: 0 | C32: 16475724632 | D32: -1147516 | E32: 30123068275 | F32: 0 | G32: -2077953 | H32: 46595567438 | I32: 11573008468 | J32: 58168575906 | K32: 72167289 | L32: 9056136621 | M32: 9613069957 | N32: -556933336 | O32: 3751
A33: 03111 Útgerð smábáta | B33: 0 | C33: 12916486831 | D33: 0 | E33: 1984802824 | F33: 0 | G33: 0 | H33: 14901289655 | I33: 15564974354 | J33: 30466264009 | K33: 58592628 | L33: 1909196787 | M33: 1888388530 | N33: 20808257 | O33: 1026
A34: 03112 Útgerð fiskiskipa | B34: 0 | C34: 29176843138 | D34: 0 | E34: 3923974954 | F34: 0 | G34: 0 | H34: 33100818092 | I34: 35716363090 | J34: 68817181182 | K34: 16085570 | L34: 4154408841 | M34: 4042637013 | N34: 111771828 | O34: 189
A35: 03120 Ferskvatnsveiði | O35: 2
A36: 03210 Eldi og ræktun í sjó | B36: 0 | C36: 2870589405 | D36: -47063 | E36: 1074908979 | F36: 0 | G36: 0 | H36: 3945451321 | I36: 8467227754 | J36: 12412679075 | K36: 6531250 | L36: 575307258 | M36: 2682040620 | N36: -2106733362 | O36: 33
A37: 03220 Eldi og ræktun í ferskvatni | B37: 0 | C37: 3271463877 | D37: 0 | E37: 515616031 | F37: 0 | G37: 0 | H37: 3787079908 | I37: 3061741939 | J37: 6848821847 | K37: 0 | L37: 483608902 | M37: 1090019302 | N37: -606410400 | O37: 26
A38: Fiskveiðar | B38: 0 | C38: 48235650251 | D38: -47063 | E38: 7499302788 | F38: 0 | G38: 0 | H38: 55734905976 | I38: 62810307137 | J38: 118545213113 | K38: 81209448 | L38: 7122551157 | M38: 9703124540 | N38: -2580573383 | O38: 1276
A39: 06200 Vinnsla á jarðgasi | O39: 1
A40: 08110 Grjótnám til skrautsteinagerðar og til bygginga, kalksteins-, gifs-, krítar- og flögubergsnám | O40: 1
A41: 08120 Malar-, sand- og leirnám | B41: 0 | C41: 895238 | D41: 0 | E41: 4547154221 | F41: 0 | G41: 0 | H41: 4548049459 | I41: 323274852 | J41: 4871324311 | K41: 0 | L41: 1091416239 | M41: 660260943 | N41: 431155296 | O41: 34
A42: 08910 Nám og vinnsla á steinefnum til efnaiðnaðar og áburðargerðar | O42: 1
A43: 08930 Saltnám | O43: 1
A44: 08990 Nám og vinnsla annarra ótalinna hráefna úr jörðu | O44: 2
A45: 09100 Þjónustustarfsemi við námuvinnslu á jarðolíu og jarðgasi | O45: 2
A46: 09900 Þjónustustarfsemi fyrir vinnslu annarra hráefna úr jörðu | O46: 3
A47: Námagröftur og vinnsla hráefna úr jörðu | B47: 0 | C47: 145252391 | D47: 0 | E47: 4644835633 | F47: 0 | G47: 0 | H47: 4790088024 | I47: 3462965698 | J47: 8253053722 | K47: 0 | L47: 1130739073 | M47: 2343382781 | N47: -1212643708 | O47: 45
A48: 10110 Slátrun og vinnsla á kjöti, þó ekki alifuglakjöti | B48: 0 | C48: 9468828963 | D48: 0 | E48: 416264987 | F48: 0 | G48: 0 | H48: 9885093950 | I48: 1336125302 | J48: 11221219252 | K48: 0 | L48: 1141474761 | M48: 1614065905 | N48: -472591144 | O48: 13
A49: 10120 Slátrun og vinnsla á alifuglakjöti | O49: 3
A50: 10130 Framleiðsla á kjötafurðum | B50: 0 | C50: 19146207223 | D50: -6386064 | E50: 1975589097 | F50: 0 | G50: 0 | H50: 21115410256 | I50: 669687059 | J50: 21785097315 | K50: 0 | L50: 2579777735 | M50: 2630986938 | N50: -51209203 | O50: 19
A51: 10201 Frysting fiskafurða, krabbadýra og lindýra | B51: 0 | C51: 27226156081 | D51: -177720 | E51: 6050280003 | F51: 0 | G51: 0 | H51: 33276258364 | I51: 134122137711 | J51: 167398396075 | K51: 28768073 | L51: 4452618347 | M51: 14424487618 | N51: -9971869271 | O51: 128
A52: 10202 Söltun, þurrkun og hersla fiskafurða, krabbadýra og lindýra | B52: 0 | C52: 3190535874 | D52: 0 | E52: 768520759 | F52: 0 | G52: -654963 | H52: 3958401670 | I52: 15220149968 | J52: 19178551638 | K52: 7842580 | L52: 536510681 | M52: 1772410648 | N52: -1235899967 | O52: 72
A53: 10203 Mjöl- og lýsisvinnsla | O53: 4
A54: 10204 Framleiðsla lagmetis úr fiskafurðum, krabbadýrum og lindýrum | O54: 9
A55: 10209 Önnur ótalin vinnsla fiskafurða, krabbadýra og lindýra | B55: 0 | C55: 1088160367 | D55: 0 | E55: 243056418 | F55: 0 | G55: 0 | H55: 1331216785 | I55: 24079091959 | J55: 25410308744 | K55: 25927083 | L55: 184253688 | M55: 880659965 | N55: -696406277 | O55: 44
A56: 10310 Vinnsla á kartöflum | O56: 2
A57: 10390 Önnur ótalin vinnsla ávaxta og grænmetis | O57: 3
A58: 10410 Framleiðsla á olíu og feiti | O58: 4
A59: 10420 Framleiðsla á smjörlíki og svipaðri feiti til manneldis | O59: 1
A60: 10510 Mjólkurbú og ostagerð | B60: 0 | C60: 26114186500 | D60: 0 | E60: 14508469994 | F60: 0 | G60: 0 | H60: 40622656494 | I60: 3009561934 | J60: 43632218428 | K60: 0 | L60: 6354593401 | M60: 8129957451 | N60: -1775364050 | O60: 17
A61: 10520 Ísgerð | O61: 4
A62: 10610 Framleiðsla á kornvöru | O62: 6
A63: 10710 Framleiðsla á brauði, nýju sætabrauði og kökum | B63: 0 | C63: 10209980524 | D63: 0 | E63: 82152457 | F63: 0 | G63: 0 | H63: 10292132981 | I63: 7483768 | J63: 10299616749 | K63: 54978945 | L63: 1148899306 | M63: 767197844 | N63: 381701462 | O63: 69
A64: 10720 Framleiðsla á tvíbökum og kexi, framleiðsla á geymsluþolnu sætabrauði og kökum | O64: 1
A65: 10730 Framleiðsla á pastavörum og svipuðum vörum | O65: 1
A66: 10820 Framleiðsla á súkkulaði og sælgæti; kakói | B66: 0 | C66: 5591949252 | D66: 0 | E66: 227510183 | F66: 0 | G66: 0 | H66: 5819459435 | I66: 389720783 | J66: 6209180218 | K66: 0 | L66: 669718115 | M66: 659504551 | N66: 10213564 | O66: 13
A67: 10830 Te- og kaffivinnsla | O67: 4
A68: 10840 Framleiðsla á bragðefnum og kryddi | O68: 5
A69: 10850 Framleiðsla á tilbúnum máltíðum og réttum | B69: 0 | C69: 3168802087 | D69: 0 | E69: 10238074 | F69: 0 | G69: 0 | H69: 3179040161 | I69: 30970420 | J69: 3210010581 | K69: 510417 | L69: 351148606 | M69: 298275979 | N69: 52872627 | O69: 10
A70: 10860 Framleiðsla á jafnblönduðum matvælum og sérfæði | O70: 1
A71: 10890 Önnur ótalin framleiðsla á matvælum | B71: 0 | C71: 7349676796 | D71: 0 | E71: 297589918 | F71: 0 | G71: 0 | H71: 7647266714 | I71: 487058120 | J71: 8134324834 | K71: 5554891 | L71: 880497494 | M71: 905934130 | N71: -25436636 | O71: 64
A72: 10910 Framleiðsla húsdýrafóðurs | B72: 0 | C72: 760031810 | D72: 0 | E72: 12136059942 | F72: 0 | G72: 0 | H72: 12896091752 | I72: 1069003217 | J72: 13965094969 | K72: 0 | L72: 2996257885 | M72: 2606138165 | N72: 390119720 | O72: 13
A73: 10920 Framleiðsla gæludýrafóðurs | O73: 8
A74: 11010 Eiming, hreinsun og blöndun áfengra drykkja | B74: 0 | C74: 290514554 | D74: 0 | E74: 58765737 | F74: 0 | G74: 0 | H74: 349280291 | I74: 106492125 | J74: 455772416 | K74: 0 | L74: 46060384 | M74: 68375095 | N74: -22314711 | O74: 16
A75: 11020 Framleiðsla á víni úr þrúgum | O75: 1
A76: 11030 Framleiðsla annarra ávaxtavína | O76: 1
A77: 11050 Bjórgerð | B77: 0 | C77: 559782618 | D77: 0 | E77: 15882698 | F77: 0 | G77: 0 | H77: 575665316 | I77: 4892075 | J77: 580557391 | K77: 0 | L77: 65387874 | M77: 57256698 | N77: 8131176 | O77: 14
A78: 11070 Framleiðsla á gosdrykkjum, ölkelduvatni og öðru átöppuðu vatni | B78: 0 | C78: 31640162874 | D78: 0 | E78: 2144152958 | F78: 0 | G78: 0 | H78: 33784315832 | I78: 3540080734 | J78: 37324396566 | K78: 5000000 | L78: 3996053987 | M78: 3586871992 | N78: 409181995 | O78: 14
A79: Matvælaframleiðsla | B79: 0 | C79: 158429101127 | D79: -9005041 | E79: 40244906073 | F79: 0 | G79: -725598 | H79: 198664276561 | I79: 201763908595 | J79: 400428185156 | K79: 143497493 | L79: 27109786473 | M79: 42130209267 | N79: -15020422794 | O79: 564
A80: 13100 Forvinnsla og spuni á textíltrefjum | O80: 4
A81: 13200 Textílvefnaður | O81: 8
A82: 13910 Framleiðsla á hekluðum og prjónuðum dúk | O82: 4
A83: 13920 Framleiðsla á tilbúinni spunavöru annarri en fatnaði | B83: 0 | C83: 7259406 | D83: 0 | E83: 449859501 | F83: 0 | G83: 0 | H83: 457118907 | I83: 7757839 | J83: 464876746 | K83: 4083333 | L83: 109744750 | M83: 64417419 | N83: 45327331 | O83: 30
A84: 13940 Framleiðsla á köðlum, seglgarni og netum | B84: 0 | C84: 0 | D84: 0 | E84: 2047564308 | F84: 0 | G84: -498091 | H84: 2047066217 | I84: 2628061326 | J84: 4675127543 | K84: 0 | L84: 491288418 | M84: 430899291 | N84: 60389127 | O84: 11
A85: 13990 Framleiðsla á annarri ótalinni textílvöru | O85: 7
A86: 14110 Framleiðsla á leðurfatnaði | O86: 2
A87: 14120 Vinnufatagerð | O87: 1
A88: 14130 Framleiðsla á öðrum yfirfatnaði | B88: 0 | C88: 0 | D88: 0 | E88: 90779133 | F88: 0 | G88: 0 | H88: 90779133 | I88: 14880826 | J88: 105659959 | K88: 0 | L88: 21785935 | M88: 9533589 | N88: 12252346 | O88: 18
A89: 14190 Framleiðsla á öðrum fatnaði og fylgihlutum | B89: 0 | C89: 0 | D89: 0 | E89: 233123907 | F89: 0 | G89: 0 | H89: 233123907 | I89: 48716987 | J89: 281840894 | K89: 0 | L89: 55949735 | M89: 19421970 | N89: 36527765 | O89: 17
A90: 14390 Framleiðsla á öðrum prjónuðum og hekluðum fatnaði | O90: 8
A91: 15110 Sútun leðurs; sútun og litun á loðskinni | O91: 2
A92: 15120 Framleiðsla á ferðatöskum, handtöskum og áþekkum vörum; reiðtygjum og skyldum vörum | O92: 8
A93: 15200 Framleiðsla á skófatnaði | O93: 3
A94: Textíl-, fata og leðuriðnaður | B94: 0 | C94: 286475924 | D94: 0 | E94: 6331165799 | F94: 0 | G94: -498091 | H94: 6617143632 | I94: 4210022981 | J94: 10827166613 | K94: 4593750 | L94: 1551966384 | M94: 1207633955 | N94: 344332429 | O94: 123
A95: 16100 Sögun, heflun og fúavörn á viði | O95: 5
A96: 16210 Framleiðsla á viðarspæni og plötum að grunni til úr viði | O96: 1
A97: 16230 Framleiðsla á öðrum trésmíðavörum til bygginga | B97: 0 | C97: 6149426 | D97: 0 | E97: 3597700759 | F97: 0 | G97: -3151897 | H97: 3600698288 | I97: 20096184 | J97: 3620794472 | K97: 1531250 | L97: 863688407 | M97: 442701480 | N97: 420986927 | O97: 53
A98: 16240 Framleiðsla á umbúðum úr viði | O98: 7
A99: 16290 Framleiðsla á annarri viðarvöru; framleiðsla á vörum úr korki, hálmi og fléttiefnum | B99: 0 | C99: 804647 | D99: 0 | E99: 462201109 | F99: 0 | G99: 0 | H99: 463005756 | I99: 1226812 | J99: 464232568 | K99: 1641467 | L99: 111410745 | M99: 43958867 | N99: 67451878 | O99: 23
A100: 17210 Framleiðsla á bylgjupappír og -pappa og umbúðum úr pappír og pappa | O100: 4
A101: 17220 Framleiðsla á heimilis- og hreinlætisvörum úr pappír og pappa | O101: 2
A102: 17230 Framleiðsla á skrifpappír og skrifstofuvörum úr pappír og pappa | O102: 1
A103: 17290 Framleiðsla á annarri pappírs- og pappavöru | O103: 1
A104: 18110 Prentun dagblaða | O104: 2
A105: 18120 Önnur prentun | B105: 0 | C105: 117926904 | D105: 0 | E105: 9938244569 | F105: 0 | G105: -1645886 | H105: 10054525587 | I105: 382253134 | J105: 10436778721 | K105: 8088658 | L105: 2399672367 | M105: 1217488931 | N105: 1182183436 | O105: 88
A106: 18130 Undirbúningur fyrir prentun | B106: 0 | C106: 4290227 | D106: 0 | E106: 1707386342 | F106: 0 | G106: 0 | H106: 1711676569 | I106: 11393263 | J106: 1723069832 | K106: 0 | L106: 410244904 | M106: 160724293 | N106: 249520611 | O106: 28
A107: 18140 Bókband og tengd þjónusta | O107: 8
A108: 18200 Fjölföldun upptekins efnis | O108: 3
A109: Trjá- og pappírsiðnaður, prentun | B109: 0 | C109: 242380168 | D109: 0 | E109: 18151287298 | F109: 0 | G109: -4797783 | H109: 18388869683 | I109: 479134343 | J109: 18868004026 | K109: 11261375 | L109: 4384446737 | M109: 2251311020 | N109: 2133135717 | O109: 226
A110: 19200 Framleiðsla á hreinsuðum olíuvörum | O110: 3
A111: 20110 Framleiðsla á iðnaðargasi | O111: 3
A112: 20140 Framleiðsla á öðrum lífrænum grunnefnum til efnaiðnaðar | O112: 7
A113: 20150 Framleiðsla á tilbúnum áburði og köfnunarefnissamböndum | O113: 2
A114: 20160 Framleiðsla á plasthráefnum | O114: 1
A115: 20300 Framleiðsla á málningu, lökkum og svipuðum þekjuefnum, prentbleki og fylli- og þéttiefnum | O115: 2
A116: 20410 Framleiðsla á sápu, hreinsi- og þvottaefnum, hreingerningar- og fægiefnum | O116: 8
A117: 20420 Framleiðsla á ilmvatni og snyrtivörum | B117: 0 | C117: 23156378 | D117: 0 | E117: 1310256053 | F117: 0 | G117: 0 | H117: 1333412431 | I117: 969333694 | J117: 2302746125 | K117: 510417 | L117: 317131191 | M117: 437434895 | N117: -120303704 | O117: 20
A118: 20590 Framleiðsla á annarri ótalinni efnavöru | O118: 7
A119: 21200 Lyfjaframleiðsla | B119: 0 | C119: 45890579 | D119: 0 | E119: 452000830 | F119: 0 | G119: 0 | H119: 497891409 | I119: 916851528 | J119: 1414742937 | K119: 0 | L119: 113528164 | M119: 828299372 | N119: -714771208 | O119: 10
A120: Framleiðsla á efnum og efnavörum, lyfjaframleiðsla | B120: 0 | C120: 107238026 | D120: 0 | E120: 8342387128 | F120: 0 | G120: 0 | H120: 8449625154 | I120: 2582612021 | J120: 11032237175 | K120: 6020834 | L120: 2015414146 | M120: 2520004120 | N120: -504589974 | O120: 63
A121: 22110 Framleiðsla á gúmmíhjólbörðum og hjólbarðaslöngum, sólun notaðra gúmmíhjólbarða | O121: 3
A122: 22190 Framleiðsla á öðrum gúmmívörum | O122: 2
A123: 22210 Framleiðsla á plötum, þynnum, slöngum og prófílum úr plasti | O123: 1
A124: 22221 Framleiðsla á plastvörum til nota í sjávarútvegi | O124: 6
A125: 22229 Framleiðsla á öðru umbúðaplasti | O125: 6
A126: 22230 Framleiðsla á byggingarvörum úr plasti | O126: 6
A127: 22290 Framleiðsla á öðrum plastvörum | B127: 0 | C127: 0 | D127: 0 | E127: 2548662263 | F127: 0 | G127: 0 | H127: 2548662263 | I127: 9902428 | J127: 2558564691 | K127: 0 | L127: 611678367 | M127: 372304210 | N127: 239374157 | O127: 18
A128: 23120 Skurður og vinnsla á flotgleri | O128: 6
A129: 23130 Framleiðsla á glerílátum | O129: 1
A130: 23190 Framleiðsla og vinnsla á öðru gleri, þ.m.t. glervara til tæknilegra nota | O130: 4
A131: 23200 Framleiðsla á eldföstum vörum | O131: 1
A132: 23410 Framleiðsla á heimilisvörum og skrautmunum úr leir og postulíni | B132: 0 | C132: 0 | D132: 0 | E132: 90995636 | F132: 0 | G132: 0 | H132: 90995636 | I132: 522680 | J132: 91518316 | K132: 0 | L132: 21838942 | M132: 14002090 | N132: 7836852 | O132: 10
A133: 23490 Framleiðsla á öðrum leirvörum | O133: 8
A134: 23510 Sementsframleiðsla | O134: 1
A135: 23610 Framleiðsla á byggingarefni úr steinsteypu | O135: 4
A136: 23630 Framleiðsla á tilbúinni steinsteypu | B136: 0 | C136: 6306936 | D136: 0 | E136: 13883523776 | F136: 0 | G136: 0 | H136: 13889830712 | I136: 96777410 | J136: 13986608122 | K136: 0 | L136: 3332739300 | M136: 2264652628 | N136: 1068086672 | O136: 16
A137: 23690 Framleiðsla á öðrum vörum úr steinsteypu, sementi og gifsi | O137: 3
A138: 23700 Steinsmíði | B138: 0 | C138: 0 | D138: 0 | E138: 1228363750 | F138: 0 | G138: 0 | H138: 1228363750 | I138: 1691096 | J138: 1230054846 | K138: 0 | L138: 294814205 | M138: 165723417 | N138: 129090788 | O138: 14
A139: 23990 Framleiðsla á öðrum ótöldum vörum úr málmlausum steinefnum | O139: 7
A140: Gúmmí- og plastvöruframleiðsla, gler-, leir- og steinefnaiðnaður | B140: 0 | C140: 93751959 | D140: 0 | E140: 38251871028 | F140: 0 | G140: 0 | H140: 38345622987 | I140: 1989113855 | J140: 40334736842 | K140: 6122917 | L140: 9192250990 | M140: 6008943079 | N140: 3183307911 | O140: 117
A141: 24100 Framleiðsla á járni, stáli og járnblendi | O141: 9
A142: 24200 Framleiðsla á rörum, pípum, holum prófílum og tengihlutum úr stáli | O142: 1
A143: 24420 Álframleiðsla | O143: 5
A144: 24430 Blý-, sink- og tinframleiðsla | O144: 1
A145: 24510 Járnsteypa | O145: 3
A146: 24530 Steypa léttmálma | O146: 1
A147: 25110 Framleiðsla á burðarvirkjum og byggingareiningum úr málmi | O147: 7
A148: 25120 Framleiðsla á hurðum og gluggum úr málmi | O148: 6
A149: 25290 Framleiðsla á öðrum geymum, kerum og ílátum úr málmi | O149: 2
A150: 25400 Vopna- og skotfæraframleiðsla | O150: 2
A151: 25500 Eldsmíði og önnur málmsmíði; sindurmótun | B151: 0 | C151: 4909331 | D151: 0 | E151: 978139050 | F151: 0 | G151: 0 | H151: 983048381 | I151: 13941497 | J151: 996989878 | K151: 12995971 | L151: 238412541 | M151: 106876567 | N151: 131535974 | O151: 33
A152: 25610 Meðhöndlun og húðun málma | B152: 0 | C152: 558 | D152: 0 | E152: 1673769927 | F152: 0 | G152: 0 | H152: 1673770485 | I152: 185633335 | J152: 1859403820 | K152: 0 | L152: 401704781 | M152: 266538913 | N152: 135165868 | O152: 14
A153: 25620 Vélvinnsla málma | B153: 0 | C153: 26018100 | D153: 0 | E153: 25000180427 | F153: -975885 | G153: -7709774 | H153: 25017512868 | I153: 6618612475 | J153: 31636125343 | K153: 27487363 | L153: 6007299763 | M153: 3189654168 | N153: 2817645595 | O153: 331
A154: 25720 Framleiðsla á lásum og lömum | O154: 5
A155: 25730 Framleiðsla á verkfærum, þó ekki vélknúnum | O155: 3
A156: 25990 Framleiðsla á öðrum ótöldum málmvörum | B156: 0 | C156: 0 | D156: 0 | E156: 474340628 | F156: 0 | G156: 0 | H156: 474340628 | I156: 8811482 | J156: 483152110 | K156: 0 | L156: 113841747 | M156: 57956864 | N156: 55884883 | O156: 16
A157: Framleiðsla málma og málmvara að undanskildum vélum og búnaði | B157: 0 | C157: 61861505 | D157: 0 | E157: 32203352060 | F157: -975885 | G157: -7709774 | H157: 32256527906 | I157: 236709904533 | J157: 268966432439 | K157: 50421851 | L157: 7745508101 | M157: 45383847126 | N157: -37638339025 | O157: 439
A158: 26110 Framleiðsla á rafeindaíhlutum | O158: 2
A159: 26200 Framleiðsla á tölvum og jaðarbúnaði | O159: 3
A160: 26300 Framleiðsla fjarskiptabúnaðar | O160: 1
A161: 26400 Framleiðsla á sjónvarps-, útvarps- og hljómtækjum og skyldum búnaði | O161: 2
A162: 26510 Framleiðsla á tækjum og búnaði til mælinga, prófana og leiðsögu | B162: 0 | C162: 5776066 | D162: 0 | E162: 204425381 | F162: 0 | G162: 0 | H162: 210201447 | I162: 1359665881 | J162: 1569867328 | K162: 0 | L162: 49697447 | M162: 149778256 | N162: -100080809 | O162: 10
A163: 26520 Framleiðsla á úrum og klukkum | O163: 1
A164: 26600 Framleiðsla á búnaði til geislunar, raftækjabúnaði til lækninga og meðferðar | O164: 1
A165: 27110 Framleiðsla á rafhreyflum, rafölum og spennubreytum | O165: 2
A166: 27120 Framleiðsla á dreifi- og stjórnbúnaði fyrir raforku | O166: 3
A167: 27200 Framleiðsla rafhlaðna og rafgeyma | O167: 2
A168: 27310 Framleiðsla á ljósleiðaraköplum | O168: 1
A169: 27400 Framleiðsla á rafljósabúnaði | O169: 8
A170: 27510 Framleiðsla rafknúinna heimilistækja | O170: 2
A171: 27900 Framleiðsla á öðrum rafbúnaði | O171: 8
A172: 28110 Framleiðsla hreyfla og hverfla, þó ekki í loftför, ökutæki eða vélhjól | B172: 0 | C172: 768325 | D172: 0 | E172: 780636342 | F172: 0 | G172: 0 | H172: 781404667 | I172: 112371814 | J172: 893776481 | K172: 0 | L172: 187437219 | M172: 94265827 | N172: 93171392 | O172: 13
A173: 28220 Framleiðsla á lyftitækjum og færslubúnaði | O173: 8
A174: 28250 Framleiðsla á kæli- og loftræstibúnaði, þó ekki til heimilisnota | B174: 0 | C174: 19066997 | D174: 0 | E174: 3191934279 | F174: 0 | G174: 0 | H174: 3211001276 | I174: 1242982052 | J174: 4453983328 | K174: 0 | L174: 768161598 | M174: 499870492 | N174: 268291106 | O174: 24
A175: 28290 Framleiðsla á öðrum ótöldum vélum til almennra nota | B175: 0 | C175: 25500 | D175: 0 | E175: 265294999 | F175: 0 | G175: 0 | H175: 265320499 | I175: 1813249 | J175: 267133748 | K175: 4500000 | L175: 64753601 | M175: 26822164 | N175: 37931437 | O175: 12
A176: 28300 Framleiðsla á vélum til nota í landbúnaði og skógrækt | O176: 3
A177: 28910 Framleiðsla á vélum til málmvinnslu | O177: 2
A178: 28920 Framleiðsla á vélum til mannvirkjagerðar, námugraftrar og vinnslu hráefna úr jörðu | O178: 3
A179: 28930 Framleiðsla á vélum fyrir matvæla-, drykkjarvöru- og tóbaksvinnslu | B179: 0 | C179: 9478459 | D179: 0 | E179: 4827524598 | F179: 0 | G179: 0 | H179: 4837003057 | I179: 21121766792 | J179: 25958769849 | K179: 0 | L179: 1159648551 | M179: 2385609892 | N179: -1225961341 | O179: 23
A180: 28940 Framleiðsla á vélum fyrir textíl-, fata- og leðurframleiðslu | O180: 2
A181: 28990 Framleiðsla á öðrum ótöldum sérhæfðum vélum | O181: 7
A182: Framleiðsla á tölvu-, rafeinda- og optískum vörum, rafbúnaði, vélum og tækjum | B182: 0 | C182: 60787257 | D182: 0 | E182: 13279679147 | F182: 0 | G182: 0 | H182: 13340466404 | I182: 25195589209 | J182: 38536055613 | K182: 4500000 | L182: 3194889632 | M182: 3844274667 | N182: -649385035 | O182: 143
A183: 29200 Smíði yfirbygginga fyrir vélknúin ökutæki og framleiðsla tengivagna | B183: 0 | C183: 49316640 | D183: 0 | E183: 1245690780 | F183: -1908000 | G183: -95402 | H183: 1293004018 | I183: 9283986 | J183: 1302288004 | K183: 0 | L183: 303898793 | M183: 193363887 | N183: 110534906 | O183: 19
A184: 29310 Framleiðsla á raf- og rafeindabúnaði í vélknúin ökutæki og hreyfla þeirra | O184: 2
A185: 29320 Framleiðsla á öðrum íhlutum og aukabúnaði í vélknúin ökutæki og hreyfla þeirra | O185: 6
A186: 30110 Smíði skipa og annarra fljótandi mannvirkja | B186: 0 | C186: 0 | D186: 0 | E186: 286920382 | F186: 0 | G186: 0 | H186: 286920382 | I186: 1192478377 | J186: 1479398759 | K186: 1020833 | L186: 69105888 | M186: 163832432 | N186: -94726544 | O186: 14
A187: 30120 Smíði skemmti- og sportbáta | O187: 4
A188: 30920 Framleiðsla á reiðhjólum, barnavögnum og farartækjum fyrir hreyfihamlaða | O188: 4
A189: Framleiðsla á vélknúnum ökutækjum | B189: 0 | C189: 73440350 | D189: 0 | E189: 2248273923 | F189: -1908000 | G189: -95402 | H189: 2319710871 | I189: 1259457185 | J189: 3579168056 | K189: 1020833 | L189: 547417367 | M189: 465560190 | N189: 81857177 | O189: 49
A190: 31010 Framleiðsla á húsgögnum og innréttingum fyrir atvinnuhúsnæði | O190: 6
A191: 31020 Framleiðsla á húsgögnum og innréttingum í eldhús | B191: 0 | C191: 277973 | D191: 0 | E191: 1962235672 | F191: 0 | G191: 0 | H191: 1962513645 | I191: 4392985 | J191: 1966906630 | K191: 0 | L191: 470967085 | M191: 236272603 | N191: 234694482 | O191: 17
A192: 31090 Framleiðsla á öðrum húsgögnum og innréttingum | B192: 0 | C192: 716824 | D192: 0 | E192: 2749888511 | F192: 0 | G192: 0 | H192: 2750605335 | I192: 7889092 | J192: 2758494427 | K192: 5000000 | L192: 661251111 | M192: 303517144 | N192: 357733967 | O192: 45
A193: 32120 Skartgripasmíði og skyld framleiðsla | B193: 0 | C193: 31875942 | D193: 0 | E193: 1780715779 | F193: 0 | G193: 0 | H193: 1812591721 | I193: 34881054 | J193: 1847472775 | K193: 510417 | L193: 430999639 | M193: 175331900 | N193: 255667739 | O193: 65
A194: 32130 Framleiðsla á óekta skartgripum og skyldum vörum | O194: 4
A195: 32200 Hljóðfærasmíði | O195: 8
A196: 32300 Framleiðsla á íþróttavörum | O196: 3
A197: 32400 Framleiðsla á spilum og leikföngum | B197: 0 | C197: 169575 | D197: 0 | E197: 352546164 | F197: 0 | G197: 0 | H197: 352715739 | I197: 12148329 | J197: 364864068 | K197: 0 | L197: 84629735 | M197: 48753054 | N197: 35876681 | O197: 18
A198: 32500 Framleiðsla á tækjum og vörum til lækninga og tannlækninga | O198: 7
A199: 32910 Framleiðsla á sópum og burstum | O199: 1
A200: 32990 Önnur ótalin framleiðsla | B200: 0 | C200: 18486164 | D200: 0 | E200: 1823171644 | F200: 0 | G200: 0 | H200: 1841657808 | I200: 110967296 | J200: 1952625104 | K200: 18273175 | L200: 443980230 | M200: 218506047 | N200: 225474183 | O200: 79
... 364 more rows
